Workbook

Sheet Contents
A1: Data on African manufacturing
A2: Compiled for SET paper 'Developing Export-Based Manufacturing in Sub-Saharan Africa'
A3: (Balchin, N., Gelb, S., Kennan, J., Martin, H., te Velde, D.W. and Williams, C. (2016) 'Developing Export-Based Manufacturing in Sub-Saharan Africa', March. London: Supporting Economic Transformation Programme, Overseas Development Institute.)
A4: available on the SET website at: | D4: http://set.odi.org/developing-export-based-manufacturing-in-sub-saharan-africa/
A5: Contents
A6: Note: | C6: Specific figure references in the hyperlinks below correspond to the numbering in the paper. Other pages contain additional data not used in the paper.
C7: See text of the paper for data caveats.
A8: 1 | B8: Manufacturing production
E9: SSA | F9: Ethiopia | G9: Ghana | H9: Kenya | I9: Mozam-bique | J9: Nigeria | K9: Rwanda | L9: Tan-zania | M9: Uganda | N9: Zambia
B10: Manufacturing value added (constant $/% of GDP) | E10: Fig. 1
B11: Manufacturing share in employment | E11: Fig. 2
B12: Distribution of manufacturing production by sector | F12: Fig. 3 & App. III, Fig. 4 | G12: App. III, Fig. 4 | H12: Fig. 3 & App. III, Fig. 4 | J12: Fig. 3 & App. III, Fig. 4 | K12: Fig. 3 & App. III, Fig. 4
B13: Annual change in manufacturing production | L13: App. III, Fig. 4 | M13: App. III, Fig. 4 | N13: App. III, Fig. 4
A14: 2 | B14: Trade in manufactures
B15: World:
C16: Overview | D16: Figs A.1 & A.2
C17: Total by country & income group | D17: Figs A.3 & A.4
C18: Total by sector | D18: W3
C19: By country & sector | D19: Fig. 4
C20: By region & sector | D20: W5
C21: Graphs & tables | D21: W6
C22: UNCTAD country groupings | D22: W7
B23: Africa: | D23: All Africa | E23: SSA | F23: Ethiopia | G23: Ghana | H23: Kenya | I23: Mozam-bique | J23: Nigeria | K23: Rwanda | L23: Tan-zania | M23: Uganda | N23: Zambia
C24: By sector | D24: Fig. 5
C25: By sector and partner | D25: Fig. 6 | E25: App. III, Fig. 2 | F25: App. III, Fig. 2 | G25: App. III, Fig. 2 | H25: App. III, Fig. 2 | I25: App. III, Fig. 2 | J25: App. III, Fig. 2 | K25: App. III, Fig. 2 | L25: App. III, Fig. 2 | M25: App. III, Fig. 2 | N25: App. III, Fig. 2
C26: Region/REC by sector | D26: AA3 | E26: App. III, Fig. 1 | F26: App. III, Fig. 1 | G26: App. III, Fig. 1 | H26: App. III, Fig. 1 | I26: App. III, Fig. 1 | J26: App. III, Fig. 1 | K26: App. III, Fig. 1 | L26: App. III, Fig. 1 | M26: App. III, Fig. 1 | N26: App. III, Fig. 1
C27: By technology intensity | D27: Fig. 7 | F27: Fig. A.7 | G27: Fig. A.7 | H27: Fig. A.7 | I27: Fig. A.7 | J27: Fig. A.7 | K27: Fig. A.7 | L27: Fig. A.7 | M27: Fig. A.7 | N27: Fig. A.7
C28: Graphs & tables | D28: Fig. A.5 | E28: SSA3 | F28: ET4 | G28: GH4 | H28: KE4 | I28: MZ4 | J28: NG4 | K28: RW4 | L28: TZ4 | M28: UG4 | N28: ZM4
D29: Fig. A.6
C30: Individual SSA country graphs | E30: SSA4
C31: Focus country comparisons | J31: Fig. 8 & Fig. 9
B32: China, EU, Japan & USA manufactures imports from SSA: | D32: China | E32: EU | F32: Japan | G32: USA
C33: Total by product | D33: CN1 | E33: EU | F33: JP1 | G33: US1
C34: Summary | D34: CN2 | F34: JP2 | G34: US2
C35: Graphs | D35: Graphs | E35: Graphs | F35: Graphs | G35: Graphs
C36: EU+Japan+USA | F36: Comb.
A37: 3 | B37: Foreign direct investment
B38: FDI annual inflows, Greenfield manufacturing ($ million) | E38: Fig. 12

Sheet Prod1
A1: Manufacturing value added (constant 2005 and current US$) | H1: Manufacturing, value added (% of GDP)
A2: Source: | B2: World Bank, World Development Indicators | H2: Source: | I2: Data from database: World Development Indicators
A4: Country Name | B4: Sub-Saharan Africa (developing only) | C4: Sub-Saharan Africa (developing only) | H4: Country Name | I4: Sub-Saharan Africa (developing only)
A5: Country Code | B5: SSA | C5: SSA | H5: Country Code | I5: SSA
A6: Indicator Name | B6: Manufacturing, value added (constant 2005 US$) | C6: Manufacturing, value added (current US$) | H6: Series Name | I6: Manufacturing, value added (% of GDP)
B7: NV.IND.MANF.KD | C7: NV.IND.MANF.CD | E7: man | H7: Series Code | I7: NV.IND.MANF.ZS
A8: 1976 | B8: 4.241173504e+10 | C8: 2994126235 | D8: 1976 | E8: 42.41173504 | H8: 1976 | I8: 17.88685854
A9: 1977 | B9: 4.160815306e+10 | C9: 3247679402 | D9: 1977 | E9: 41.60815306 | H9: 1977 | I9: 16.55603032
A10: 1978 | B10: 4.271262515e+10 | C10: 3455603436 | D10: 1978 | E10: 42.71262515 | H10: 1978 | I10: 16.32649593
A11: 1979 | B11: 4.492494059e+10 | C11: 3954761295 | D11: 1979 | E11: 44.92494059 | H11: 1979 | I11: 16.88064603
A12: 1980 | B12: 4.808042004e+10 | C12: 4467716303 | D12: 1980 | E12: 48.08042004 | H12: 1980 | I12: 17.0581323
A13: 1981 | B13: 5.199576518e+10 | C13: 5101321395 | D13: 1981 | E13: 51.99576518 | H13: 1981 | I13: 16.55752782
A14: 1982 | B14: 5.151696117e+10 | C14: 5561958849 | D14: 1982 | E14: 51.51696117 | H14: 1982 | I14: 16.60929273
A15: 1983 | B15: 5.057985287e+10 | C15: 6069852695 | D15: 1983 | E15: 50.57985287 | H15: 1983 | I15: 16.78198465
A16: 1984 | B16: 5.311100482e+10 | C16: 6559667319 | D16: 1984 | E16: 53.11100482 | H16: 1984 | I16: 15.93459735
A17: 1985 | B17: 5.333026167e+10 | C17: 7400100477 | D17: 1985 | E17: 53.33026167 | H17: 1985 | I17: 15.04686673
A18: 1986 | B18: 5.400745122e+10 | C18: 8222413039 | D18: 1986 | E18: 54.00745122 | H18: 1986 | I18: 15.27545873
A19: 1987 | B19: 5.569532517e+10 | C19: 8888997292 | D19: 1987 | E19: 55.69532517 | H19: 1987 | I19: 15.12757377
A20: 1988 | B20: 5.851650535e+10 | C20: 9408345293 | D20: 1988 | E20: 58.51650535 | H20: 1988 | I20: 15.50574601
A21: 1989 | B21: 5.932232254e+10 | C21: 1.258295386e+10 | D21: 1989 | E21: 59.32232254 | H21: 1989 | I21: 15.51413741
A22: 1990 | B22: 5.775142032e+10 | C22: 1.529919945e+10 | D22: 1990 | E22: 57.75142032 | H22: 1990 | I22: 15.42476423
A23: 1991 | B23: 5.500285479e+10 | C23: 1.735761633e+10 | D23: 1991 | E23: 55.00285479 | H23: 1991 | I23: 15.44822026
A24: 1992 | B24: 5.286794056e+10 | C24: 1.722301625e+10 | D24: 1992 | E24: 52.86794056 | H24: 1992 | I24: 14.5757892
A25: 1993 | B25: 5.177325422e+10 | C25: 1.787435696e+10 | D25: 1993 | E25: 51.77325422 | H25: 1993 | I25: 14.41714219
A26: 1994 | B26: 5.268105099e+10 | C26: 2.029864644e+10 | D26: 1994 | E26: 52.68105099 | H26: 1994 | I26: 14.45314138
A27: 1995 | B27: 5.551293296e+10 | C27: 2.524896355e+10 | D27: 1995 | E27: 55.51293296 | H27: 1995 | I27: 14.25104105
A28: 1996 | B28: 5.703832626e+10 | C28: 3.3851154e+10 | D28: 1996 | E28: 57.03832626 | H28: 1996 | I28: 13.9019803
A29: 1997 | B29: 5.805993545e+10 | C29: 3.8173116e+10 | D29: 1997 | E29: 58.05993545 | H29: 1997 | I29: 13.95338332
A30: 1998 | B30: 5.819283087e+10 | C30: 3.531257943e+10 | D30: 1998 | E30: 58.19283087 | H30: 1998 | I30: 13.913575
A31: 1999 | B31: 5.946651051e+10 | C31: 3.433133434e+10 | D31: 1999 | E31: 59.46651051 | H31: 1999 | I31: 13.4256975
A32: 2000 | B32: 6.257613522e+10 | C32: 3.150967948e+10 | D32: 2000 | E32: 62.57613522 | H32: 2000 | I32: 13.38663441
A33: 2001 | B33: 6.41738581e+10 | C33: 2.691109708e+10 | D33: 2001 | E33: 64.1738581 | H33: 2001 | I33: 13.51131227
A34: 2002 | B34: 6.578344483e+10 | C34: 3.110078398e+10 | D34: 2002 | E34: 65.78344483 | H34: 2002 | I34: 13.69927253
A35: 2003 | B35: 6.595654286e+10 | C35: 3.850057382e+10 | D35: 2003 | E35: 65.95654286 | H35: 2003 | I35: 13.44045939
A36: 2004 | B36: 6.911222697e+10 | C36: 4.239117075e+10 | D36: 2004 | E36: 69.11222697 | H36: 2004 | I36: 13.12873564
A37: 2005 | B37: 7.311020802e+10 | C37: 4.528063247e+10 | D37: 2005 | E37: 73.11020802 | H37: 2005 | I37: 12.76584949
A38: 2006 | B38: 7.730353115e+10 | C38: 4.372949237e+10 | D38: 2006 | E38: 77.30353115 | H38: 2006 | I38: 12.06228589
A39: 2007 | B39: 8.154569255e+10 | C39: 4.498761242e+10 | D39: 2007 | E39: 81.54569255 | H39: 2007 | I39: 11.79164322
A40: 2008 | B40: 8.379477801e+10 | C40: 4.372702881e+10 | D40: 2008 | E40: 83.79477801 | H40: 2008 | I40: 11.56537403
A41: 2009 | B41: 7.913228877e+10 | C41: 4.312097769e+10 | D41: 2009 | E41: 79.13228877 | H41: 2009 | I41: 11.20581166
A42: 2010 | B42: 8.376499386e+10 | C42: 4.170547508e+10 | D42: 2010 | E42: 83.76499386 | H42: 2010 | I42: 11.37065653
A43: 2011 | B43: 8.80923124e+10 | C43: 4.719820819e+10 | D43: 2011 | E43: 88.0923124 | H43: 2011 | I43: 11.03979982
A44: 2012 | B44: 9.102710011e+10 | C44: 4.634407415e+10 | D44: 2012 | E44: 91.02710011 | H44: 2012 | I44: 11.01579977
A45: 2013 | B45: 9.50743286e+10 | C45: 4.790314299e+10 | D45: 2013 | E45: 95.0743286 | H45: 2013 | I45: 11.16496943
A46: 2014 | B46: 9.79196511e+10 | C46: 4.439659658e+10 | D46: 2014 | E46: 97.9196511 | H46: 2014 | I46: 11.2409597
A48: Manufacturing value added (constant 2005 US$) | H48: Manufacturing value added (% of GDP)

Sheet Prod2
A1: Sectoral shares in employment | J1: Sectoral shares in GVA
A3: Sources: | B3: SET database - calculated using data from:
B4: 'Gross value added by kind of economic activity' from UNdata, downloaded July 2015
B5: http://data.un.org/Data.aspx?d=SNAAMA&f=grID%3A201%3BcurrID%3ANCU%3BpcFlag%3A0
B6: 'Employment by sector' from ILO WESO 2015 supporting data sets (dated Jan. 2015, downloaded July 2015)
B7: http://www.ilo.org/global/research/global-reports/weso/2015/lang--en/index.htm
A9: Year | B9: Agriculture | C9: Mining & utilities | D9: Manu-facturing | E9: Con-struction | F9: Wholesale, retail, hotels | G9: Transport, storage, comms | H9: Other | J9: Year | K9: Agriculture | L9: Mining & utilities | M9: Manu-facturing | N9: Con-struction | O9: Wholesale, retail, hotels | P9: Transport, storage, comms | Q9: Other
A10: 1991 | B10: 0.6212472754 | C10: 0.01328241632 | D10: 0.06436981649 | E10: 0.02518718309 | F10: 0.08724212667 | G10: 0.01865126525 | H10: 0.1700199167 | J10: 1991 | K10: 0.2907479233 | L10: 0.1101580808 | M10: 0.1013622014 | N10: 0.03809753924 | O10: 0.1656310602 | P10: 0.06334621569 | Q10: 0.2419171546
A11: 1992 | B11: 0.6200924664 | C11: 0.01315486619 | D11: 0.06484007567 | E11: 0.02630268709 | F11: 0.0870608236 | G11: 0.01858300539 | H11: 0.1699660757 | J11: 1992 | K11: 0.2853566038 | L11: 0.1152363221 | M11: 0.1012681165 | N11: 0.04043730107 | O11: 0.1551307812 | P11: 0.0668663981 | Q11: 0.2458845291
A12: 1993 | B12: 0.6232521737 | C12: 0.01320097175 | D12: 0.06356015484 | E12: 0.02561833157 | F12: 0.08644961574 | G12: 0.01852729021 | H12: 0.1693914622 | J12: 1993 | K12: 0.2849840171 | L12: 0.1176093059 | M12: 0.09860390431 | N12: 0.04056906229 | O12: 0.1537540318 | P12: 0.06916837689 | Q12: 0.2465889287
A13: 1994 | B13: 0.6234768513 | C13: 0.01338506281 | D13: 0.0634342213 | E13: 0.02663210439 | F13: 0.08690744979 | G13: 0.01828338856 | H13: 0.1678809219 | J13: 1994 | K13: 0.2859189133 | L13: 0.1184707541 | M13: 0.09675040865 | N13: 0.03987987849 | O13: 0.1597238668 | P13: 0.06711856459 | Q13: 0.244760505
A14: 1995 | B14: 0.6214637081 | C14: 0.01333005886 | D14: 0.06250442012 | E14: 0.02691838264 | F14: 0.08646149144 | G14: 0.01822171052 | H14: 0.1711002283 | J14: 1995 | K14: 0.2914199227 | L14: 0.1166442121 | M14: 0.09686576345 | N14: 0.0391234869 | O14: 0.1571191986 | P14: 0.06632792154 | Q14: 0.2449638908
A15: 1996 | B15: 0.6176115341 | C15: 0.01350175834 | D15: 0.06167363396 | E15: 0.02859429765 | F15: 0.08688920784 | G15: 0.0185699946 | H15: 0.1731595735 | J15: 1996 | K15: 0.291509349 | L15: 0.120953756 | M15: 0.09628015321 | N15: 0.03984149409 | O15: 0.1573205015 | P15: 0.06635831762 | Q15: 0.2404819259
A16: 1997 | B16: 0.6110186914 | C16: 0.01326017507 | D16: 0.06215471043 | E16: 0.02778559562 | F16: 0.08810662032 | G16: 0.01929552915 | H16: 0.178378678 | J16: 1997 | K16: 0.281383699 | L16: 0.1266544254 | M16: 0.09738435846 | N16: 0.03971992327 | O16: 0.1575641602 | P16: 0.06798863703 | Q16: 0.2416718193
A17: 1998 | B17: 0.6119124454 | C17: 0.01267533781 | D17: 0.06105731549 | E17: 0.02935655209 | F17: 0.08757812606 | G17: 0.01924007164 | H17: 0.1781801515 | J17: 1998 | K17: 0.2859102376 | L17: 0.127588488 | M17: 0.09553596165 | N17: 0.04042915111 | O17: 0.151266987 | P17: 0.06978899449 | Q17: 0.2418688259
A18: 1999 | B18: 0.6097935524 | C18: 0.01225893032 | D18: 0.06054895375 | E18: 0.02853231513 | F18: 0.08851945699 | G18: 0.0191569554 | H18: 0.181189836 | J18: 1999 | K18: 0.2874437166 | L18: 0.1263206337 | M18: 0.09539574194 | N18: 0.04076677229 | O18: 0.1500981861 | P18: 0.06958549771 | Q18: 0.2437982627
A19: 2000 | B19: 0.6035850824 | C19: 0.01259908077 | D19: 0.06044344635 | E19: 0.02859640567 | F19: 0.09016292204 | G19: 0.0196440014 | H19: 0.1849690614 | J19: 2000 | K19: 0.283644068 | L19: 0.1276438318 | M19: 0.09499905007 | N19: 0.04078702535 | O19: 0.1496630852 | P19: 0.07027555351 | Q19: 0.2470421707
A20: 2001 | B20: 0.6000775794 | C20: 0.01275213952 | D20: 0.06114350245 | E20: 0.02987113324 | F20: 0.09066513139 | G20: 0.02013548313 | H20: 0.1853550309 | J20: 2001 | K20: 0.2870687662 | L20: 0.1256572079 | M20: 0.09521781003 | N20: 0.04143915065 | O20: 0.1454890722 | P20: 0.0724645652 | Q20: 0.2460035944
A21: 2002 | B21: 0.5987825209 | C21: 0.01262875546 | D21: 0.06064414765 | E21: 0.02902123126 | F21: 0.09158297252 | G21: 0.02067686701 | H21: 0.1866635052 | J21: 2002 | K21: 0.2826488214 | L21: 0.1246660846 | M21: 0.09625698968 | N21: 0.04152548454 | O21: 0.1463552357 | P21: 0.07472994675 | Q21: 0.2472661496
A22: 2003 | B22: 0.5973832175 | C22: 0.01312127844 | D22: 0.0599890942 | E22: 0.03071966222 | F22: 0.09224411814 | G22: 0.02086267527 | H22: 0.1856799542 | J22: 2003 | K22: 0.2799044187 | L22: 0.1275147398 | M22: 0.09486680081 | N22: 0.04202188129 | O22: 0.1454128 | P22: 0.07703539041 | Q22: 0.2470741711
A23: 2004 | B23: 0.5919045262 | C23: 0.013511944 | D23: 0.05847323531 | E23: 0.03090802759 | F23: 0.0935505419 | G23: 0.02150051027 | H23: 0.1901512148 | J23: 2004 | K23: 0.2707089704 | L23: 0.1337980638 | M23: 0.09381495746 | N23: 0.04414987821 | O23: 0.1457871183 | P23: 0.0798591341 | Q23: 0.245529902
A24: 2005 | B24: 0.5893722108 | C24: 0.01345000784 | D24: 0.05673737323 | E24: 0.03176612612 | F24: 0.09399418781 | G24: 0.02184106178 | H24: 0.1928390324 | J24: 2005 | K24: 0.2713574381 | L24: 0.1347009956 | M24: 0.09379778258 | N24: 0.04600614646 | O24: 0.1431622618 | P24: 0.08138875736 | Q24: 0.2429185073
A25: 2006 | B25: 0.5832206451 | C25: 0.01326371878 | D25: 0.05617942855 | E25: 0.03241963791 | F25: 0.09518236513 | G25: 0.02253510099 | H25: 0.1971991036 | J25: 2006 | K25: 0.2667083437 | L25: 0.1340063593 | M25: 0.09291671 | N25: 0.0475284576 | O25: 0.1461985393 | P25: 0.08401260515 | Q25: 0.2417707957
A26: 2007 | B26: 0.5798324758 | C26: 0.01364008881 | D26: 0.05544690286 | E26: 0.03321275459 | F26: 0.093044843 | G26: 0.02289223585 | H26: 0.2019306991 | J26: 2007 | K26: 0.2623007325 | L26: 0.1281108745 | M26: 0.09194427368 | N26: 0.05016800378 | O26: 0.1496656917 | P26: 0.08802303997 | Q26: 0.2431833413
A27: 2008 | B27: 0.5770508723 | C27: 0.01343269814 | D27: 0.05471083598 | E27: 0.03442079524 | F27: 0.09258801217 | G27: 0.02366586725 | H27: 0.2041309189 | J27: 2008 | K27: 0.2602542655 | L27: 0.1246239413 | M27: 0.08961394236 | N27: 0.05307347121 | O27: 0.1485319228 | P27: 0.09048934541 | Q27: 0.2465349162
A28: 2009 | B28: 0.5788532754 | C28: 0.01345064713 | D28: 0.05369117273 | E28: 0.03579655833 | F28: 0.0912270269 | G28: 0.02396270608 | H28: 0.2030186134 | J28: 2009 | K28: 0.2600590078 | L28: 0.1193089047 | M28: 0.08693362236 | N28: 0.05196013652 | O28: 0.1503307392 | P28: 0.09216901643 | Q28: 0.2522002628
A29: 2010 | B29: 0.5729852624 | C29: 0.01367112687 | D29: 0.05294594726 | E29: 0.03623115034 | F29: 0.09181594652 | G29: 0.02476776154 | H29: 0.2075828051 | J29: 2010 | K29: 0.2613746169 | L29: 0.1243410885 | M29: 0.08548553113 | N29: 0.05169035063 | O29: 0.1480965904 | P29: 0.09342114224 | Q29: 0.2490734709
A30: 2011 | B30: 0.564145777 | C30: 0.01415843264 | D30: 0.05318259979 | E30: 0.03651976344 | F30: 0.09363122804 | G30: 0.02501389107 | H30: 0.2133483081 | J30: 2011 | K30: 0.2492053189 | L30: 0.1257603107 | M30: 0.08667198373 | N30: 0.05479710704 | O30: 0.1499346765 | P30: 0.09250718903 | Q30: 0.2550719279
A31: 2012 | B31: 0.5584682834 | C31: 0.01478704362 | D31: 0.05290794534 | E31: 0.03785800046 | F31: 0.09555799407 | G31: 0.02571009538 | H31: 0.2147106378 | J31: 2012 | K31: 0.2487292106 | L31: 0.1245587756 | M31: 0.08538711812 | N31: 0.05549595073 | O31: 0.1501698183 | P31: 0.09465309676 | Q31: 0.2549225325
A32: 2013 | B32: 0.5559470641 | C32: 0.0150682967 | D32: 0.05279245795 | E32: 0.03811614788 | F32: 0.09692053881 | G32: 0.02544567052 | H32: 0.2157098241 | J32: 2013 | K32: 0.2422257293 | L32: 0.1262779465 | M32: 0.08566379525 | N32: 0.0567854596 | O32: 0.1506913173 | P32: 0.09624679824 | Q32: 0.2560129034
A34: Manufacturing - share of employment average SSA (unweighted) | J34: Manufacturing - share of GVA average SSA (unweighted)
A55: Sectoral share of employment (average SSA, unweighted) | J55: Sectoral share of GVA (average SSA, unweighted)

Sheet Prod3
A1: Distribution of Manufacturing Production by Sector
A2: Sources: | B2: See below
B4: Food, beverages, tobacco | C4: Others | D4: Textiles, clothing, leather, footwear | E4: Wood, paper | F4: Chemicals
A5: Nigeria (2014) | B5: 48.83792311 | C5: 25.03987992 | D5: 20.9054821 | E5: 3.436515624 | F5: 1.780199247
A6: Rwanda (2014) | B6: 68.42105263 | C6: 15.35087719 | D6: 4.385964912 | E6: 7.894736842 | F6: 3.947368421
A7: Kenya (2012) | B7: 39.4 | C7: 20.4 | D7: 10.1 | E7: 6.3 | F7: 23.8
A8: Ethiopia (2012/2013) | B8: 35.2 | C8: 37.6 | D8: 11.3 | E8: 4.5 | F8: 11.4
B30: Chemicals | C30: Wood, paper | D30: Textiles, clothing, leather, footwear | E30: Others | F30: Food, beverages, tobacco | I30: Chemicals | J30: Textiles, clothing, leather, footwear | K30: Wood, paper | L30: Others | M30: Food, beverages, tobacco
A31: Nigeria (2014) | B31: 1.780199247 | C31: 3.436515624 | D31: 20.9054821 | E31: 25.03987992 | F31: 48.83792311 | H31: Rwanda (2014) | I31: 3.947368421 | J31: 4.385964912 | K31: 7.894736842 | L31: 15.35087719 | M31: 68.42105263
A50: Source: http://nigeria.prognoz.com/ | H50: Source: http://statistics.gov.rw/publications/gdp-national-accounts-fiscal-year-201415
B53: Wood, paper | C53: Textiles, clothing, leather, footwear | D53: Others | E53: Chemicals | F53: Food, beverages, tobacco | I53: Wood, paper | J53: Textiles, clothing, leather, footwear | K53: Chemicals | L53: Food, beverages, tobacco | M53: Others
A54: Kenya (2012) | B54: 6.3 | C54: 10.1 | D54: 20.4 | E54: 23.8 | F54: 39.4 | H54: Ethiopia (2012/2013) | I54: 4.5 | J54: 11.3 | K54: 11.4 | L54: 35.2 | M54: 37.6
A73: Source: http://www.kippra.org/downloads/Kenya%20Economic%20Report%202014.pdf | H73: Source: http://www.csa.gov.et/images/documents/pdf_files/nationalstatisticsabstract/2012/ma.pdf
B75: Chemicals | C75: Textiles, clothing, leather, footwear | D75: Wood, paper | E75: Food, beverages, tobacco | F75: Others
A76: Ghana (2003) | B76: 0 | C76: 6.4 | D76: 16.4 | E76: 32.5 | F76: 44.7
A94: Source: UNIDO INDSTAT

Sheet Prod4
A1: Annual change in manufacturing production
A3: Tanzania | B3: http://www.nbs.go.tz/nbs/takwimu/Industry/Industrial_Commodities_Quartely_Report_2004-2012.pdf
C5: 2008 | D5: 2012 | F5: annual change | H5: sector | I5: annual change
B6: food beverages and tobacco | C6: 351 | D6: 458 | E6: food beverages and tobacco | F6: =+-1+(D6/C6)^(0.25) -> 0.06878313058 | H6: textiles and leather | I6: -0.1019785138
B7: textiles and leather | C7: 286 | D7: 186 | E7: textiles and leather | F7: -0.1019785138 | H7: Paper and paper products | I7: 0.03809046434
B8: wood and wood products | C8: 263 | D8: 374 | E8: wood and wood products | F8: 0.09201590399 | H8: chemical | I8: 0.04785570723
B9: Paper and paper products | C9: 310 | D9: 360 | E9: Paper and paper products | F9: 0.03809046434 | H9: machinery | I9: 0.05305830641
B10: chemical | C10: 107 | D10: 129 | E10: chemical | F10: 0.04785570723 | H10: total | I10: 0.05980294971
B11: pottery | C11: 415 | D11: 576 | E11: pottery | F11: 0.0854094457 | H11: food beverages and tobacco | I11: 0.06878313058
B12: basic metal industries | C12: 177 | D12: 298 | E12: basic metal industries | F12: 0.1390971085 | H12: pottery | I12: 0.0854094457
B13: machinery | C13: 74 | D13: 91 | E13: machinery | F13: 0.05305830641 | H13: wood and wood products | I13: 0.09201590399
B14: total | C14: 260 | D14: 328 | E14: total | F14: 0.05980294971 | H14: basic metal industries | I14: 0.1390971085
A21: Uganda | B21: http://www.ubos.org/onlinefiles/uploads/ubos/statistical_abstracts/Statistical%20Abstract%202015.pdf
C22: 2010 | D22: 2014 | F22: annual change | H22: setor | I22: rate
B23: total | C23: 180.8 | D23: 219 | E23: total | F23: =+-1+(D23/C23)^(0.25) -> 0.04908679895 | H23: Textiles, clothing and footwear | I23: -0.1077188366
B24: food processing | C24: 153 | D24: 210 | E24: food processing | F24: 0.08238550076 | H24: Chemicals | I24: -0.03423899308
B25: drinks and tobacco | C25: 212 | D25: 288 | E25: drinks and tobacco | F25: 0.07960318397 | H25: Sawmilling | I25: 0.006873256696
B26: Textiles, clothing and footwear | C26: 183 | D26: 116 | E26: Textiles, clothing and footwear | F26: -0.1077188366 | H26: Metal | I26: 0.02926557973
B27: Sawmilling | C27: 216 | D27: 222 | E27: Sawmilling | F27: 0.006873256696 | H27: Bricks | I27: 0.03946742779
B28: Chemicals | C28: 246 | D28: 214 | E28: Chemicals | F28: -0.03423899308 | H28: Other | I28: 0.04163116274
B29: Bricks | C29: 209 | D29: 244 | E29: Bricks | F29: 0.03946742779 | H29: total | I29: 0.04908679895
B30: Metal | C30: 139 | D30: 156 | E30: Metal | F30: 0.02926557973 | H30: drinks and tobacco | I30: 0.07960318397
B31: Other | C31: 158 | D31: 186 | E31: Other | F31: 0.04163116274 | H31: food processing | I31: 0.08238550076
A37: Zambia | B37: http://www.zm.one.un.org/Commerce_Report.pdf
C38: 1994 K'mil constrant prices
C39: 2006 | D39: 2010 | F39: annual change | H39: setor | I39: rate
B40: food beverages and tobacco | C40: 224 | D40: 280 | E40: food beverages and tobacco | F40: =+-1+(D40/C40)^(0.25) -> 0.05737126344 | H40: textiles and leather | I40: -0.3200960776
B41: textiles and leather | C41: 48.2 | D41: 10.3 | E41: textiles and leather | F41: -0.3200960776 | H41: total | I41: 0.02799052946
B42: wood and wood products | C42: 26.5 | D42: 35.8 | E42: wood and wood products | F42: 0.07810060108 | H42: chemical | I42: 0.02942034889
B43: Paper and paper products | C43: 9.8 | D43: 16.7 | E43: Paper and paper products | F43: 0.1425431184 | H43: fabricated metals /machinery | I43: 0.03304761406
B44: chemical | C44: 30.9 | D44: 34.7 | E44: chemical | F44: 0.02942034889 | H44: basic metal industries | I44: 0.03394630791
B45: non-metallic | C45: 6.5 | D45: 8.8 | E45: non-metallic | F45: 0.07867926084 | H45: food beverages and tobacco | I45: 0.05737126344
B46: basic metal industries | C46: 1.4 | D46: 1.6 | E46: basic metal industries | F46: 0.03394630791 | H46: wood and wood products | I46: 0.07810060108
B47: fabricated metals /machinery | C47: 7.2 | D47: 8.2 | E47: fabricated metals /machinery | F47: 0.03304761406 | H47: non-metallic | I47: 0.07867926084
B48: total | C48: 354.6 | D48: 396 | E48: total | F48: 0.02799052946 | H48: Paper and paper products | I48: 0.1425431184

Sheet W1
A1: Merchandise: Trade matrix by product groups, exports in thousands of dollars, annual, 1995-2014
A2: Merchandise: Trade matrix by product groups, imports in thousands of dollars, annual, 1995-2014
A3: Source: | B3: UNCTADStat, 4.2.16
A4: PARTNER | B4: World
A5: Economy | C5: Product group | D5: 2005 | E5: 2006 | F5: 2007 | G5: 2008 | H5: 2009 | I5: 2010 | J5: 2011 | K5: 2012 | L5: 2013 | M5: 2014
A6: World | B6: Export | C6: Total all products | D6: 1.045946773e+10 | E6: 1.211741675e+10 | F6: 1.400469197e+10 | G6: 1.613778535e+10 | H6: 1.251584699e+10 | I6: 1.524285431e+10 | J6: 1.832287387e+10 | K6: 1.837741384e+10 | L6: 1.885418369e+10 | M6: 1.895777535e+10
A7: World | B7: Export | C7: All allocated products (SITC 0 to 8 + 961 + 971) | D7: 1.015287305e+10 | E7: 1.17681198e+10 | F7: 1.351989829e+10 | G7: 1.558670581e+10 | H7: 1.198621582e+10 | I7: 1.467856893e+10 | J7: 1.772226557e+10 | K7: 1.783310362e+10 | L7: 1.832574682e+10 | M7: 1.843679366e+10
A8: World | B8: Export | C8: Manufactured goods (SITC 5 to 8 less 667 and 68) | D8: 7366154555 | E8: 8373139406 | F8: 9564662421 | G8: 1.048738023e+10 | H8: 8333419697 | I8: 9979761632 | J8: 1.150556597e+10 | K8: 1.151818483e+10 | L8: 1.191623758e+10 | M8: 1.228847003e+10
A9: World | B9: Export | C9: Non-manufactures (all allocated minus manufactures) | D9: 2786718498 | E9: 3394980397 | F9: 3955235866 | G9: 5099325573 | H9: 3652796125 | I9: 4698807301 | J9: 6216699597 | K9: 6314918784 | L9: 6409509245 | M9: 6148323633
A10: World | B10: Export | C10: Unallocated (total minus all allocated) | D10: 306594674.8 | E10: 349296943.2 | F10: 484793683 | G10: 551079541.5 | H10: 529631166.2 | I10: 564285378.5 | J10: 600608297 | K10: 544310221.7 | L10: 528436873.2 | M10: 520981687.8
A11: World | B11: Export | C11: Share of manufactures in total | D11: =+D8/D6 -> 0.7042571139 | E11: =+E8/E6 -> 0.6910003659 | F11: 0.6829612848 | G11: 0.6498648983 | H11: 0.6658294644 | I11: 0.6547173796 | J11: 0.6279345727 | K11: 0.6267576567 | L11: 0.6320208697 | M11: 0.6482021124
A12: World | B12: Export | C12: Growth in manufactures trade 2005-14 (avg. annual) | D12: =EXP(LN(M8/D8)/9)-1 -> 0.05851062294
A13: World | B13: Export | C13: Growth in non-manufactures trade 2005-14 (avg. annual) | D13: =EXP(LN(M9/D9)/9)-1 -> 0.0919049796
A14: World | B14: Export | C14: Growth in manufactures trade 2005-14 (absolute) | D14: =(M8-D8)/D8 -> 0.6682340744
A15: World | B15: Export | C15: Growth in non-manufactures trade 2005-14 (absolute) | D15: =(M9-D9)/D9 -> 1.206295195
A16: World | B16: Import | C16: Total all products | D16: 1.071139377e+10 | E16: 1.232856693e+10 | F16: 1.416644604e+10 | G16: 1.643525243e+10 | H16: 1.265469177e+10 | I16: 1.531131754e+10 | J16: 1.827431342e+10 | K16: 1.835109643e+10 | L16: 1.867559625e+10 | M16: 1.880558094e+10
A17: World | B17: Import | C17: All allocated products (SITC 0 to 8 + 961 + 971) | D17: 1.045684434e+10 | E17: 1.201249851e+10 | F17: 1.371435669e+10 | G17: 1.588823844e+10 | H17: 1.216895093e+10 | I17: 1.489326666e+10 | J17: 1.78235642e+10 | K17: 1.784323911e+10 | L17: 1.820365585e+10 | M17: 1.837120622e+10
A18: World | B18: Import | C18: Manufactured goods (SITC 5 to 8 less 667 and 68) | D18: 7598874914 | E18: 8549582119 | F18: 9716538485 | G18: 1.065607287e+10 | H18: 8489255108 | I18: 1.016691071e+10 | J18: 1.162854134e+10 | K18: 1.161383128e+10 | L18: 1.196300666e+10 | M18: 1.232543063e+10
A19: World | B19: Import | C19: Non-manufactures (all allocated minus manufactures) | D19: =+D17-D18 -> 2857969422 | E19: =+E17-E18 -> 3462916392 | F19: 3997818205 | G19: 5232165571 | H19: 3679695823 | I19: 4726355943 | J19: 6195022866 | K19: 6229407835 | L19: 6240649189 | M19: 6045775584
A20: World | B20: Import | C20: Unallocated (total minus all allocated) | D20: =+D16-D17 -> 254549438.1 | E20: =+E16-E17 -> 316068422 | F20: 452089345.2 | G20: 547013985.3 | H20: 485740841.6 | I20: 418050877.7 | J20: 450749218 | K20: 507857313.7 | L20: 471940396.8 | M20: 434374728
A21: World | B21: Import | C21: Share of manufactures in total | D21: =+D18/D16 -> 0.7094198079 | E21: =+E18/E16 -> 0.6934773657 | F21: 0.6858839868 | G21: 0.6483668516 | H21: 0.6708385523 | I21: 0.6640127926 | J21: 0.6363325981 | K21: 0.6328685223 | L21: 0.6405689276 | M21: 0.6554134471
A22: World | B22: Import | C22: Growth in manufactures trade 2005-14 (avg. annual) | D22: =EXP(LN(M18/D18)/9)-1 -> 0.05521073478
A23: World | B23: Import | C23: Growth in non-manufactures trade 2005-14 (avg. annual) | D23: =EXP(LN(M19/D19)/9)-1 -> 0.0868132844
A24: World | B24: Import | C24: Growth in manufactures trade 2005-14 (absolute) | D24: =(M18-D18)/D18 -> 0.6220073064
A25: World | B25: Import | C25: Growth in non-manufactures trade 2005-14 (absolute) | D25: =(M19-D19)/D19 -> 1.115409471

Sheet W2
A1: Merchandise: Trade matrix by product groups, exports in thousands of dollars, annual, 1995-2014
A2: Merchandise: Trade matrix by product groups, imports in thousands of dollars, annual, 1995-2014
A3: Source: | B3: UNCTADStat, 4.2.16
A4: PARTNER | B4: World
A5: Flow | B5: Country | C5: Developed/developing | D5: Developing income | E5: LDC | G5: 2005 | H5: 2006 | I5: 2007 | J5: 2008 | K5: 2009 | L5: 2010 | M5: 2011 | N5: 2012 | O5: 2013 | P5: 2014
D6: Exports: | F6: Developed | G6: =SUMIF($C$23:$C$244,"Developed",G$23:G$244) -> 4834671836 | H6: =SUMIF($C$23:$C$244,"Developed",H$23:H$244) -> 5400115780 | I6: 6098981640 | J6: 6606451952 | K6: 5062889951 | L6: 5840802406 | M6: 6679017295 | N6: 6435248473 | O6: 6580615065 | P6: 6739406215
F7: Developing | G7: =SUMIF($C$23:$C$244,"Developing",G$23:G$244) -> 2442178751 | H7: =SUMIF($C$23:$C$244,"Developing",H$23:H$244) -> 2870178189 | I7: 3333754873 | J7: 3708191075 | K7: 3165959334 | L7: 4012354660 | M7: 4664387243 | N7: 4902307087 | O7: 5163063324 | P7: 5386542274
F8: Transition | G8: =SUMIF($C$23:$C$244,"*Transition*",G$23:G$244) -> 89303967.83 | H8: =SUMIF($C$23:$C$244,"*Transition*",H$23:H$244) -> 102845437 | I8: 131925907.9 | J8: 172737207.8 | K8: 104570412.4 | L8: 126604566.2 | M8: 162161434.7 | N8: 180629274.4 | O8: 172559186.4 | P8: 162521535.8
F9: Developing HIC* | G9: =SUMIF($D$23:$D$244,"HIC",G$23:G$244) -> 1410406051 | H9: =SUMIF($D$23:$D$244,"HIC",H$23:H$244) -> 1593735068 | I9: 1761334948 | J9: 1878444672 | K9: 1592479477 | L9: 1994933732 | M9: 2250616428 | N9: 2296658926 | O9: 2359064813 | P9: 2428168826
F10: Developing MIC* | G10: =SUMIF($D$23:$D$244,"MIC",G$23:G$244) -> 920866306.3 | H10: =SUMIF($D$23:$D$244,"MIC",H$23:H$244) -> 1146203451 | I10: 1421724974 | J10: 1646626355 | K10: 1391669218 | L10: 1799236091 | M10: 2133146883 | N10: 2299216191 | O10: 2456078475 | P10: 2596277459
F11: Developing LIC* | G11: =SUMIF($D$23:$D$244,"LIC",G$23:G$244) -> 110906393.6 | H11: =SUMIF($D$23:$D$244,"LIC",H$23:H$244) -> 130239669.5 | I11: 150694951.7 | J11: 183120047.6 | K11: 181810638.6 | L11: 218184836.7 | M11: 280623932.5 | N11: 306431970.1 | O11: 347920036.7 | P11: 362095989.9
F12: LDC** | G12: =SUMIF($E$23:$E$244,"LDC",G$23:G$244) -> 17396731.63 | H12: =SUMIF($E$23:$E$244,"LDC",H$23:H$244) -> 21013806.07 | I12: 24299488.03 | J12: 27584482.62 | K12: 27211119.24 | L12: 31513551.3 | M12: 39701429.18 | N12: 42448533.76 | O12: 48883876.33 | P12: 50151234.9
D14: Imports | F14: Developed | G14: =SUMIF($C$245:$C$466,"Developed",G$245:G$466) -> 4975745259 | H14: =SUMIF($C$245:$C$466,"Developed",H$245:H$466) -> 5531352611 | I14: 6203761703 | J14: 6600770746 | K14: 5133164089 | L14: 5900782874 | M14: 6705318724 | N14: 6459384385 | O14: 6620968619 | P14: 6937981474
F15: Developing | G15: =SUMIF($C$245:$C$466,"Developing",G$245:G$466) -> 2454615436 | H15: =SUMIF($C$245:$C$466,"Developing",H$245:H$466) -> 2796732937 | I15: 3223827435 | J15: 3676064724 | K15: 3118828738 | L15: 3965703203 | M15: 4527282088 | N15: 4728044914 | O15: 4910899140 | P15: 5000819057
F16: Transition | G16: =SUMIF($C$245:$C$466,"*transition*",G$245:G$466) -> 168514219.1 | H16: =SUMIF($C$245:$C$466,"*transition*",H$245:H$466) -> 221496570.8 | I16: 288949347.2 | J16: 379237402.3 | K16: 237262281.8 | L16: 300424638.1 | M16: 395940525.5 | N16: 426401980.3 | O16: 431138900.6 | P16: 386630100.2
F17: Developing HIC* | G17: =SUMIF($D$245:$D$466,"HIC",G$245:G$466) -> 1404245787 | H17: =SUMIF($D$245:$D$466,"HIC",H$245:H$466) -> 1603645962 | I17: 1816095075 | J17: 2010123279 | K17: 1639118385 | L17: 2098693274 | M17: 2373725244 | N17: 2464124727 | O17: 2550306250 | P17: 2580276157
F18: Developing MIC* | G18: =SUMIF($D$245:$D$466,"MIC",G$245:G$466) -> 837083898.2 | H18: =SUMIF($D$245:$D$466,"MIC",H$245:H$466) -> 954036845.3 | I18: 1118229490 | J18: 1288932535 | K18: 1139004675 | L18: 1460725576 | M18: 1676379025 | N18: 1751827826 | O18: 1815612283 | P18: 1842663174
F19: Developing LIC* | G19: =SUMIF($D$245:$D$466,"LIC",G$245:G$466) -> 213285750.4 | H19: =SUMIF($D$245:$D$466,"LIC",H$245:H$466) -> 239050129.8 | I19: 289502869.6 | J19: 377008909 | K19: 340705677.8 | L19: 406284353.4 | M19: 477177819.2 | N19: 512092361.2 | O19: 544980608.2 | P19: 577879726.1
F20: LDC** | G20: =SUMIF($E$245:$E$466,"LDC",G$245:G$466) -> 56736225.72 | H20: =SUMIF($E$245:$E$466,"LDC",H$245:H$466) -> 66029758 | I20: 81143452.58 | J20: 103543819.9 | K20: 99018535.6 | L20: 105657005 | M20: 125865835.6 | N20: 140993807.9 | O20: 155773530.1 | P20: 170686654.6
F21: Subtotal of all filtered rows | G21: =SUBTOTAL(9,G23:G4999) -> 1.496502947e+10 | H21: =SUBTOTAL(9,H23:H4999) -> 1.692272153e+10 | I21: 1.928120091e+10 | J21: 2.114345311e+10 | K21: 1.682267481e+10 | L21: 2.014667235e+10 | M21: 2.313410731e+10 | N21: 2.313201611e+10 | O21: 2.387924424e+10 | P21: 2.461390066e+10
A23: Export | B23: Afghanistan | C23: Developing | D23: LIC | E23: LDC | F23: Manufactured goods (SITC 5 to 8 less 667 and 68) | G23: 54309.332 | H23: 56602.543 | I23: 46965.235 | J23: 164074.895 | K23: 194816.492 | L23: 83886.41 | M23: 53919.102 | N23: 41340.144 | O23: 43461.545 | P23: 39297.417
A24: Export | B24: Albania | C24: Developing (transition) | F24: Manufactured goods (SITC 5 to 8 less 667 and 68) | G24: 495479.891 | H24: 561521.732 | I24: 714719.885 | J24: 896506.257 | K24: 802687.567 | L24: 946398.913 | M24: 1179086.306 | N24: 1080376.236 | O24: 1176858.914 | P24: 1031963.681
A25: Export | B25: Algeria | C25: Developing | D25: MIC | F25: Manufactured goods (SITC 5 to 8 less 667 and 68) | G25: 439121.101 | H25: 573994.232 | I25: 566172.664 | J25: 825207.487 | K25: 392246.005 | L25: 460469.148 | M25: 658398.159 | N25: 645747.117 | O25: 572105.752 | P25: 1202757.006
A26: Export | B26: American Samoa | C26: Developing | D26: HIC | F26: Manufactured goods (SITC 5 to 8 less 667 and 68) | G26: 151885.942 | H26: 52494.59 | I26: 179464.701 | J26: 261970.584 | K26: 274526.386 | L26: 163008.712 | M26: 203465.906 | N26: 184651.202 | O26: 222802.4 | P26: 177371.865
A27: Export | B27: Andorra | C27: Developed | F27: Manufactured goods (SITC 5 to 8 less 667 and 68) | G27: 96215.945 | H27: 109275.676 | I27: 140476.199 | J27: 109410.438 | K27: 85171.351 | L27: 82712.541 | M27: 102661.15 | N27: 94964.567 | O27: 91514.648 | P27: 87064.069
A28: Export | B28: Angola | C28: Developing | D28: MIC | E28: LDC | F28: Manufactured goods (SITC 5 to 8 less 667 and 68) | G28: 59218.616 | H28: 43648.962 | I28: 289068.166 | J28: 210194.33 | K28: 328992.191 | L28: 399341.761 | M28: 389790.956 | N28: 816816.106 | O28: 976844.037 | P28: 80872.696
A29: Export | B29: Anguilla | C29: Developing | D29: HIC | F29: Manufactured goods (SITC 5 to 8 less 667 and 68) | G29: 8873.255 | H29: 2488.136 | I29: 3632.58 | J29: 3550.797 | K29: 16357.586 | L29: 9510.176 | M29: 8238.049 | N29: 14956.014 | O29: 19520.057 | P29: 24835.068
A30: Export | B30: Antigua and Barbuda | C30: Developing | D30: HIC | F30: Manufactured goods (SITC 5 to 8 less 667 and 68) | G30: 70421.998 | H30: 67806.312 | I30: 49626.938 | J30: 45693.075 | K30: 43457.257 | L30: 41017.652 | M30: 9428.588 | N30: 41052.806 | O30: 33547.114 | P30: 28044.885
A31: Export | B31: Argentina | C31: Developing | D31: HIC | F31: Manufactured goods (SITC 5 to 8 less 667 and 68) | G31: 12286393.76 | H31: 14787770.07 | I31: 17266386.69 | J31: 21598903.19 | K31: 17800686.06 | L31: 21959599.2 | M31: 26423502.41 | N31: 25260737.57 | O31: 24694946.23 | P31: 21333655.18
A32: Export | B32: Armenia | C32: Developing (transition) | F32: Manufactured goods (SITC 5 to 8 less 667 and 68) | G32: 412064.661 | H32: 362397.634 | I32: 470564.822 | J32: 429342.648 | K32: 211743.036 | L32: 262361.426 | M32: 298477.118 | N32: 365671.229 | O32: 325316.593 | P32: 309830.191
A33: Export | B33: Aruba | C33: Developing | D33: HIC | F33: Manufactured goods (SITC 5 to 8 less 667 and 68) | G33: 77013.247 | H33: 95660.687 | I33: 90567.526 | J33: 99428.676 | K33: 43313.506 | L33: 35179.405 | M33: 43874.302 | N33: 28587.393 | O33: 25760.779 | P33: 67327.052
A34: Export | B34: Australia | C34: Developed | F34: Manufactured goods (SITC 5 to 8 less 667 and 68) | G34: 21316801.49 | H34: 21866188.92 | I34: 25829469.28 | J34: 28671138.47 | K34: 22601119.58 | L34: 26531313.9 | M34: 30767831.12 | N34: 31278319.86 | O34: 29128275.07 | P34: 28131818.19
A35: Export | B35: Austria | C35: Developed | F35: Manufactured goods (SITC 5 to 8 less 667 and 68) | G35: 94873653.71 | H35: 107556118.2 | I35: 128798781.6 | J35: 139524308.5 | K35: 105368961.8 | L35: 115237377.9 | M35: 134560103 | N35: 125954093.4 | O35: 134198547.5 | P35: 138849721
A36: Export | B36: Azerbaijan | C36: Developing (transition) | F36: Manufactured goods (SITC 5 to 8 less 667 and 68) | G36: 891395.649 | H36: 634185.011 | I36: 771397.958 | J36: 547104.473 | K36: 549464.058 | L36: 677566.322 | M36: 729788.824 | N36: 720082.963 | O36: 779606.847 | P36: 554785.52
A37: Export | B37: Bahamas | C37: Developing | D37: HIC | F37: Manufactured goods (SITC 5 to 8 less 667 and 68) | G37: 313834.903 | H37: 457159.033 | I37: 372250.993 | J37: 462129.929 | K37: 253798.13 | L37: 228171.707 | M37: 217432.328 | N37: 218127.969 | O37: 564977.045 | P37: 400309.147
A38: Export | B38: Bahrain | C38: Developing | D38: HIC | F38: Manufactured goods (SITC 5 to 8 less 667 and 68) | G38: 2085511.463 | H38: 2093660.117 | I38: 3210908.313 | J38: 3931766.556 | K38: 3321078.972 | L38: 3543136.941 | M38: 4261506.649 | N38: 4922018.688 | O38: 5798391.888 | P38: 6599732.143
A39: Export | B39: Bangladesh | C39: Developing | D39: LIC | E39: LDC | F39: Manufactured goods (SITC 5 to 8 less 667 and 68) | G39: 8589264.355 | H39: 10770771.55 | I39: 11895279.02 | J39: 14308010.26 | K39: 14504294.91 | L39: 17810295.5 | M39: 22683757.38 | N39: 23159926.95 | O39: 26955639.82 | P39: 28052321.6
A40: Export | B40: Barbados | C40: Developing | D40: HIC | F40: Manufactured goods (SITC 5 to 8 less 667 and 68) | G40: 117380.01 | H40: 228818.146 | I40: 218989.342 | J40: 184052.891 | K40: 241764.031 | L40: 261841.483 | M40: 195615.099 | N40: 303332.079 | O40: 256205.536 | P40: 276043.145
A41: Export | B41: Belarus | C41: Developing (transition) | F41: Manufactured goods (SITC 5 to 8 less 667 and 68) | G41: 8296025.6 | H41: 9921236.2 | I41: 12905571.3 | J41: 17161686.6 | K41: 10145535 | L41: 13351088.5 | M41: 20092387.7 | N41: 22431669.7 | O41: 17305484.8 | P41: 16649153
A42: Export | B42: Belgium | C42: Developed | F42: Manufactured goods (SITC 5 to 8 less 667 and 68) | G42: 247540407.7 | H42: 266576401.6 | I42: 316554100.1 | J42: 338681429.7 | K42: 272156513.7 | L42: 288066229.7 | M42: 325669361.5 | N42: 302765876.4 | O42: 341320159.6 | P42: 320007060.6
A43: Export | B43: Belize | C43: Developing | D43: MIC | F43: Manufactured goods (SITC 5 to 8 less 667 and 68) | G43: 62916.594 | H43: 89785.208 | I43: 72630.138 | J43: 253821.206 | K43: 176328.521 | L43: 38578.876 | M43: 130692.697 | N43: 65597.609 | O43: 92476.844 | P43: 170769.839
A44: Export | B44: Benin | C44: Developing | D44: LIC | E44: LDC | F44: Manufactured goods (SITC 5 to 8 less 667 and 68) | G44: 48393.793 | H44: 64727.973 | I44: 214572.657 | J44: 135194.129 | K44: 151469.222 | L44: 89900.142 | M44: 119980.059 | N44: 124598.131 | O44: 215978.166 | P44: 367756.783
A45: Export | B45: Bermuda | C45: Developed | F45: Manufactured goods (SITC 5 to 8 less 667 and 68) | G45: 44189.985 | H45: 17615.695 | I45: 19213.798 | J45: 18097.216 | K45: 4766.552 | L45: 11979.421 | M45: 9700.309 | N45: 4741.578 | O45: 1726.473 | P45: 6610.785
A46: Export | B46: Bhutan | C46: Developing | D46: MIC | E46: LDC | F46: Manufactured goods (SITC 5 to 8 less 667 and 68) | G46: 126184.747 | H46: 204905.737 | I46: 295425.049 | J46: 161549.316 | K46: 188348.574 | L46: 454900.908 | M46: 455991.337 | N46: 294032.24 | O46: 327165.35 | P46: 343181.203
A47: Export | B47: Bolivia (Plurinational State of) | C47: Developing | D47: MIC | F47: Manufactured goods (SITC 5 to 8 less 667 and 68) | G47: 315722.322 | H47: 402808.137 | I47: 376041.8 | J47: 437181.531 | K47: 363434.456 | L47: 496553.529 | M47: 389501.452 | N47: 588619.427 | O47: 450017.917 | P47: 417787.462
A48: Export | B48: Bonaire, Sint Eustatius and Saba | C48: Developing | D48: HIC | F48: Manufactured goods (SITC 5 to 8 less 667 and 68) | G48: _ | H48: _ | I48: _ | J48: _ | K48: _ | L48: _ | M48: 5257.226 | N48: 4419.851 | O48: 630.899 | P48: 8.8
A49: Export | B49: Bosnia and Herzegovina | C49: Developing (transition) | F49: Manufactured goods (SITC 5 to 8 less 667 and 68) | G49: 1283864.569 | H49: 1985178.982 | I49: 2575101.813 | J49: 3227546.831 | K49: 2518233.842 | L49: 2782407.21 | M49: 3429489.147 | N49: 3218497.865 | O49: 3577506.693 | P49: 3879189.117
A50: Export | B50: Botswana | C50: Developing | D50: HIC | F50: Manufactured goods (SITC 5 to 8 less 667 and 68) | G50: 270875.699 | H50: 253604.021 | I50: 432700.525 | J50: 579096.663 | K50: 623891.958 | L50: 704217.208 | M50: 512876.148 | N50: 438162.273 | O50: 357961.642 | P50: 393414.756
A51: Export | B51: Brazil | C51: Developing | D51: HIC | F51: Manufactured goods (SITC 5 to 8 less 667 and 68) | G51: 61765852.06 | H51: 68430971.45 | I51: 74972442.53 | J51: 86545715.32 | K51: 58380036.68 | L51: 70610708.36 | M51: 84218499.55 | N51: 82048630.51 | O51: 85111480.59 | P51: 74972852.36
A52: Export | B52: British Virgin Islands | C52: Developing | D52: HIC | F52: Manufactured goods (SITC 5 to 8 less 667 and 68) | G52: 29498.359 | H52: 18937.299 | I52: 25912.859 | J52: 19498.343 | K52: 20645.63 | L52: 22561.268 | M52: 21808.575 | N52: 35668.053 | O52: 29688.519 | P52: 30133.324
A53: Export | B53: Brunei Darussalam | C53: Developing | D53: HIC | F53: Manufactured goods (SITC 5 to 8 less 667 and 68) | G53: 435012.733 | H53: 311145.832 | I53: 369167.605 | J53: 205440.735 | K53: 170141.644 | L53: 161692.609 | M53: 214215.149 | N53: 434579.537 | O53: 232102.582 | P53: 465912.698
A54: Export | B54: Bulgaria | C54: Developed | F54: Manufactured goods (SITC 5 to 8 less 667 and 68) | G54: 6956499.535 | H54: 8049335.964 | I54: 10296310.11 | J54: 11524090.64 | K54: 8709034.446 | L54: 10149015.14 | M54: 13596825.75 | N54: 12692761.59 | O54: 14172013.6 | P54: 15263957.36
A55: Export | B55: Burkina Faso | C55: Developing | D55: LIC | E55: LDC | F55: Manufactured goods (SITC 5 to 8 less 667 and 68) | G55: 29332.113 | H55: 60773.673 | I55: 44654.136 | J55: 52616.37 | K55: 65323.765 | L55: 101452.695 | M55: 102305.274 | N55: 121796.66 | O55: 167132.723 | P55: 201706.356
A56: Export | B56: Burundi | C56: Developing | D56: LIC | E56: LDC | F56: Manufactured goods (SITC 5 to 8 less 667 and 68) | G56: 2493.596 | H56: 20761.067 | I56: 10132.829 | J56: 9479.123 | K56: 7676.039 | L56: 6121.58 | M56: 13221.69 | N56: 27899.643 | O56: 10762.089 | P56: 28747.924
A57: Export | B57: Cabo Verde | C57: Developing | D57: MIC | F57: Manufactured goods (SITC 5 to 8 less 667 and 68) | G57: 6173.059 | H57: 6575.678 | I57: 7799.788 | J57: 15427.786 | K57: 14178.162 | L57: 13354.433 | M57: 15091.544 | N57: 11495.601 | O57: 14699.414 | P57: 18277.073
A58: Export | B58: Cambodia | C58: Developing | D58: LIC | E58: LDC | F58: Manufactured goods (SITC 5 to 8 less 667 and 68) | G58: 2793736.215 | H58: 3316589.253 | I58: 3783911.262 | J58: 4011037.85 | K58: 3664663.168 | L58: 5006555.477 | M58: 5862481.832 | N58: 6743615.751 | O58: 8167733.289 | P58: 9403333.465
A59: Export | B59: Cameroon | C59: Developing | D59: LIC | F59: Manufactured goods (SITC 5 to 8 less 667 and 68) | G59: 169043.485 | H59: 153880.683 | I59: 387110.72 | J59: 579043.819 | K59: 456128.468 | L59: 313892.987 | M59: 636066.902 | N59: 364774.452 | O59: 445229.54 | P59: 422560.973
A60: Export | B60: Canada | C60: Developed | F60: Manufactured goods (SITC 5 to 8 less 667 and 68) | G60: 205111770.3 | H60: 214338329.8 | I60: 223127942.4 | J60: 212191575.6 | K60: 156058267 | L60: 184429451.1 | M60: 202204355.2 | N60: 209573526.4 | O60: 205581344.7 | P60: 210535075.2
A61: Export | B61: Cayman Islands | C61: Developing | D61: HIC | F61: Manufactured goods (SITC 5 to 8 less 667 and 68) | G61: 52737.043 | H61: 23078.711 | I61: 9255.086 | J61: 12885.589 | K61: 16745.091 | L61: 13118.461 | M61: 21135.722 | N61: 18740.269 | O61: 28525.424 | P61: 16589.836
A62: Export | B62: Central African Republic | C62: Developing | D62: LIC | E62: LDC | F62: Manufactured goods (SITC 5 to 8 less 667 and 68) | G62: 7457.085 | H62: 5319.468 | I62: 10453.779 | J62: 8449.741 | K62: 11342.623 | L62: 13737.287 | M62: 7472.762 | N62: 17307.944 | O62: 18529.516 | P62: 7015.271
A63: Export | B63: Chad | C63: Developing | D63: LIC | E63: LDC | F63: Manufactured goods (SITC 5 to 8 less 667 and 68) | G63: 69401.113 | H63: 34652.449 | I63: 35096.245 | J63: 43251.844 | K63: 64871.089 | L63: 57622.18 | M63: 79168.684 | N63: 36239.417 | O63: 40127.496 | P63: 36964.042
A64: Export | B64: Chile | C64: Developing | D64: HIC | F64: Manufactured goods (SITC 5 to 8 less 667 and 68) | G64: 6147581.516 | H64: 7404389.579 | I64: 8158016.551 | J64: 9815504.075 | K64: 7035780.925 | L64: 8493686.646 | M64: 10568451.85 | N64: 10437877.11 | O64: 9976059.019 | P64: 10289605.69
A65: Export | B65: China | C65: Developing | D65: MIC | F65: Manufactured goods (SITC 5 to 8 less 667 and 68) | G65: 698709904.1 | H65: 893518991.2 | I65: 1134028206 | J65: 1329093944 | K65: 1123018058 | L65: 1474287518 | M65: 1768476310 | N65: 1921607352 | O65: 2073541507 | P65: 2197872068
A66: Export | B66: China, Hong Kong SAR | C66: Developing | D66: HIC | F66: Manufactured goods (SITC 5 to 8 less 667 and 68) | G66: 274621623.3 | H66: 298568642.1 | I66: 323331956.2 | J66: 337219149.7 | K66: 295914990.2 | L66: 360864645.3 | M66: 392061274.2 | N66: 408293799.4 | O66: 423422731.1 | P66: 435195901
A67: Export | B67: China, Macao SAR | C67: Developing | D67: HIC | F67: Manufactured goods (SITC 5 to 8 less 667 and 68) | G67: 2378513.393 | H67: 2421217.243 | I67: 2373134.194 | J67: 1873248.414 | K67: 861645.241 | L67: 731739.031 | M67: 726464.241 | N67: 790806.683 | O67: 923174.147 | P67: 951338.829
A68: Export | B68: China, Taiwan Province of | C68: Developing | D68: HIC | F68: Manufactured goods (SITC 5 to 8 less 667 and 68) | G68: 171738040.8 | H68: 202359228.1 | I68: 220503056.1 | J68: 223086924.3 | K68: 180170636.9 | L68: 244778337.3 | M68: 270764334.3 | N68: 261914050.2 | O68: 263913441.5 | P68: 282921872.5
A69: Export | B69: Colombia | C69: Developing | D69: MIC | F69: Manufactured goods (SITC 5 to 8 less 667 and 68) | G69: 7285379.57 | H69: 8589213.495 | I69: 11627002.32 | J69: 11698313.55 | K69: 8930850.996 | L69: 8643554.891 | M69: 9815188.821 | N69: 9844862.09 | O69: 9829662.168 | P69: 9249101.696
A70: Export | B70: Comoros | C70: Developing | D70: LIC | E70: LDC | F70: Manufactured goods (SITC 5 to 8 less 667 and 68) | G70: 3197.382 | H70: 6635.527 | I70: 9853.172 | J70: 3914.355 | K70: 7473.576 | L70: 12310.611 | M70: 14134.202 | N70: 10452.501 | O70: 10672.75 | P70: 13111.623
A71: Export | B71: Congo | C71: Developing | D71: MIC | F71: Manufactured goods (SITC 5 to 8 less 667 and 68) | G71: 48378.334 | H71: 46126.675 | I71: 147116.954 | J71: 378616.243 | K71: 671796.969 | L71: 872799.249 | M71: 720217.549 | N71: 447062.075 | O71: 759015.763 | P71: 329706.288
A72: Export | B72: Cook Islands | C72: Developing | D72: HIC | F72: Manufactured goods (SITC 5 to 8 less 667 and 68) | G72: 445.724 | H72: 1508.543 | I72: .. | J72: 1597.898 | K72: 684.215 | L72: 483.918 | M72: 190.633 | N72: 2755.619 | O72: 3671.531 | P72: 5142.806
A73: Export | B73: Costa Rica | C73: Developing | D73: HIC | F73: Manufactured goods (SITC 5 to 8 less 667 and 68) | G73: 4893027.516 | H73: 5602435.416 | I73: 5808427.78 | J73: 6424428.724 | K73: 5691604.414 | L73: 6514759.016 | M73: 7368831.325 | N73: 8345977.793 | O73: 8581107.003 | P73: 8489426.828
A74: Export | B74: Côte d'Ivoire | C74: Developing | D74: LIC | F74: Manufactured goods (SITC 5 to 8 less 667 and 68) | G74: 1806597.857 | H74: 1583208.883 | I74: 1459231.382 | J74: 1207518.76 | K74: 1575218.837 | L74: 1657267.498 | M74: 1047576.411 | N74: 1078194.375 | O74: 2970299.147 | P74: 2110858.066
A75: Export | B75: Croatia | C75: Developed | F75: Manufactured goods (SITC 5 to 8 less 667 and 68) | G75: 6005410.402 | H75: 6832693.666 | I75: 8457455.782 | J75: 9842990.961 | K75: 7012497.982 | L75: 8025249.538 | M75: 8928841.727 | N75: 7732367.93 | O75: 8002473.764 | P75: 8770878.678
A76: Export | B76: Cuba | C76: Developing | D76: MIC | F76: Manufactured goods (SITC 5 to 8 less 667 and 68) | G76: 327457.668 | H76: 462162.101 | I76: 390834.085 | J76: 864251.543 | K76: 1109586.928 | L76: 1175202.592 | M76: 1744556.871 | N76: 1686196.03 | O76: 1678666.138 | P76: 1661190.349
A77: Export | B77: Cyprus | C77: Developed | F77: Manufactured goods (SITC 5 to 8 less 667 and 68) | G77: 970846.581 | H77: 783577.217 | I77: 788885.843 | J77: 844418.734 | K77: 752137.668 | L77: 815682.762 | M77: 993812.597 | N77: 900733.298 | O77: 1175713.469 | P77: 1005265.332
A78: Export | B78: Czech Republic | C78: Developed | F78: Manufactured goods (SITC 5 to 8 less 667 and 68) | G78: 68933542.45 | H78: 84322236.88 | I78: 109056510.9 | J78: 127586489.3 | K78: 97859787.45 | L78: 114141265 | M78: 143510743 | N78: 136877379.6 | O78: 142363078.8 | P78: 154360488.6
A79: Export | B79: Dem. Rep. of the Congo | C79: Developing | D79: LIC | E79: LDC | F79: Manufactured goods (SITC 5 to 8 less 667 and 68) | G79: 67205.022 | H79: 70395.693 | I79: 74374.828 | J79: 103437.233 | K79: 84909.305 | L79: 267958.063 | M79: 286887.173 | N79: 197653.856 | O79: 308319.447 | P79: 139318.053
A80: Export | B80: Denmark | C80: Developed | F80: Manufactured goods (SITC 5 to 8 less 667 and 68) | G80: 51850833.11 | H80: 56745565.35 | I80: 65912764.41 | J80: 73392230.49 | K80: 59323308.46 | L80: 57942526.12 | M80: 67768700.78 | N80: 62035525.76 | O80: 64500312.61 | P80: 67533038.13
A81: Export | B81: Djibouti | C81: Developing | D81: LIC | E81: LDC | F81: Manufactured goods (SITC 5 to 8 less 667 and 68) | G81: 22923.036 | H81: 23167.924 | I81: 6518.192 | J81: 8012.926 | K81: 9865.421 | L81: 16432.893 | M81: 17171.948 | N81: 25797.41 | O81: 27882.652 | P81: 34947.307
A82: Export | B82: Dominica | C82: Developing | D82: HIC | F82: Manufactured goods (SITC 5 to 8 less 667 and 68) | G82: 24899.212 | H82: 24309.879 | I82: 20273.198 | J82: 18938.959 | K82: 14641.796 | L82: 24477.046 | M82: 17173.081 | N82: 29242.183 | O82: 29735.153 | P82: 29951.252
A83: Export | B83: Dominican Republic | C83: Developing | D83: MIC | F83: Manufactured goods (SITC 5 to 8 less 667 and 68) | G83: 4948912.326 | H83: 4759886.344 | I83: 5179941.679 | J83: 4669168.201 | K83: 3619898.915 | L83: 4225042.07 | M83: 5260679.982 | N83: 5561017.483 | O83: 5442301.518 | P83: 5225140.403
A84: Export | B84: Ecuador | C84: Developing | D84: MIC | F84: Manufactured goods (SITC 5 to 8 less 667 and 68) | G84: 721441.633 | H84: 1110756.368 | I84: 1081895.943 | J84: 1468497.482 | K84: 1190167.086 | L84: 1671753.455 | M84: 1674189.029 | N84: 1884152.05 | O84: 1496829.082 | P84: 1439357.039
A85: Export | B85: Egypt | C85: Developing | D85: MIC | F85: Manufactured goods (SITC 5 to 8 less 667 and 68) | G85: 4059532.115 | H85: 4753541.367 | I85: 5294747.239 | J85: 9306040.003 | K85: 9572810.733 | L85: 10503371.32 | M85: 12315667.91 | N85: 11658933.29 | O85: 12461766.48 | P85: 12487734.45
A86: Export | B86: El Salvador | C86: Developing | D86: MIC | F86: Manufactured goods (SITC 5 to 8 less 667 and 68) | G86: 2632969.706 | H86: 2834519.47 | I86: 2971935.119 | J86: 3404221.627 | K86: 2660790.672 | L86: 3148691.452 | M86: 3484946.588 | N86: 3712286.124 | O86: 3973673.548 | P86: 3982510.161
A87: Export | B87: Equatorial Guinea | C87: Developing | D87: HIC | E87: LDC | F87: Manufactured goods (SITC 5 to 8 less 667 and 68) | G87: 295809.992 | H87: 243655.753 | I87: 441459.901 | J87: 369634.47 | K87: 276633.089 | L87: 291144.386 | M87: 511064.934 | N87: 606910.994 | O87: 571321.617 | P87: 558528.186
A88: Export | B88: Eritrea | C88: Developing | D88: LIC | E88: LDC | F88: Manufactured goods (SITC 5 to 8 less 667 and 68) | G88: 6252.475 | H88: 7380.698 | I88: 9874.421 | J88: 6066.146 | K88: 5880.705 | L88: 6058.203 | M88: 46698.687 | N88: 52148.539 | O88: 45459.623 | P88: 72568.089
A89: Export | B89: Estonia | C89: Developed | F89: Manufactured goods (SITC 5 to 8 less 667 and 68) | G89: 5427649.35 | H89: 6076656.364 | I89: 7348334.587 | J89: 8897795.684 | K89: 5531313.224 | L89: 8235256.896 | M89: 11852597.04 | N89: 10436484.17 | O89: 10980920.55 | P89: 11457058.69
A90: Export | B90: Ethiopia | C90: Developing | D90: LIC | E90: LDC | F90: Manufactured goods (SITC 5 to 8 less 667 and 68) | G90: 75723.402 | H90: 104175.502 | I90: 129701.314 | J90: 166385.024 | K90: 157814.857 | L90: 197389.567 | M90: 258350.473 | N90: 278612.438 | O90: 400123.28 | P90: 398327.296
A91: Export | B91: Faeroe Islands | C91: Developed | F91: Manufactured goods (SITC 5 to 8 less 667 and 68) | G91: 41463.994 | H91: 23979.933 | I91: 28199.803 | J91: 134099.887 | K91: 56239.821 | L91: 49398.93 | M91: 71068.945 | N91: 72094.611 | O91: 75396.214 | P91: 93318.757
A92: Export | B92: Falkland Islands (Malvinas) | C92: Developing | D92: HIC | F92: Manufactured goods (SITC 5 to 8 less 667 and 68) | G92: 1190.544 | H92: 1777.842 | I92: 1543.525 | J92: 16506.411 | K92: 2217.968 | L92: 1303.891 | M92: 1531.225 | N92: 1369.412 | O92: 1217.103 | P92: 4698.629
A93: Export | B93: Fiji | C93: Developing | D93: MIC | F93: Manufactured goods (SITC 5 to 8 less 667 and 68) | G93: 162233.672 | H93: 149705.389 | I93: 175436.57 | J93: 196952.314 | K93: 134948.675 | L93: 166724.694 | M93: 194683.918 | N93: 221380.61 | O93: 258732.79 | P93: 296509.316
A94: Export | B94: Finland | C94: Developed | F94: Manufactured goods (SITC 5 to 8 less 667 and 68) | G94: 54973637.29 | H94: 62758259.5 | I94: 72567438.61 | J94: 78703582.53 | K94: 48522203.34 | L94: 53643234.44 | M94: 57980678.71 | N94: 52250119.85 | O94: 52016384.95 | P94: 53213658.82
A95: Export | B95: France | C95: Developed | F95: Manufactured goods (SITC 5 to 8 less 667 and 68) | G95: 347797081.6 | H95: 379760202.2 | I95: 426449970.3 | J95: 460370683.9 | K95: 364496790.7 | L95: 399974945.2 | M95: 442187523.8 | N95: 425662435.9 | O95: 436744389.3 | P95: 438927870.5
A96: Export | B96: French Polynesia | C96: Developing | D96: HIC | F96: Manufactured goods (SITC 5 to 8 less 667 and 68) | G96: 52884.047 | H96: 32542.462 | I96: 23838.46 | J96: 37820.804 | K96: 43004.738 | L96: 19795.897 | M96: 20974.618 | N96: 15316.275 | O96: 18945.412 | P96: 16531.6
A97: Export | B97: Gabon | C97: Developing | D97: HIC | F97: Manufactured goods (SITC 5 to 8 less 667 and 68) | G97: 190772.442 | H97: 239048.737 | I97: 291208.999 | J97: 468974.764 | K97: 284467.776 | L97: 411074.199 | M97: 433796.425 | N97: 429713.598 | O97: 412133.695 | P97: 964261.49
A98: Export | B98: Gambia | C98: Developing | D98: LIC | E98: LDC | F98: Manufactured goods (SITC 5 to 8 less 667 and 68) | G98: 1799.56 | H98: 2171.274 | I98: 1808.512 | J98: 1600.032 | K98: 11063.133 | L98: 10181.126 | M98: 13657.181 | N98: 24047.481 | O98: 23619.161 | P98: 27120.588
A99: Export | B99: Georgia | C99: Developing (transition) | F99: Manufactured goods (SITC 5 to 8 less 667 and 68) | G99: 333125.621 | H99: 399523.774 | I99: 548562.663 | J99: 773568.543 | K99: 473073.213 | L99: 845210.612 | M99: 1262595.11 | N99: 1507276.532 | O99: 1731792.778 | P99: 1586957.331
A100: Export | B100: Germany | C100: Developed | F100: Manufactured goods (SITC 5 to 8 less 667 and 68) | G100: 840124901 | H100: 952025214 | I100: 1096252987 | J100: 1201128855 | K100: 917632459 | L100: 1039835053 | M100: 1226343040 | N100: 1160685432 | O100: 1201741649 | P100: 1248635604
A101: Export | B101: Ghana | C101: Developing | D101: LIC | F101: Manufactured goods (SITC 5 to 8 less 667 and 68) | G101: 377111.54 | H101: 380282.561 | I101: 479326.146 | J101: 528892.486 | K101: 628313.385 | L101: 776254.27 | M101: 800875.274 | N101: 1000606.661 | O101: 1153381.133 | P101: 834805.271
A102: Export | B102: Gibraltar | C102: Developed | F102: Manufactured goods (SITC 5 to 8 less 667 and 68) | G102: 155553.614 | H102: 180874.087 | I102: 207033.776 | J102: 200790.54 | K102: 108379.126 | L102: 79411.576 | M102: 104900.391 | N102: 63403.473 | O102: 74741.668 | P102: 70675.651
A103: Export | B103: Greece | C103: Developed | F103: Manufactured goods (SITC 5 to 8 less 667 and 68) | G103: 9642496.498 | H103: 10639324.71 | I103: 12303111.36 | J103: 14391617.52 | K103: 11151158.07 | L103: 11153474.6 | M103: 12464602.18 | N103: 11218134.77 | O103: 11217913.19 | P103: 11630505.59
A104: Export | B104: Greenland | C104: Developed | F104: Manufactured goods (SITC 5 to 8 less 667 and 68) | G104: 10536.995 | H104: 28560.435 | I104: 12053.463 | J104: 11391.847 | K104: 17767.909 | L104: 28077.081 | M104: 20039.741 | N104: 7052.771 | O104: 11157.772 | P104: 16895.901
A105: Export | B105: Grenada | C105: Developing | D105: HIC | F105: Manufactured goods (SITC 5 to 8 less 667 and 68) | G105: 8452.667 | H105: 11314.518 | I105: 7957.738 | J105: 19081.606 | K105: 15327.311 | L105: 13021.499 | M105: 16444.379 | N105: 17891.668 | O105: 19294.433 | P105: 18649.312
A106: Export | B106: Guam | C106: Developing | D106: HIC | F106: Manufactured goods (SITC 5 to 8 less 667 and 68) | G106: 10944.144 | H106: 9255.686 | I106: 15214.805 | J106: 36895.686 | K106: 23456.153 | L106: 12832.16 | M106: 9017.848 | N106: 8222.184 | O106: 8817.214 | P106: 8735.859
A107: Export | B107: Guatemala | C107: Developing | D107: MIC | F107: Manufactured goods (SITC 5 to 8 less 667 and 68) | G107: 2857346.676 | H107: 2656072.049 | I107: 3246510.349 | J107: 3406141.421 | K107: 2873314.336 | L107: 3322022.06 | M107: 3689442.593 | N107: 3800634.038 | O107: 3938360.257 | P107: 4111846.744
A108: Export | B108: Guinea | C108: Developing | D108: LIC | E108: LDC | F108: Manufactured goods (SITC 5 to 8 less 667 and 68) | G108: 8892.702 | H108: 30406.814 | I108: 32585.596 | J108: 29300.452 | K108: 35733.203 | L108: 31042.035 | M108: 33811.905 | N108: 38516.891 | O108: 28101.845 | P108: 29219.814
A109: Export | B109: Guinea-Bissau | C109: Developing | D109: LIC | E109: LDC | F109: Manufactured goods (SITC 5 to 8 less 667 and 68) | G109: 815.784 | H109: 718.652 | I109: 971.763 | J109: 1167.287 | K109: 475.878 | L109: 882.012 | M109: 1542.143 | N109: 883.096 | O109: 936.407 | P109: 1074.756
A110: Export | B110: Guyana | C110: Developing | D110: MIC | F110: Manufactured goods (SITC 5 to 8 less 667 and 68) | G110: 41645.901 | H110: 48968.339 | I110: 61883.27 | J110: 44330.823 | K110: 40332.135 | L110: 34064.206 | M110: 64029.038 | N110: 110882.943 | O110: 38942.779 | P110: 63235.047
A111: Export | B111: Haiti | C111: Developing | D111: LIC | E111: LDC | F111: Manufactured goods (SITC 5 to 8 less 667 and 68) | G111: 395465.174 | H111: 407241.868 | I111: 410578.954 | J111: 361355.99 | K111: 443546.465 | L111: 441640.422 | M111: 580669.688 | N111: 710451.38 | O111: 764353.484 | P111: 784601.503
A112: Export | B112: Honduras | C112: Developing | D112: MIC | F112: Manufactured goods (SITC 5 to 8 less 667 and 68) | G112: 2977916.805 | H112: 3039956.244 | I112: 3129971.132 | J112: 3310024.254 | K112: 2321231.676 | L112: 2971941.202 | M112: 3437730.572 | N112: 3641809.151 | O112: 3590696.04 | P112: 3543277.878
A113: Export | B113: Hungary | C113: Developed | F113: Manufactured goods (SITC 5 to 8 less 667 and 68) | G113: 52960559 | H113: 62115428 | I113: 76717759 | J113: 86824406 | K113: 67791080 | L113: 78099477 | M113: 90737955 | N113: 82146798 | O113: 88460491.44 | P113: 93579493.19
A114: Export | B114: Iceland | C114: Developed | F114: Manufactured goods (SITC 5 to 8 less 667 and 68) | G114: 596523.211 | H114: 658008.201 | I114: 1276519.246 | J114: 1020268.058 | K114: 781346.987 | L114: 673227.635 | M114: 749094.757 | N114: 723018.734 | O114: 603605.569 | P114: 699011.393
A115: Export | B115: India | C115: Developing | D115: LIC | F115: Manufactured goods (SITC 5 to 8 less 667 and 68) | G115: 58560357.25 | H115: 69055026.9 | I115: 79333142.71 | J115: 98014930.41 | K115: 100278836.2 | L115: 115427418.3 | M115: 151734541.1 | N115: 157433627 | O115: 172029955 | P115: 174426676.9
A116: Export | B116: Indonesia | C116: Developing | D116: MIC | F116: Manufactured goods (SITC 5 to 8 less 667 and 68) | G116: 40163978.82 | H116: 44451284.08 | I116: 48219697.5 | J116: 52686740.17 | K116: 46751257.18 | L116: 58393883.98 | M116: 68390696.67 | N116: 67675165.3 | O116: 67847754.34 | P116: 70926610.53
A117: Export | B117: Indonesia (...2002) | C117: Developing | D117: MIC | F117: Manufactured goods (SITC 5 to 8 less 667 and 68) | G117: _ | H117: _ | I117: _ | J117: _ | K117: _ | L117: _ | M117: _ | N117: _ | O117: _ | P117: _
A118: Export | B118: Iran (Islamic Republic of) | C118: Developing | D118: MIC | F118: Manufactured goods (SITC 5 to 8 less 667 and 68) | G118: 5697577.012 | H118: 6655187.486 | I118: 7467508.44 | J118: 9890905.863 | K118: 8290686.798 | L118: 14257368.27 | M118: 16567918.18 | N118: 13955541.3 | O118: 13550605.99 | P118: 14949030.65
A119: Export | B119: Iraq | C119: Developing | D119: LIC | F119: Manufactured goods (SITC 5 to 8 less 667 and 68) | G119: 180895.692 | H119: 424797.407 | I119: 227064.05 | J119: 147373.071 | K119: 414528.691 | L119: 264928.152 | M119: 621817.972 | N119: 1032615.652 | O119: 1134871.229 | P119: 912211.449
A120: Export | B120: Ireland | C120: Developed | F120: Manufactured goods (SITC 5 to 8 less 667 and 68) | G120: 94312696.5 | H120: 91698901.85 | I120: 102815291.3 | J120: 107485760.6 | K120: 99906402.63 | L120: 99588677.43 | M120: 108869893.9 | N120: 99926014.02 | O120: 97128057.81 | P120: 99087960.94
A121: Export | B121: Israel | C121: Developed | F121: Manufactured goods (SITC 5 to 8 less 667 and 68) | G121: 19323541 | H121: 22339550 | I121: 22454069 | J121: 37166159 | K121: 33397605 | L121: 38191127 | M121: 42797811 | N121: 40581141 | O121: 42552531 | P121: 43235404
A122: Export | B122: Italy | C122: Developed | F122: Manufactured goods (SITC 5 to 8 less 667 and 68) | G122: 317062779.6 | H122: 352788527.5 | I122: 422066615.4 | J122: 449714425.9 | K122: 335181071.6 | L122: 364941249.2 | M122: 423150858.4 | N122: 398495001.8 | O122: 420474342.3 | P122: 434772741.6
A123: Export | B123: Jamaica | C123: Developing | D123: MIC | F123: Manufactured goods (SITC 5 to 8 less 667 and 68) | G123: 102891.79 | H123: 131592.483 | I123: 165558.03 | J123: 276185.079 | K123: 289891.296 | L123: 157265.679 | M123: 124924.54 | N123: 270878.839 | O123: 186062.846 | P123: 116426.72
A124: Export | B124: Japan | C124: Developed | F124: Manufactured goods (SITC 5 to 8 less 667 and 68) | G124: 546104943.7 | H124: 586186010.8 | I124: 640503100.9 | J124: 692858223.3 | K124: 507938028.7 | L124: 679875816.4 | M124: 724744822.4 | N124: 709308393.2 | O124: 626140680 | P124: 597805953.5
A125: Export | B125: Jordan | C125: Developing | D125: MIC | F125: Manufactured goods (SITC 5 to 8 less 667 and 68) | G125: 3129224.303 | H125: 3780749.586 | I125: 4423336.236 | J125: 5723092.412 | K125: 4512335.576 | L125: 5124369.811 | M125: 5503060.668 | N125: 5373090.901 | O125: 5779722.01 | P125: 6055968.639
A126: Export | B126: Kazakhstan | C126: Developing (transition) | F126: Manufactured goods (SITC 5 to 8 less 667 and 68) | G126: 3339949.218 | H126: 4228509.547 | I126: 6314994.321 | J126: 9791235.395 | K126: 5720783.597 | L126: 6688050.324 | M126: 10120671.96 | N126: 11514716.74 | O126: 8070686.923 | P126: 7510937.195
A127: Export | B127: Kenya | C127: Developing | D127: LIC | F127: Manufactured goods (SITC 5 to 8 less 667 and 68) | G127: 1050052.721 | H127: 1145973.609 | I127: 1393848.765 | J127: 1787802.127 | K127: 1518237.158 | L127: 1650883.965 | M127: 1980950.917 | N127: 2052161.061 | O127: 1849417.551 | P127: 1988964.98
A128: Export | B128: Kiribati | C128: Developing | D128: MIC | E128: LDC | F128: Manufactured goods (SITC 5 to 8 less 667 and 68) | G128: 755.913 | H128: 1770.429 | I128: 1552.687 | J128: 520.407 | K128: 1228.149 | L128: 756.392 | M128: 477.301 | N128: 489.634 | O128: 146.366 | P128: 37.554
A129: Export | B129: Korea, Dem. People's Rep. of | C129: Developing | D129: LIC | F129: Manufactured goods (SITC 5 to 8 less 667 and 68) | G129: 808769.274 | H129: 974745.822 | I129: 1058915.66 | J129: 1323418.217 | K129: 981440.097 | L129: 1213150.856 | M129: 1427587.236 | N129: 1557865.212 | O129: 1277734.106 | P129: 1371673.012
A130: Export | B130: Korea, Republic of | C130: Developing | D130: HIC | F130: Manufactured goods (SITC 5 to 8 less 667 and 68) | G130: 258282155 | H130: 290235931.1 | I130: 330561090.9 | J130: 365225215.5 | K130: 322755309.4 | L130: 411740628.7 | M130: 473520301.1 | N130: 462957155.8 | O130: 481134659.5 | P130: 495790927.5
A131: Export | B131: Kuwait | C131: Developing | D131: HIC | F131: Manufactured goods (SITC 5 to 8 less 667 and 68) | G131: 3643356.341 | H131: 3690995.606 | I131: 4871385.24 | J131: 6194956.45 | K131: 5588671.634 | L131: 6018174.797 | M131: 7503361.922 | N131: 9113495.677 | O131: 10487228.03 | P131: 11328278.66
A132: Export | B132: Kyrgyzstan | C132: Developing (transition) | F132: Manufactured goods (SITC 5 to 8 less 667 and 68) | G132: 214768.936 | H132: 292241.762 | I132: 458587.209 | J132: 498821.07 | K132: 481774.048 | L132: 698829.099 | M132: 783262.133 | N132: 878382.801 | O132: 860601.796 | P132: 725420.218
A133: Export | B133: Lao People's Dem. Rep. | C133: Developing | D133: LIC | E133: LDC | F133: Manufactured goods (SITC 5 to 8 less 667 and 68) | G133: 197671.009 | H133: 195805.577 | I133: 205831.419 | J133: 252015.422 | K133: 220771.364 | L133: 305185.932 | M133: 311089.567 | N133: 341682.092 | O133: 297603.33 | P133: 421581.342
A134: Export | B134: Latvia | C134: Developed | F134: Manufactured goods (SITC 5 to 8 less 667 and 68) | G134: 2939162.037 | H134: 3496994.131 | I134: 4753922.101 | J134: 5771101.828 | K134: 4293361.881 | L134: 5095984.23 | M134: 6692001.623 | N134: 6812772.081 | O134: 7013582.929 | P134: 7385357.383
A135: Export | B135: Lebanon | C135: Developing | D135: HIC | F135: Manufactured goods (SITC 5 to 8 less 667 and 68) | G135: 1482420.671 | H135: 1659419.064 | I135: 2176535.225 | J135: 2808215.966 | K135: 2410576.889 | L135: 2881128.759 | M135: 2863565.118 | N135: 2684162.865 | O135: 2616192.455 | P135: 2316393.004
A136: Export | B136: Lesotho | C136: Developing | D136: LIC | E136: LDC | F136: Manufactured goods (SITC 5 to 8 less 667 and 68) | G136: 579887.687 | H136: 613226.546 | I136: 674670.443 | J136: 514930.488 | K136: 493664.244 | L136: 522060.889 | M136: 706423.486 | N136: 617196.208 | O136: 509324.488 | P136: 518568.512
A137: Export | B137: Liberia | C137: Developing | D137: LIC | E137: LDC | F137: Manufactured goods (SITC 5 to 8 less 667 and 68) | G137: 111578.124 | H137: 110970.126 | I137: 130655.873 | J137: 107261.06 | K137: 103838.826 | L137: 84044.708 | M137: 101951.398 | N137: 113112.73 | O137: 183074.455 | P137: 196724.528
A138: Export | B138: Libya | C138: Developing | D138: HIC | F138: Manufactured goods (SITC 5 to 8 less 667 and 68) | G138: 1224467.416 | H138: 1180592.463 | I138: 1449299.554 | J138: 1873777.139 | K138: 972342.633 | L138: 1373607.97 | M138: 669924.462 | N138: 1092629.534 | O138: 947196.11 | P138: 650466.237
A139: Export | B139: Lithuania | C139: Developed | F139: Manufactured goods (SITC 5 to 8 less 667 and 68) | G139: 6693387.048 | H139: 8135385.593 | I139: 10979810.7 | J139: 13078197.4 | K139: 9066101.022 | L139: 11231537.71 | M139: 14916229.14 | N139: 15510428.47 | O139: 17300251.37 | P139: 18788992.41
A140: Export | B140: Luxembourg | C140: Developed | F140: Manufactured goods (SITC 5 to 8 less 667 and 68) | G140: 15890076.8 | H140: 19220385.79 | I140: 18497949.69 | J140: 21103276.66 | K140: 17205313.56 | L140: 15839046.97 | M140: 16666243.76 | N140: 14930166.44 | O140: 14790030.74 | P140: 14483114.21
A141: Export | B141: Madagascar | C141: Developing | D141: LIC | E141: LDC | F141: Manufactured goods (SITC 5 to 8 less 667 and 68) | G141: 424069.312 | H141: 488816.302 | I141: 789798.155 | J141: 792397.118 | K141: 591307.161 | L141: 489500.503 | M141: 535026.706 | N141: 548688.835 | O141: 624815.765 | P141: 656517.64
A142: Export | B142: Malawi | C142: Developing | D142: LIC | E142: LDC | F142: Manufactured goods (SITC 5 to 8 less 667 and 68) | G142: 71617.374 | H142: 78768.115 | I142: 105136.95 | J142: 102314.307 | K142: 86084.565 | L142: 111532.612 | M142: 197080.246 | N142: 159330.512 | O142: 180333.794 | P142: 222338.263
A143: Export | B143: Malaysia | C143: Developing | D143: HIC | F143: Manufactured goods (SITC 5 to 8 less 667 and 68) | G143: 105553747.9 | H143: 117900009.5 | I143: 124731842.2 | J143: 107577132.1 | K143: 109393706.3 | L143: 133166184.1 | M143: 140756754.2 | N143: 139905580.8 | O143: 138348265 | P143: 144068170.1
A144: Export | B144: Maldives | C144: Developing | D144: MIC | F144: Manufactured goods (SITC 5 to 8 less 667 and 68) | G144: 22510.697 | H144: 17395.787 | I144: 16485.301 | J144: 25053.792 | K144: 9073.653 | L144: 13269.818 | M144: 23602.799 | N144: 20195.581 | O144: 10068.966 | P144: 19120.619
A145: Export | B145: Mali | C145: Developing | D145: LIC | E145: LDC | F145: Manufactured goods (SITC 5 to 8 less 667 and 68) | G145: 72018.049 | H145: 239648.16 | I145: 94141.383 | J145: 169215.447 | K145: 155756.938 | L145: 143083.364 | M145: 244162.037 | N145: 309626.938 | O145: 258068.982 | P145: 255561.779
A146: Export | B146: Malta | C146: Developed | F146: Manufactured goods (SITC 5 to 8 less 667 and 68) | G146: 2147688.421 | H146: 2384327.312 | I146: 2468356.974 | J146: 2435271.291 | K146: 1941611.705 | L146: 2023265.244 | M146: 2414123.405 | N146: 2196919.985 | O146: 1877222.237 | P146: 1604498.244
A147: Export | B147: Marshall Islands | C147: Developing | D147: MIC | F147: Manufactured goods (SITC 5 to 8 less 667 and 68) | G147: 22342.524 | H147: 16366.411 | I147: 15017.848 | J147: 19093.938 | K147: 16458.407 | L147: 24386.543 | M147: 34562.075 | N147: 48023.137 | O147: 45966.149 | P147: 52654.202
A148: Export | B148: Mauritania | C148: Developing | D148: LIC | E148: LDC | F148: Manufactured goods (SITC 5 to 8 less 667 and 68) | G148: 7897.811 | H148: 78128.97 | I148: 11347.337 | J148: 17640.194 | K148: 7138.283 | L148: 8927.651 | M148: 17897.537 | N148: 16783.114 | O148: 19003.862 | P148: 34998.076
A149: Export | B149: Mauritius | C149: Developing | D149: HIC | F149: Manufactured goods (SITC 5 to 8 less 667 and 68) | G149: 1351446.821 | H149: 1446342.867 | I149: 1332585.07 | J149: 1331673.845 | K149: 1096419.571 | L149: 1060692.657 | M149: 1380026.643 | N149: 1326869.196 | O149: 1294565.906 | P149: 1643937.38
A150: Export | B150: Mexico | C150: Developing | D150: HIC | F150: Manufactured goods (SITC 5 to 8 less 667 and 68) | G150: 164975198.7 | H150: 189074718.5 | I150: 194873035.3 | J150: 212203895.8 | K150: 171554545.3 | L150: 222309084.5 | M150: 247063921 | N150: 269471545.1 | O150: 285233696.2 | P150: 309060282.3
A151: Export | B151: Micronesia (Federated States of) | C151: Developing | D151: MIC | F151: Manufactured goods (SITC 5 to 8 less 667 and 68) | G151: 2601.532 | H151: 517.774 | I151: 783.635 | J151: 785.163 | K151: 801.942 | L151: 1227.57 | M151: 821.606 | N151: 821.912 | O151: 766.054 | P151: 785.281
A152: Export | B152: Mongolia | C152: Developing | D152: MIC | F152: Manufactured goods (SITC 5 to 8 less 667 and 68) | G152: 170580.907 | H152: 149344.668 | I152: 121134.621 | J152: 188054.988 | K152: 91953.558 | L152: 102109.457 | M152: 161771.494 | N152: 145759.333 | O152: 104486.758 | P152: 131571.803
A153: Export | B153: Montenegro | C153: Developing (transition) | F153: Manufactured goods (SITC 5 to 8 less 667 and 68) | G153: _ | H153: _ | I153: _ | J153: 219931.452 | K153: 125320.623 | L153: 99381.721 | M153: 124972.76 | N153: 91696.735 | O153: 87412.277 | P153: 76051.17
A154: Export | B154: Montserrat | C154: Developing | D154: HIC | F154: Manufactured goods (SITC 5 to 8 less 667 and 68) | G154: 1107.64 | H154: 749.997 | I154: 1334.135 | J154: 1641.549 | K154: 989.324 | L154: 725.529 | M154: .. | N154: 660.738 | O154: 3047.367 | P154: 1704.626
A155: Export | B155: Morocco | C155: Developing | D155: MIC | F155: Manufactured goods (SITC 5 to 8 less 667 and 68) | G155: 7001854.52 | H155: 7977667.445 | I155: 9182176.36 | J155: 12262131.76 | K155: 8689485.705 | L155: 11000179.1 | M155: 13579107.83 | N155: 13530290.6 | O155: 13939811.85 | P155: 15562801.91
A156: Export | B156: Mozambique | C156: Developing | D156: LIC | E156: LDC | F156: Manufactured goods (SITC 5 to 8 less 667 and 68) | G156: 67910.516 | H156: 173831.031 | I156: 111544.354 | J156: 162948.394 | K156: 187975.456 | L156: 72613.356 | M156: 187686.628 | N156: 225099.655 | O156: 341783.399 | P156: 424202.777
A157: Export | B157: Myanmar | C157: Developing | D157: LIC | E157: LDC | F157: Manufactured goods (SITC 5 to 8 less 667 and 68) | G157: 902908.128 | H157: 1062961.22 | I157: 1427375.21 | J157: 1517894.737 | K157: 1529394.73 | L157: 418629.464 | M157: 890765.97 | N157: 831736.371 | O157: 1013043.715 | P157: 748752.808
A158: Export | B158: Namibia | C158: Developing | D158: MIC | F158: Manufactured goods (SITC 5 to 8 less 667 and 68) | G158: 534107.81 | H158: 465810.946 | I158: 658308.186 | J158: 925332.808 | K158: 1028782.079 | L158: 1135965.72 | M158: 1081189.101 | N158: 934187.661 | O158: 1251251.295 | P158: 1585706.497
A159: Export | B159: Nauru | C159: Developing | D159: MIC | F159: Manufactured goods (SITC 5 to 8 less 667 and 68) | G159: 1869.292 | H159: 2518.646 | I159: 4178.331 | J159: 2892.008 | K159: 2640.876 | L159: 8241.588 | M159: 3492.512 | N159: 3410.416 | O159: 4293.909 | P159: 4125.352
A160: Export | B160: Nepal | C160: Developing | D160: LIC | E160: LDC | F160: Manufactured goods (SITC 5 to 8 less 667 and 68) | G160: 607165.459 | H160: 583195.521 | I160: 583063.022 | J160: 616855.001 | K160: 589362.727 | L160: 628567.164 | M160: 670272.893 | N160: 597063.856 | O160: 593381.59 | P160: 636882.283
A161: Export | B161: Netherlands | C161: Developed | F161: Manufactured goods (SITC 5 to 8 less 667 and 68) | G161: 247732874.4 | H161: 275179399.7 | I161: 323004437.5 | J161: 347253581.5 | K161: 273149801.8 | L161: 317556987.5 | M161: 390365533.8 | N161: 357013483 | O161: 375873131.6 | P161: 389510183.4
A162: Export | B162: Netherlands Antilles | C162: Developing | D162: HIC | F162: Manufactured goods (SITC 5 to 8 less 667 and 68) | G162: 91329.647 | H162: 122042.228 | I162: 92423.269 | J162: 126974.267 | K162: 136112.78 | L162: 123782.465 | M162: _ | N162: _ | O162: _ | P162: _
A163: Export | B163: New Caledonia | C163: Developing | D163: HIC | F163: Manufactured goods (SITC 5 to 8 less 667 and 68) | G163: 746541.657 | H163: 877281.471 | I163: 1329034.114 | J163: 760767.557 | K163: 711646.01 | L163: 858805.014 | M163: 977404.295 | N163: 753553.523 | O163: 644832.027 | P163: 982588.528
A164: Export | B164: New Zealand | C164: Developed | F164: Manufactured goods (SITC 5 to 8 less 667 and 68) | G164: 6779173.202 | H164: 6852413.997 | I164: 7660656.921 | J164: 7990434.108 | K164: 6383591.65 | L164: 7091549.955 | M164: 8286940.184 | N164: 8305848.517 | O164: 8099547.383 | P164: 8261377.45
A165: Export | B165: Nicaragua | C165: Developing | D165: LIC | F165: Manufactured goods (SITC 5 to 8 less 667 and 68) | G165: 680465.911 | H165: 752708.72 | I165: 835296.825 | J165: 1058907.691 | K165: 830120.678 | L165: 1001066.834 | M165: 1360564.897 | N165: 1742431.766 | O165: 2059952.169 | P165: 2328118.589
A166: Export | B166: Niger | C166: Developing | D166: LIC | E166: LDC | F166: Manufactured goods (SITC 5 to 8 less 667 and 68) | G166: 158314.884 | H166: 197792.909 | I166: 249724.232 | J166: 105080.693 | K166: 292802.755 | L166: 308888.364 | M166: 300907.876 | N166: 286685.722 | O166: 535170.098 | P166: 409822.88
A167: Export | B167: Nigeria | C167: Developing | D167: LIC | F167: Manufactured goods (SITC 5 to 8 less 667 and 68) | G167: 515634.031 | H167: 546251.098 | I167: 798602.855 | J167: 1918309.603 | K167: 1041295.51 | L167: 2502498.007 | M167: 1544270.039 | N167: 1594936.178 | O167: 1566068.533 | P167: 1457371.695
A168: Export | B168: Niue | C168: Developing | D168: HIC | F168: Manufactured goods (SITC 5 to 8 less 667 and 68) | G168: 132.104 | H168: 988.008 | I168: 1555.509 | J168: 16.955 | K168: 19.143 | L168: 16.433 | M168: 10.419 | N168: 10.842 | O168: 8.143 | P168: 13.113
A169: Export | B169: Northern Mariana Islands | C169: Developing | D169: HIC | F169: Manufactured goods (SITC 5 to 8 less 667 and 68) | G169: 577569.072 | H169: 403787.668 | I169: 279615.613 | J169: 77504.68 | K169: 7741.828 | L169: 1821.787 | M169: 1188.257 | N169: 2294.09 | O169: 2690.148 | P169: 1305.087
A170: Export | B170: Norway | C170: Developed | F170: Manufactured goods (SITC 5 to 8 less 667 and 68) | G170: 17742724.73 | H170: 19814614.89 | I170: 24913596.58 | J170: 29521126.6 | K170: 24674847.48 | L170: 24271738.93 | M170: 24971197.07 | N170: 24412872.45 | O170: 25625911.76 | P170: 25509338.11
A171: Export | B171: Oman | C171: Developing | D171: HIC | F171: Manufactured goods (SITC 5 to 8 less 667 and 68) | G171: 1193772.434 | H171: 1490897.838 | I171: 2357375.724 | J171: 3439911.55 | K171: 3630683.843 | L171: 4845173.723 | M171: 6534747.046 | N171: 9686026.035 | O171: 7862885.128 | P171: 7483791.981
A172: Export | B172: Pakistan | C172: Developing | D172: LIC | F172: Manufactured goods (SITC 5 to 8 less 667 and 68) | G172: 13123503.33 | H172: 13769155.13 | I172: 14278513.27 | J172: 14884078.02 | K172: 13445581.53 | L172: 15938528.3 | M172: 18103873.36 | N172: 18506019 | O172: 18494219.54 | P172: 18466566.73
A173: Export | B173: Palau | C173: Developing | D173: HIC | F173: Manufactured goods (SITC 5 to 8 less 667 and 68) | G173: 1136.883 | H173: 633.39 | I173: 473.776 | J173: 387.096 | K173: 184 | L173: 356.9 | M173: 22.429 | N173: 220.544 | O173: 152.127 | P173: 535.873
A174: Export | B174: Panama | C174: Developing | D174: HIC | F174: Manufactured goods (SITC 5 to 8 less 667 and 68) | G174: 4292272.831 | H174: 6036742.958 | I174: 6451077.541 | J174: 7576701.223 | K174: 8395651.85 | L174: 8254248.555 | M174: 10685573.09 | N174: 9497290.111 | O174: 7691569.986 | P174: 4985722.162
A175: Export | B175: Papua New Guinea | C175: Developing | D175: LIC | F175: Manufactured goods (SITC 5 to 8 less 667 and 68) | G175: 87240.016 | H175: 88802.958 | I175: 97429.88 | J175: 107734.91 | K175: 99144.994 | L175: 103498.543 | M175: 151800.455 | N175: 205856.692 | O175: 168323.042 | P175: 200630.812
A176: Export | B176: Paraguay | C176: Developing | D176: MIC | F176: Manufactured goods (SITC 5 to 8 less 667 and 68) | G176: 403157.216 | H176: 495787.894 | I176: 601930.05 | J176: 631911.127 | K176: 533782.095 | L176: 553047.228 | M176: 676725.799 | N176: 713156.48 | O176: 822276.49 | P176: 865697.804
A177: Export | B177: Peru | C177: Developing | D177: MIC | F177: Manufactured goods (SITC 5 to 8 less 667 and 68) | G177: 2443956.222 | H177: 2769832.733 | I177: 3364806.995 | J177: 4122347.081 | K177: 3270080.346 | L177: 3824718.199 | M177: 4903324.06 | N177: 5281629.852 | O177: 4924477.322 | P177: 4817954.992
A178: Export | B178: Philippines | C178: Developing | D178: MIC | F178: Manufactured goods (SITC 5 to 8 less 667 and 68) | G178: 36734078.81 | H178: 40826024.42 | I178: 42835996.89 | J178: 40540629.69 | K178: 32790951.61 | L178: 28981565.19 | M178: 27801544.26 | N178: 42520007.6 | O178: 41658486.08 | P178: 48633068.09
A179: Export | B179: Poland | C179: Developed | F179: Manufactured goods (SITC 5 to 8 less 667 and 68) | G179: 69847649.4 | H179: 86238898.88 | I179: 111001510.2 | J179: 136891326.8 | K179: 108700265.1 | L179: 124243972.4 | M179: 146553176.6 | N179: 137342003.9 | O179: 156222257.8 | P179: 166424744.8
A180: Export | B180: Portugal | C180: Developed | F180: Manufactured goods (SITC 5 to 8 less 667 and 68) | G180: 30951694.37 | H180: 34986306.11 | I180: 40527809.45 | J180: 43136423.49 | K180: 33164769.24 | L180: 36183700.01 | M180: 44016507.51 | N180: 42095980.38 | O180: 45095404.01 | P180: 46824822.02
A181: Export | B181: Qatar | C181: Developing | D181: HIC | F181: Manufactured goods (SITC 5 to 8 less 667 and 68) | G181: 2524350.563 | H181: 3242740.672 | I181: 3845492.356 | J181: 3829936.898 | K181: 4304535.707 | L181: 4336112.909 | M181: 6192514.983 | N181: 11117077.8 | O181: 7946926.391 | P181: 6512588.257
A182: Export | B182: Republic of Moldova | C182: Developing (transition) | F182: Manufactured goods (SITC 5 to 8 less 667 and 68) | G182: 523154.741 | H182: 597072.259 | I182: 819260.297 | J182: 1018318.779 | K182: 649958.367 | L182: 769236.666 | M182: 1158779.517 | N182: 1212799.363 | O182: 1308367.425 | P182: 1237393.941
A183: Export | B183: Romania | C183: Developed | F183: Manufactured goods (SITC 5 to 8 less 667 and 68) | G183: 21965859.28 | H183: 25535504.18 | I183: 32114223.06 | J183: 37900958.72 | K183: 32100541.49 | L183: 38766907.9 | M183: 48760723.19 | N183: 44620375.04 | O183: 49728578.83 | P183: 53169384.03
A184: Export | B184: Russian Federation | C184: Developing (transition) | F184: Manufactured goods (SITC 5 to 8 less 667 and 68) | G184: 43919972.56 | H184: 48493209.36 | I184: 58595593.2 | J184: 77159481.09 | K184: 48206984.97 | L184: 53519472.85 | M184: 64674585.02 | N184: 80543771.69 | O184: 81801139.92 | P184: 80717186.06
A185: Export | B185: Rwanda | C185: Developing | D185: LIC | E185: LDC | F185: Manufactured goods (SITC 5 to 8 less 667 and 68) | G185: 12790.432 | H185: 15082.309 | I185: 17974.66 | J185: 14576.579 | K185: 40094.438 | L185: 42254.218 | M185: 47479.472 | N185: 59702.643 | O185: 50381.234 | P185: 80435.44
A186: Export | B186: Saint Helena | C186: Developing | D186: MIC | F186: Manufactured goods (SITC 5 to 8 less 667 and 68) | G186: 11429.77 | H186: 11463.255 | I186: 11755.194 | J186: 22230.411 | K186: 8510.73 | L186: 13977.778 | M186: 11220.085 | N186: 16962.27 | O186: 19747.303 | P186: 9743.334
A187: Export | B187: Saint Kitts and Nevis | C187: Developing | D187: HIC | F187: Manufactured goods (SITC 5 to 8 less 667 and 68) | G187: 28021.873 | H187: 34338.944 | I187: 29807.857 | J187: 45846.842 | K187: 31939.156 | L187: 27601.437 | M187: 36606.779 | N187: 38861.49 | O187: 34282.946 | P187: 32587.658
A188: Export | B188: Saint Lucia | C188: Developing | D188: HIC | F188: Manufactured goods (SITC 5 to 8 less 667 and 68) | G188: 11614.597 | H188: 20418.751 | I188: 26495.862 | J188: 59788.217 | K188: 58169.325 | L188: 73497.071 | M188: 54385.678 | N188: 59969.798 | O188: 58315.326 | P188: 53924.37
A189: Export | B189: Saint Pierre and Miquelon | C189: Developed | F189: Manufactured goods (SITC 5 to 8 less 667 and 68) | G189: 2683.192 | H189: 6495.793 | I189: 1702.334 | J189: 1479.625 | K189: 818.215 | L189: 250.346 | M189: 1810.476 | N189: 528.972 | O189: 639.761 | P189: 381.41
A190: Export | B190: Saint Vincent and the Grenadines | C190: Developing | D190: HIC | F190: Manufactured goods (SITC 5 to 8 less 667 and 68) | G190: 31615.641 | H190: 31002.399 | I190: 35964.057 | J190: 43168.015 | K190: 40560.59 | L190: 31085.301 | M190: 24187.554 | N190: 18361.621 | O190: 23030.405 | P190: 22298.972
A191: Export | B191: Samoa | C191: Developing | D191: MIC | F191: Manufactured goods (SITC 5 to 8 less 667 and 68) | G191: 25646.663 | H191: 42714.314 | I191: 71061.002 | J191: 48784.154 | K191: 29035.111 | L191: 46023.577 | M191: 40863.584 | N191: 35624.274 | O191: 38186.994 | P191: 49203.963
A192: Export | B192: Sao Tome and Principe | C192: Developing | D192: LIC | E192: LDC | F192: Manufactured goods (SITC 5 to 8 less 667 and 68) | G192: 1956.083 | H192: 3054.671 | I192: 2634.079 | J192: 1475.402 | K192: 2948.288 | L192: 6306.263 | M192: 5901.605 | N192: 5437.837 | O192: 3009.985 | P192: 5148.068
A193: Export | B193: Saudi Arabia | C193: Developing | D193: HIC | F193: Manufactured goods (SITC 5 to 8 less 667 and 68) | G193: 19058611.06 | H193: 21298043.91 | I193: 30223614.27 | J193: 30956392.02 | K193: 25947688.03 | L193: 38231242.5 | M193: 47821083.35 | N193: 52097140.1 | O193: 51491378.22 | P193: 51029071.04
A194: Export | B194: Senegal | C194: Developing | D194: LIC | E194: LDC | F194: Manufactured goods (SITC 5 to 8 less 667 and 68) | G194: 609165.926 | H194: 434109.926 | I194: 507042.564 | J194: 693272.68 | K194: 688250.266 | L194: 694642.78 | M194: 856163.515 | N194: 830590.969 | O194: 749360.3 | P194: 763854.866
A195: Export | B195: Serbia | C195: Developing (transition) | F195: Manufactured goods (SITC 5 to 8 less 667 and 68) | G195: _ | H195: _ | I195: _ | J195: 7450600.744 | K195: 5212755.545 | L195: 5844324.067 | M195: 7044505.703 | N195: 6906815.768 | O195: 9879791.523 | P195: 10115046.07
A196: Export | B196: Serbia and Montenegro | C196: Developing (transition) | F196: Manufactured goods (SITC 5 to 8 less 667 and 68) | G196: 2875273.436 | H196: 3840305.137 | I196: 5347431.572 | J196: _ | K196: _ | L196: _ | M196: _ | N196: _ | O196: _ | P196: _
A197: Export | B197: Seychelles | C197: Developing | D197: HIC | F197: Manufactured goods (SITC 5 to 8 less 667 and 68) | G197: 55361.049 | H197: 29894.477 | I197: 25611.47 | J197: 33235.896 | K197: 39534.028 | L197: 48575.305 | M197: 40370.257 | N197: 44621.505 | O197: 53183.133 | P197: 48914.207
A198: Export | B198: Sierra Leone | C198: Developing | D198: LIC | E198: LDC | F198: Manufactured goods (SITC 5 to 8 less 667 and 68) | G198: 47027.209 | H198: 60479.614 | I198: 58749.421 | J198: 53437.302 | K198: 79493.39 | L198: 95116.699 | M198: 95707.425 | N198: 203192.138 | O198: 255322.202 | P198: 238403.079
A199: Export | B199: Singapore | C199: Developing | D199: HIC | F199: Manufactured goods (SITC 5 to 8 less 667 and 68) | G199: 183521407.3 | H199: 213713270.3 | I199: 226604120 | J199: 236138603.6 | K199: 197451432.6 | L199: 253679581.3 | M199: 279026702.4 | N199: 282031527.4 | O199: 287023644.5 | P199: 288523700.5
A200: Export | B200: Sint Maarten (Dutch part) | C200: Developing | D200: HIC | F200: Manufactured goods (SITC 5 to 8 less 667 and 68) | G200: _ | H200: _ | I200: _ | J200: _ | K200: _ | L200: _ | M200: 14065.186 | N200: 2065.22 | O200: 9984.4 | P200: 41467.506
A201: Export | B201: Slovakia | C201: Developed | F201: Manufactured goods (SITC 5 to 8 less 667 and 68) | G201: 26527187.26 | H201: 34447035.96 | I201: 49777143.69 | J201: 60128335.35 | K201: 48233064.07 | L201: 55248399.35 | M201: 66349765.05 | N201: 67181860.79 | O201: 73375023.65 | P201: 75333034.65
A202: Export | B202: Slovenia | C202: Developed | F202: Manufactured goods (SITC 5 to 8 less 667 and 68) | G202: 15929477.43 | H202: 18269440.93 | I202: 23254393.29 | J202: 25410917.51 | K202: 19446550.96 | L202: 20726048.71 | M202: 24134977.54 | N202: 22406319.49 | O202: 23550060.97 | P202: 25285987.04
... 264 more rows

Sheet W3
A1: Merchandise: Trade matrix by product groups, exports in thousands of dollars, annual, 1995-2014
A2: Source: | B2: UNCTADStat, 4.2.16
A3: PARTNER | B3: World
A4: Economy | B4: Flow | C4: Value/ share | D4: Product group | F4: 2005 | G4: 2006 | H4: 2007 | I4: 2008 | J4: 2009 | K4: 2010 | L4: 2011 | M4: 2012 | N4: 2013 | O4: 2014
A5: World | B5: Exports | C5: Value | D5: Manufactured goods (SITC 5 to 8 less 667 and 68) | F5: 7366154555 | G5: 8373139406 | H5: 9564662421 | I5: 1.048738023e+10 | J5: 8333419697 | K5: 9979761632 | L5: 1.150556597e+10 | M5: 1.151818483e+10 | N5: 1.191623758e+10 | O5: 1.228847003e+10
A6: World | B6: Imports | C6: Value | D6: Manufactured goods (SITC 5 to 8 less 667 and 68) | F6: 7598874914 | G6: 8549582119 | H6: 9716538485 | I6: 1.065607287e+10 | J6: 8489255108 | K6: 1.016691071e+10 | L6: 1.162854134e+10 | M6: 1.161383128e+10 | N6: 1.196300666e+10 | O6: 1.232543063e+10
F7: =+F6+F5 -> 1.496502947e+10 | G7: =+G6+G5 -> 1.692272153e+10 | H7: 1.928120091e+10 | I7: 2.114345311e+10 | J7: 1.682267481e+10 | K7: 2.014667235e+10 | L7: 2.313410731e+10 | M7: 2.313201611e+10 | N7: 2.387924424e+10 | O7: 2.461390066e+10
D8: Subtotal of all filtered rows | F8: =SUBTOTAL(9,F10:F77) -> 1.496502947e+10 | G8: =SUBTOTAL(9,G10:G77) -> 1.692272153e+10 | H8: 1.928120091e+10 | I8: 2.114345311e+10 | J8: 1.682267481e+10 | K8: 2.014667235e+10 | L8: 2.313410731e+10 | M8: 2.313201611e+10 | N8: 2.387924424e+10 | O8: 2.461390066e+10
A10: World | B10: Exports | C10: Value | D10: Organic chemicals | E10: 1 | F10: 256180769.8 | G10: 283069921.9 | H10: 327004470.7 | I10: 346854297.9 | J10: 281671427.9 | K10: 347856273.7 | L10: 422515641 | M10: 416733071.6 | N10: 425254022.3 | O10: 405455147.4
A11: World | B11: Exports | C11: Value | D11: Inorganic chemicals | E11: 2 | F11: 56059445.96 | G11: 65530068.06 | H11: 82106080.81 | I11: 108107040.2 | J11: 73187201.22 | K11: 94197880.25 | L11: 119681784.4 | M11: 108618870.9 | N11: 104395307.7 | O11: 103319172.1
A12: World | B12: Exports | C12: Value | D12: Dyeing, tanning and colouring materials | E12: 3 | F12: 50876636.35 | G12: 55892400.57 | H12: 63046868.04 | I12: 66999310.4 | J12: 56188844.2 | K12: 67035367.22 | L12: 78994235.77 | M12: 77028547.85 | N12: 76595711.18 | O12: 78397555.18
A13: World | B13: Exports | C13: Value | D13: Medicinal and pharmaceutical products | E13: 4 | F13: 273802035.4 | G13: 312778365.4 | H13: 370152334.8 | I13: 420658486.5 | J13: 436127802 | K13: 459372884.6 | L13: 496256194.1 | M13: 496128023.8 | N13: 521879460.7 | O13: 547180311.9
A14: World | B14: Exports | C14: Value | D14: Essential oils for perfume materials and cleaning preparations | E14: 5 | F14: 82309989.93 | G14: 91704434.56 | H14: 106628980.7 | I14: 121205089 | J14: 111423829.3 | K14: 123897193.6 | L14: 142689107.9 | M14: 144212724.6 | N14: 153644484.1 | O14: 159522682.9
A15: World | B15: Exports | C15: Value | D15: Fertilizers other than group 272 | E15: 6 | F15: 24907432.7 | G15: 25868310.81 | H15: 37799813.16 | I15: 76431387.21 | J15: 41211263 | K15: 55382241.04 | L15: 76652890.28 | M15: 75601142.49 | N15: 67531522.51 | O15: 66239194.14
A16: World | B16: Exports | C16: Value | D16: Plastics in primary forms | E16: 7 | F16: 181177506.2 | G16: 204805047.1 | H16: 241748895.7 | I16: 255852294.6 | J16: 199019456.6 | K16: 260221419.5 | L16: 308092238 | M16: 299863322.8 | N16: 313586730.4 | O16: 321483705.7
A17: World | B17: Exports | C17: Value | D17: Plastics in non-primary forms | E17: 8 | F17: 73871795.66 | G17: 84959817.07 | H17: 98974152.84 | I17: 108520299.2 | J17: 90528320 | K17: 109640922.6 | L17: 127694784.6 | M17: 124681157.9 | N17: 131731596.7 | O17: 136440514.1
A18: World | B18: Exports | C18: Value | D18: Chemical materials and products, n.e.s. | E18: 9 | F18: 108264097.9 | G18: 123517753.5 | H18: 144959835.5 | I18: 178190431.6 | J18: 148843883.4 | K18: 177353685.2 | L18: 211230210.5 | M18: 204755173.7 | N18: 218201590.1 | O18: 227261950.8
A19: World | B19: Exports | C19: Value | D19: Leather, leather manufactures and dressed furskins | E19: 10 | F19: 25695798.14 | G19: 28247547.07 | H19: 30348455.61 | I19: 28009722.74 | J19: 20302345.36 | K19: 26244214.04 | L19: 29500108.19 | M19: 29244170.91 | N19: 32824522.34 | O19: 34389903.22
A20: World | B20: Exports | C20: Value | D20: Rubber manufactures, n.e.s. | E20: 11 | F20: 75518632.81 | G20: 86542593.92 | H20: 103103475.8 | I20: 112971096.1 | J20: 94543330.67 | K20: 117353087.1 | L20: 150281409.8 | M20: 148610014.5 | N20: 150767859 | O20: 148530928.9
A21: World | B21: Exports | C21: Value | D21: Cork and wood manufactures (excluding furniture) | E21: 12 | F21: 52705123.18 | G21: 58319768.98 | H21: 63916755.18 | I21: 62976872.12 | J21: 48374251.63 | K21: 54302573.29 | L21: 61883007.63 | M21: 61878143.96 | N21: 66611208.5 | O21: 70407935.42
A22: World | B22: Exports | C22: Value | D22: Paper and paper manufactures | E22: 13 | F22: 134203631 | G22: 144649272.2 | H22: 162314119.3 | I22: 174310457.8 | J22: 147876366.6 | K22: 164558203.6 | L22: 184374099.4 | M22: 175093381.7 | N22: 182072307.2 | O22: 185658825
A23: World | B23: Exports | C23: Value | D23: Textile yarn and related products | E23: 14 | F23: 215477651 | G23: 230063247.4 | H23: 249654036.8 | I23: 259696290.3 | J23: 219341765.5 | K23: 260395152 | L23: 303077351.1 | M23: 292742132.8 | N23: 314988161.2 | O23: 322286917.9
A24: World | B24: Exports | C24: Value | D24: Non metallic mineral manufactures, n.e.s. | E24: 15 | F24: 107773968.7 | G24: 122759076.1 | H24: 140801753 | I24: 154055455.5 | J24: 125639080.6 | K24: 143423658.7 | L24: 164784644.1 | M24: 169015389 | N24: 179969414.3 | O24: 178297843.9
A25: World | B25: Exports | C25: Value | D25: Iron and steel | E25: 16 | F25: 318983310.5 | G25: 375488212.2 | H25: 479990489.1 | I25: 589418538.6 | J25: 324637931 | K25: 427186685.2 | L25: 530230822.5 | M25: 487977120.4 | N25: 457901050 | O25: 473477135.7
A26: World | B26: Exports | C26: Value | D26: Manufactures of metal, n.e.s. | E26: 17 | F26: 216992448.1 | G26: 255858978.6 | H26: 306639742.5 | I26: 349201872.9 | J26: 266311778.5 | K26: 303415284.1 | L26: 362961160.1 | M26: 367307024.7 | N26: 385281444.2 | O26: 405983724.8
A27: World | B27: Exports | C27: Value | D27: Power generating machinery and equipment | E27: 18 | F27: 253605548.3 | G27: 287287849.8 | H27: 330256587.8 | I27: 370862774.4 | J27: 287298510.8 | K27: 331832166.2 | L27: 390500697.3 | M27: 392649553.4 | N27: 398985382.8 | O27: 410944069.8
A28: World | B28: Exports | C28: Value | D28: Specialised machinery | E28: 19 | F28: 265555392.4 | G28: 302436523.2 | H28: 378439103.4 | I28: 420870482.8 | J28: 286942184.1 | K28: 366287098.7 | L28: 450960583 | M28: 433366740.6 | N28: 423417621 | O28: 428986987.8
A29: World | B29: Exports | C29: Value | D29: Metal working machinery | E29: 20 | F29: 64197478.32 | G29: 74729714.11 | H29: 79749276.28 | I29: 91210896.89 | J29: 59649581.27 | K29: 69539175.77 | L29: 90857747.59 | M29: 93434213.14 | N29: 86882628.64 | O29: 91013644.95
A30: World | B30: Exports | C30: Value | D30: Other industrial machinery and parts | E30: 21 | F30: 377462535.6 | G30: 436523415.8 | H30: 528119048 | I30: 604443867 | J30: 467102610.6 | K30: 530804903.1 | L30: 633346258.2 | M30: 638098389.1 | N30: 667465284.5 | O30: 695229423.3
A31: World | B31: Exports | C31: Value | D31: Office machines and automatic data processing machines | E31: 22 | F31: 491700707.6 | G31: 543291365.4 | H31: 567128455.3 | I31: 571102622.9 | J31: 480179437.6 | K31: 573908421.5 | L31: 594006433.5 | M31: 598969844.3 | N31: 587780467.8 | O31: 600211507.9
A32: World | B32: Exports | C32: Value | D32: Telecommunication and sound recording apparatus | E32: 23 | F32: 495356800.5 | G32: 589730135 | H32: 587570935 | I32: 634672765.3 | J32: 535701535.3 | K32: 627660170 | L32: 686615045.1 | M32: 696722912.2 | N32: 738560372.9 | O32: 766197340.1
A33: World | B33: Exports | C33: Value | D33: Electrical machinery, apparatus and appliances, n.e.s. | E33: 24 | F33: 856087242.2 | G33: 993049124.3 | H33: 1097249271 | I33: 1153236857 | J33: 975917871.8 | K33: 1248220471 | L33: 1357269268 | M33: 1367874003 | N33: 1470281564 | O33: 1506771710
A34: World | B34: Exports | C34: Value | D34: Road vehicles | E34: 25 | F34: 900281977.5 | G34: 999903746.3 | H34: 1168255181 | I34: 1218842142 | J34: 828240222.7 | K34: 1063843156 | L34: 1255793626 | M34: 1279745651 | N34: 1322816829 | O34: 1367944719
A35: World | B35: Exports | C35: Value | D35: Other transport equipment | E35: 26 | F35: 216396646.3 | G35: 268084540.5 | H35: 310881716 | I35: 366043725.4 | J35: 293517646 | K35: 330758520.2 | L35: 366698690.8 | M35: 358653284.8 | N35: 357665332.4 | O35: 369511049.2
A36: World | B36: Exports | C36: Value | D36: Prefabricated buildings, sanitary, heating and lighting fixtures, n.e.s. | E36: 27 | F36: 36246889.36 | G36: 41517135.87 | H36: 48480032.02 | I36: 55094911.33 | J36: 43727905.79 | K36: 49060825.36 | L36: 58280449.44 | M36: 65838096.14 | N36: 75941429.13 | O36: 84341374.86
A37: World | B37: Exports | C37: Value | D37: Furniture and parts thereof | E37: 28 | F37: 97832864.38 | G37: 108489160.5 | H37: 127222250.3 | I37: 137011008.3 | J37: 112865269.8 | K37: 129320649.4 | L37: 146049610.5 | M37: 156613355.6 | N37: 166129721.1 | O37: 174331193.1
A38: World | B38: Exports | C38: Value | D38: Travel goods, handbags, etc. | E38: 29 | F38: 23770669.09 | G38: 27048424.18 | H38: 32338697.52 | I38: 37762203.38 | J38: 33198796.54 | K38: 40816052.47 | L38: 53140190.88 | M38: 55997871.89 | N38: 60830642.43 | O38: 61679789.14
A39: World | B39: Exports | C39: Value | D39: Articles of apparel & clothing accessories | E39: 30 | F39: 295966459.3 | G39: 329630890.6 | H39: 368954848.4 | I39: 387595808.5 | J39: 339569467.2 | K39: 375415089.6 | L39: 440165801.3 | M39: 434665821.7 | N39: 474856586 | O39: 500675359.7
A40: World | B40: Exports | C40: Value | D40: Footwear | E40: 31 | F40: 66959809.69 | G40: 73747244.57 | H40: 82826097.59 | I40: 91897157.48 | J40: 81780345.65 | K40: 96049716.16 | L40: 113900735 | M40: 116608806.2 | N40: 127584123.1 | O40: 141114034.1
A41: World | B41: Exports | C41: Value | D41: Professional and scientific instruments, n.e.s. | E41: 32 | F41: 215705134.9 | G41: 247164899.6 | H41: 285370720.8 | I41: 316240868.7 | J41: 277796014.4 | K41: 340095995.9 | L41: 382808693.2 | M41: 398358861.8 | N41: 405423533.2 | O41: 413805898.8
A42: World | B42: Exports | C42: Value | D42: Photo apparatus, optical goods, watches and clocks | E42: 33 | F42: 93736176.34 | G42: 100797684.4 | H42: 101339953.4 | I42: 107517623.2 | J42: 92627245.11 | K42: 111399370 | L42: 128911351.2 | M42: 135015179.2 | N42: 137617285.4 | O42: 139794873.2
A43: World | B43: Exports | C43: Value | D43: Miscellaneous manufactured articles, n.e.s. | E43: 34 | F43: 360491949.7 | G43: 399652736.8 | H43: 461289987.8 | I43: 509515577.6 | J43: 452076174.8 | K43: 502913124.4 | L43: 585361103.2 | M43: 616082837.4 | N43: 630762380.8 | O43: 671583601.9
A44: World | B44: Imports | C44: Value | D44: Organic chemicals | E44: 1 | F44: 275698421.6 | G44: 300860068.1 | H44: 348882122.9 | I44: 373648962.8 | J44: 304962835 | K44: 368747410.5 | L44: 449129194.7 | M44: 440402862.3 | N44: 445768908.6 | O44: 435962374.1
A45: World | B45: Imports | C45: Value | D45: Inorganic chemicals | E45: 2 | F45: 65481407.59 | G45: 74840212.55 | H45: 90942208.39 | I45: 120200777.2 | J45: 85150001.37 | K45: 107387115.3 | L45: 134558537.9 | M45: 123486661.6 | N45: 117452031.9 | O45: 116361178.5
A46: World | B46: Imports | C46: Value | D46: Dyeing, tanning and colouring materials | E46: 3 | F46: 51062463.49 | G46: 56291603.8 | H46: 62661191.57 | I46: 67261705.66 | J46: 55934426.79 | K46: 66388771.56 | L46: 76919621.43 | M46: 74094946.05 | N46: 75577329.52 | O46: 77700725.92
A47: World | B47: Imports | C47: Value | D47: Medicinal and pharmaceutical products | E47: 4 | F47: 284516414.5 | G47: 322754639.1 | H47: 379895373.5 | I47: 430662298.7 | J47: 441780160.5 | K47: 472648508 | L47: 517963324.9 | M47: 516685175.2 | N47: 538618294.4 | O47: 564079464.7
A48: World | B48: Imports | C48: Value | D48: Essential oils for perfume materials and cleaning preparations | E48: 5 | F48: 81731849.52 | G48: 90612741.78 | H48: 104010886.2 | I48: 117989454.8 | J48: 108887398.4 | K48: 121547384.7 | L48: 137464784.1 | M48: 140037045.5 | N48: 150229296.9 | O48: 154416754.8
A49: World | B49: Imports | C49: Value | D49: Fertilizers other than group 272 | E49: 6 | F49: 33017420.23 | G49: 33607942.91 | H49: 46150206.81 | I49: 87497292.44 | J49: 45619877.74 | K49: 58209540.43 | L49: 83050339.18 | M49: 80933932.49 | N49: 75520006.9 | O49: 74336374.37
A50: World | B50: Imports | C50: Value | D50: Plastics in primary forms | E50: 7 | F50: 180781169.9 | G50: 207954199.9 | H50: 239171519.1 | I50: 258403224.7 | J50: 200194775.9 | K50: 263530312.7 | L50: 309751340.6 | M50: 301540219.3 | N50: 315650648.6 | O50: 328957102.1
A51: World | B51: Imports | C51: Value | D51: Plastics in non-primary forms | E51: 8 | F51: 74241106.92 | G51: 84555155.55 | H51: 96995958.56 | I51: 106484441.6 | J51: 88907269.84 | K51: 108797401.2 | L51: 125849446.8 | M51: 123705274.2 | N51: 130513498.6 | O51: 134486688.5
A52: World | B52: Imports | C52: Value | D52: Chemical materials and products, n.e.s. | E52: 9 | F52: 114929357.8 | G52: 130163731.7 | H52: 153411256.7 | I52: 180443827.1 | J52: 152907985.8 | K52: 182822967.2 | L52: 219992173.7 | M52: 214366921.5 | N52: 223305290.1 | O52: 230836628.1
A53: World | B53: Imports | C53: Value | D53: Leather, leather manufactures and dressed furskins | E53: 10 | F53: 24540395.78 | G53: 26530350.86 | H53: 28267616.33 | I53: 26834072.94 | J53: 19138829.07 | K53: 25078598.56 | L53: 28996728.91 | M53: 27945826.9 | N53: 31145019.98 | O53: 33229183.6
A54: World | B54: Imports | C54: Value | D54: Rubber manufactures, n.e.s. | E54: 11 | F54: 78233510.57 | G54: 89028962.2 | H54: 105961720.3 | I54: 116244696.4 | J54: 95890351.91 | K54: 119716357.5 | L54: 150710591 | M54: 151551845.2 | N54: 153470693.5 | O54: 151104150.6
A55: World | B55: Imports | C55: Value | D55: Cork and wood manufactures (excluding furniture) | E55: 12 | F55: 53396181.31 | G55: 57746822.45 | H55: 62734270.89 | I55: 62798480.24 | J55: 46562855.15 | K55: 53760436.41 | L55: 60518642.59 | M55: 60023823.86 | N55: 63266022.77 | O55: 67078355.05
A56: World | B56: Imports | C56: Value | D56: Paper and paper manufactures | E56: 13 | F56: 138699428.1 | G56: 148501460.3 | H56: 166074783.8 | I56: 178869727.3 | J56: 149997503.3 | K56: 166260645 | L56: 184051925.3 | M56: 176825375.8 | N56: 182286283.8 | O56: 187232684.5
A57: World | B57: Imports | C57: Value | D57: Textile yarn and related products | E57: 14 | F57: 205135235.1 | G57: 216072712.3 | H57: 234314997.8 | I57: 242886755.6 | J57: 200763648.4 | K57: 235348071.2 | L57: 272340231.1 | M57: 260715970.8 | N57: 273815692.9 | O57: 290075689.6
A58: World | B58: Imports | C58: Value | D58: Non metallic mineral manufactures, n.e.s. | E58: 15 | F58: 112739041.8 | G58: 125960344.6 | H58: 145126949 | I58: 158380952.4 | J58: 126279448.3 | K58: 145657444.7 | L58: 164505226 | M58: 165075061.5 | N58: 171208386.2 | O58: 178045535.1
A59: World | B59: Imports | C59: Value | D59: Iron and steel | E59: 16 | F59: 334671424.9 | G59: 388007403.5 | H59: 492498848.2 | I59: 608385583.2 | J59: 341028838.5 | K59: 431047651.2 | L59: 531324462.4 | M59: 496583184.3 | N59: 468609849.1 | O59: 484062949.7
A60: World | B60: Imports | C60: Value | D60: Manufactures of metal, n.e.s. | E60: 17 | F60: 221397782.7 | G60: 256977963.2 | H60: 306423899.4 | I60: 349246407.8 | J60: 269074858.5 | K60: 307502634.6 | L60: 359175076 | M60: 363087860.4 | N60: 377822192.1 | O60: 395093522.8
A61: World | B61: Imports | C61: Value | D61: Power generating machinery and equipment | E61: 18 | F61: 251689164.3 | G61: 282949954.5 | H61: 328935464.7 | I61: 372263650.8 | J61: 309026703.7 | K61: 352700152.7 | L61: 412657499.5 | M61: 416592997.2 | N61: 424306339.5 | O61: 431363008.8
A62: World | B62: Imports | C62: Value | D62: Specialised machinery | E62: 19 | F62: 267506709.8 | G62: 301899057.9 | H62: 369973309.5 | I62: 409910114.5 | J62: 285422830.9 | K62: 359949814.8 | L62: 445549329 | M62: 430060664.9 | N62: 417948547.1 | O62: 425512470.9
A63: World | B63: Imports | C63: Value | D63: Metal working machinery | E63: 20 | F63: 65034214.2 | G63: 75076086.46 | H63: 81253587.81 | I63: 90924356.44 | J63: 60132650.26 | K63: 68452609.5 | L63: 90471485.15 | M63: 94777371.88 | N63: 86274612.81 | O63: 89086226.58
A64: World | B64: Imports | C64: Value | D64: Other industrial machinery and parts | E64: 21 | F64: 391424683.8 | G64: 447040394.6 | H64: 534116192.3 | I64: 609216381.3 | J64: 475697719.4 | K64: 543463637.8 | L64: 648879948.8 | M64: 652410549.1 | N64: 683066117 | O64: 710251492.6
A65: World | B65: Imports | C65: Value | D65: Office machines and automatic data processing machines | E65: 22 | F65: 515067825.2 | G65: 558747166.3 | H65: 574192373.3 | I65: 584967789.4 | J65: 490128430.6 | K65: 592037987.2 | L65: 614917394.4 | M65: 617168744.8 | N65: 606123323.6 | O65: 609093513.3
A66: World | B66: Imports | C66: Value | D66: Telecommunication and sound recording apparatus | E66: 23 | F66: 507158222.4 | G66: 592386000.6 | H66: 610855669.9 | I66: 671696159.9 | J66: 556149642.7 | K66: 683807213.3 | L66: 746675633.4 | M66: 767096311.3 | N66: 803629021.1 | O66: 817141182.7
A67: World | B67: Imports | C67: Value | D67: Electrical machinery, apparatus and appliances, n.e.s. | E67: 24 | F67: 935334451.3 | G67: 1071794030 | H67: 1181484199 | I67: 1246483989 | J67: 1048929267 | K67: 1356332727 | L67: 1473355091 | M67: 1474334583 | N67: 1573898460 | O67: 1619403395
A68: World | B68: Imports | C68: Value | D68: Road vehicles | E68: 25 | F68: 891515224.4 | G68: 1000320561 | H68: 1165559434 | I68: 1205133994 | J68: 826646286.9 | K68: 1044135239 | L68: 1228076074 | M68: 1259175515 | N68: 1306356000 | O68: 1348935527
A69: World | B69: Imports | C69: Value | D69: Other transport equipment | E69: 26 | F69: 180238429.3 | G69: 215483530.2 | H69: 235305457.4 | I69: 279557556.4 | J69: 241460421.1 | K69: 268988243.9 | L69: 281255135.6 | M69: 297995416.3 | N69: 311402500.2 | O69: 328898827.6
A70: World | B70: Imports | C70: Value | D70: Prefabricated buildings, sanitary, heating and lighting fixtures, n.e.s. | E70: 27 | F70: 39247202.13 | G70: 44602929.58 | H70: 50494637.45 | I70: 55448611.29 | J70: 44742186.91 | K70: 50811513.51 | L70: 57852133.41 | M70: 61303043.02 | N70: 66195297.15 | O70: 71715968.35
A71: World | B71: Imports | C71: Value | D71: Furniture and parts thereof | E71: 28 | F71: 108749136.4 | G71: 119683625.3 | H71: 137255294.7 | I71: 143849455.2 | J71: 114950286.1 | K71: 130012308.6 | L71: 143125906.4 | M71: 146636261.7 | N71: 153713472.8 | O71: 165586927.9
A72: World | B72: Imports | C72: Value | D72: Travel goods, handbags, etc. | E72: 29 | F72: 29588082.86 | G72: 33339533.24 | H72: 39190488.21 | I72: 43812373.11 | J72: 37508337.13 | K72: 43928789.51 | L72: 53108969.77 | M72: 55753713.86 | N72: 58426729.06 | O72: 61297800.27
A73: World | B73: Imports | C73: Value | D73: Articles of apparel & clothing accessories | E73: 30 | F73: 303121866.3 | G73: 326648744.4 | H73: 361303607 | I73: 383901482.6 | J73: 339908164.9 | K73: 369453386.3 | L73: 425836179.1 | M73: 407502895.8 | N73: 432240115.9 | O73: 455446356.9
A74: World | B74: Imports | C74: Value | D74: Footwear | E74: 31 | F74: 75437926.8 | G74: 82617942.58 | H74: 90306747.82 | I74: 98082876.27 | J74: 87931027.14 | K74: 101367524.3 | L74: 116163218 | M74: 116454596 | N74: 124415466.7 | O74: 134293323.4
A75: World | B75: Imports | C75: Value | D75: Professional and scientific instruments, n.e.s. | E75: 32 | F75: 227425389.3 | G75: 261422746.1 | H75: 296572816.1 | I75: 321827172.5 | J75: 270865511.1 | K75: 328477822.8 | L75: 371716266.7 | M75: 383858752.2 | N75: 394827735.7 | O75: 401390165.7
A76: World | B76: Imports | C76: Value | D76: Photo apparatus, optical goods, watches and clocks | E76: 33 | F76: 91894514.79 | G76: 98882480.83 | H76: 103215794.8 | I76: 109807204.8 | J76: 92143887.14 | K76: 110806077 | L76: 126825456.2 | M76: 130936696.9 | N76: 132647434.7 | O76: 134922819.1
A77: World | B77: Imports | C77: Value | D77: Miscellaneous manufactured articles, n.e.s. | E77: 34 | F77: 388169258.7 | G77: 426221020.7 | H77: 492999602 | I77: 542951042.6 | J77: 474530691.4 | K77: 527734417.1 | L77: 585773970.1 | M77: 584711179.9 | N77: 593276040.5 | O77: 618032263.1
A78: World | B78: Exports | C78: Share | D78: Organic chemicals | E78: 1 | F78: 0.03477808779 | G78: 0.03380690421 | H78: 0.03418881465 | I78: 0.03307349311 | J78: 0.03380022105 | K78: 0.03485617057 | L78: 0.03672271681 | M78: 0.03618044662 | N78: 0.03568693722 | O78: 0.03299476229
A79: World | B79: Exports | C79: Share | D79: Inorganic chemicals | E79: 2 | F79: 0.007610408599 | G79: 0.007826224416 | H79: 0.008584315597 | I79: 0.01030829796 | J79: 0.008782373129 | K79: 0.009438890799 | L79: 0.0104020771 | M79: 0.009430207313 | N79: 0.008760760853 | O79: 0.008407814143
A80: World | B80: Exports | C80: Share | D80: Dyeing, tanning and colouring materials | E80: 3 | F80: 0.006906810871 | G80: 0.006675202437 | H80: 0.006591645922 | I80: 0.006388565009 | J80: 0.006742591426 | K80: 0.006717131099 | L80: 0.006865740978 | M80: 0.006687559625 | N80: 0.006427843578 | O80: 0.006379765343
A81: World | B81: Exports | C81: Share | D81: Medicinal and pharmaceutical products | E81: 4 | F81: 0.03717028109 | G81: 0.0373549693 | H81: 0.03869998945 | I81: 0.04011092161 | J81: 0.05233479386 | K81: 0.04603044658 | L81: 0.04313183683 | M81: 0.04307345567 | N81: 0.0437956576 | O81: 0.04452794455
A82: World | B82: Exports | C82: Share | D82: Essential oils for perfume materials and cleaning preparations | E82: 5 | F82: 0.01117407859 | G82: 0.01095221638 | H82: 0.01114822207 | I82: 0.01155723225 | J82: 0.01337072095 | K82: 0.01241484498 | L82: 0.0124017461 | M82: 0.01252043848 | N82: 0.01289370769 | O82: 0.01298149262
A83: World | B83: Exports | C83: Share | D83: Fertilizers other than group 272 | E83: 6 | F83: 0.003381334523 | G83: 0.003089439881 | H83: 0.003952027944 | I83: 0.00728793898 | J83: 0.004945300309 | K83: 0.005549455296 | L83: 0.00666224421 | M83: 0.006563633382 | N83: 0.005667184972 | O83: 0.005390353234
A84: World | B84: Exports | C84: Share | D84: Plastics in primary forms | E84: 7 | F84: 0.02459594146 | G84: 0.02445976797 | H84: 0.02527521465 | I84: 0.02439620657 | J84: 0.02388208729 | K84: 0.02607491332 | L84: 0.02677766906 | M84: 0.02603390439 | N84: 0.02631591795 | O84: 0.02616141025
A85: World | B85: Exports | C85: Share | D85: Plastics in non-primary forms | E85: 8 | F85: 0.01002854272 | G85: 0.01014670997 | H85: 0.01034789818 | I85: 0.01034770332 | J85: 0.01086328582 | K85: 0.01098632679 | L85: 0.01109852265 | M85: 0.01082472279 | N85: 0.01105479778 | O85: 0.01110313276
A86: World | B86: Exports | C86: Share | D86: Chemical materials and products, n.e.s. | E86: 9 | F86: 0.01469750561 | G86: 0.01475166572 | H86: 0.01515577122 | I86: 0.01699093841 | J86: 0.01786108091 | K86: 0.0177713348 | L86: 0.0183589587 | M86: 0.01777668761 | N86: 0.01831128229 | O86: 0.0184939175
A87: World | B87: Exports | C87: Share | D87: Leather, leather manufactures and dressed furskins | E87: 10 | F87: 0.003488359896 | G87: 0.00337359092 | H87: 0.003172977182 | I87: 0.002670802632 | J87: 0.002436256195 | K87: 0.002629743576 | L87: 0.002563985836 | M87: 0.002538956557 | N87: 0.002754604558 | O87: 0.002798550442
A88: World | B88: Exports | C88: Share | D88: Rubber manufactures, n.e.s. | E88: 11 | F88: 0.01025211082 | G88: 0.01033574024 | H88: 0.01077962518 | I88: 0.01077209881 | J88: 0.0113450821 | K88: 0.01175910722 | L88: 0.01306162688 | M88: 0.01290220782 | N88: 0.01265230388 | O88: 0.0120870156
A89: World | B89: Exports | C89: Share | D89: Cork and wood manufactures (excluding furniture) | E89: 12 | F89: 0.007155039008 | G89: 0.006965101875 | H89: 0.006682593944 | I89: 0.006005014666 | J89: 0.005804850036 | K89: 0.005441269571 | L89: 0.005378527903 | M89: 0.005372213143 | N89: 0.005589953043 | O89: 0.005729593292
A90: World | B90: Exports | C90: Share | D90: Paper and paper manufactures | E90: 13 | F90: 0.018218954 | G90: 0.0172753928 | H90: 0.01697018799 | I90: 0.01662097244 | J90: 0.01774498009 | K90: 0.01648919179 | L90: 0.01602477443 | M90: 0.01520147352 | N90: 0.01527934518 | O90: 0.01510837595
A91: World | B91: Exports | C91: Share | D91: Textile yarn and related products | E91: 14 | F91: 0.02925239342 | G91: 0.02747634265 | H91: 0.02610170917 | I91: 0.02476274193 | J91: 0.02632073908 | K91: 0.0260923218 | L91: 0.0263418029 | M91: 0.02541564812 | N91: 0.02643352478 | O91: 0.02622677333
A92: World | B92: Exports | C92: Share | D92: Non metallic mineral manufactures, n.e.s. | E92: 15 | F92: 0.01463096761 | G92: 0.01466105724 | H92: 0.01472103737 | I92: 0.01468960332 | J92: 0.01507653342 | K92: 0.01437145134 | L92: 0.01432216759 | M92: 0.01467378684 | N92: 0.01510287229 | O92: 0.01450936069
A93: World | B93: Exports | C93: Share | D93: Iron and steel | E93: 16 | F93: 0.04330391225 | G93: 0.04484437605 | H93: 0.0501837355 | I93: 0.05620264788 | J93: 0.038956148 | K93: 0.04280529946 | L93: 0.04608472315 | M93: 0.04236580046 | N93: 0.03842664659 | O93: 0.03853019414
A94: World | B94: Exports | C94: Share | D94: Manufactures of metal, n.e.s. | E94: 17 | F94: 0.02945803628 | G94: 0.03055711438 | H94: 0.03205965135 | I94: 0.03329734072 | J94: 0.03195708222 | K94: 0.03040305924 | L94: 0.03154657154 | M94: 0.03188931502 | N94: 0.03233247421 | O94: 0.03303777638
A95: World | B95: Exports | C95: Share | D95: Power generating machinery and equipment | E95: 18 | F95: 0.03442848591 | G95: 0.03431064931 | H95: 0.03452882844 | I95: 0.03536276611 | J95: 0.03447546401 | K95: 0.03325051023 | L95: 0.03394015542 | M95: 0.03408953398 | N95: 0.03348249649 | O95: 0.03344143485
A96: World | B96: Exports | C96: Share | D96: Specialised machinery | E96: 19 | F96: 0.03605074946 | G96: 0.03611984807 | H96: 0.03956638371 | I96: 0.04013113603 | J96: 0.03443270525 | K96: 0.03670299074 | L96: 0.03919499346 | M96: 0.03762456904 | N96: 0.03553282807 | O96: 0.03490971512
A97: World | B97: Exports | C97: Share | D97: Metal working machinery | E97: 20 | F97: 0.008715195675 | G97: 0.008924933706 | H97: 0.0083379081 | I97: 0.008697205102 | J97: 0.007157875571 | K97: 0.006968019711 | L97: 0.007896851647 | M97: 0.00811188694 | N97: 0.007291112492 | O97: 0.007406426086
A98: World | B98: Exports | C98: Share | D98: Other industrial machinery and parts | E98: 21 | F98: 0.0512428205 | G98: 0.05213378096 | H98: 0.05521564951 | I98: 0.05763535349 | J98: 0.05605173238 | K98: 0.05318813441 | L98: 0.05504694508 | M98: 0.05539921422 | N98: 0.05601308972 | O98: 0.05657575124
A99: World | B99: Exports | C99: Share | D99: Office machines and automatic data processing machines | E99: 22 | F99: 0.06675134277 | G99: 0.06488502568 | H99: 0.05929414236 | I99: 0.05445617591 | J99: 0.05762093535 | K99: 0.05750722739 | L99: 0.05162774564 | M99: 0.05200210388 | N99: 0.04932601117 | O99: 0.04884346926
A100: World | B100: Exports | C100: Share | D100: Telecommunication and sound recording apparatus | E100: 23 | F100: 0.06724767947 | G100: 0.07043118552 | H100: 0.06143143471 | I100: 0.0605177605 | J100: 0.06428351802 | K100: 0.06289330278 | L100: 0.05967677268 | M100: 0.06048895049 | N100: 0.06197932596 | O100: 0.06235091419
A101: World | B101: Exports | C101: Share | D101: Electrical machinery, apparatus and appliances, n.e.s. | E101: 24 | F101: 0.1162190171 | G101: 0.1185993779 | H101: 0.1147190797 | I101: 0.1099642457 | J101: 0.1171089309 | K101: 0.1250751788 | L101: 0.1179663192 | M101: 0.118757775 | N101: 0.1233847139 | O101: 0.1226167055
A102: World | B102: Exports | C102: Share | D102: Road vehicles | E102: 25 | F102: 0.1222187195 | G102: 0.1194180221 | H102: 0.1221428556 | I102: 0.1162198866 | J102: 0.0993877967 | K102: 0.1066000568 | L102: 0.109146619 | M102: 0.1111065389 | N102: 0.1110096052 | O102: 0.1113193681
A103: World | B103: Exports | C103: Share | D103: Other transport equipment | E103: 26 | F103: 0.02937715258 | G103: 0.03201720734 | H103: 0.03250315613 | I103: 0.03490325679 | J103: 0.03522175249 | K103: 0.0331429279 | L103: 0.03187141698 | M103: 0.03113800395 | N103: 0.03001495481 | O103: 0.03006973598
A104: World | B104: Exports | C104: Share | D104: Prefabricated buildings, sanitary, heating and lighting fixtures, n.e.s. | E104: 27 | F104: 0.004920734298 | G104: 0.004958371508 | H104: 0.005068661066 | I104: 0.00525344844 | J104: 0.005247294313 | K104: 0.004916031782 | L104: 0.00506541352 | M104: 0.005716013164 | N104: 0.006372936814 | O104: 0.006863456124
A105: World | B105: Exports | C105: Share | D105: Furniture and parts thereof | E105: 28 | F105: 0.01328140262 | G105: 0.0129568081 | H105: 0.01330127973 | I105: 0.0130643693 | J105: 0.01354369201 | K105: 0.0129582904 | L105: 0.01269382235 | M105: 0.01359705178 | N105: 0.01394145762 | O105: 0.01418656616
A106: World | B106: Exports | C106: Share | D106: Travel goods, handbags, etc. | E106: 29 | F106: 0.003227011992 | G106: 0.003230380252 | H106: 0.00338106 | I106: 0.003600727973 | J106: 0.003983814298 | K106: 0.004089882502 | L106: 0.004618650748 | M106: 0.004861692418 | N106: 0.005104853108 | O106: 0.005019322097
A107: World | B107: Exports | C107: Share | D107: Articles of apparel & clothing accessories | E107: 30 | F107: 0.0401792356 | G107: 0.03936765825 | H107: 0.03857479043 | I107: 0.03695830606 | J107: 0.04074791377 | K107: 0.03761764093 | L107: 0.03825677088 | M107: 0.03773735428 | N107: 0.03984954001 | O107: 0.04074350661
A108: World | B108: Exports | C108: Share | D108: Footwear | E108: 31 | F108: 0.009090198854 | G108: 0.008807597842 | H108: 0.008659594447 | I108: 0.008762641902 | J108: 0.009813539774 | K108: 0.009624449932 | L108: 0.009899620347 | M108: 0.01012388739 | N108: 0.01070674551 | O108: 0.01148345024
A109: World | B109: Exports | C109: Share | D109: Professional and scientific instruments, n.e.s. | E109: 32 | F109: 0.02928327574 | G109: 0.02951878473 | H109: 0.02983594278 | I109: 0.03015442004 | J109: 0.03333517626 | K109: 0.03407856905 | L109: 0.03327160907 | M109: 0.03458521177 | N109: 0.03402278031 | O109: 0.03367432218
A110: World | B110: Exports | C110: Share | D110: Photo apparatus, optical goods, watches and clocks | E110: 33 | F110: 0.01272525246 | G110: 0.01203821883 | H110: 0.01059524623 | I110: 0.01025209545 | J110: 0.01111515422 | K110: 0.01116252814 | L110: 0.01120425988 | M110: 0.01172191462 | N110: 0.01154871951 | O110: 0.01137610076
A111: World | B111: Exports | C111: Share | D111: Miscellaneous manufactured articles, n.e.s. | E111: 34 | F111: 0.04893896089 | G111: 0.04773033356 | H111: 0.04822856966 | I111: 0.04858368498 | J111: 0.05424857876 | K111: 0.05039330025 | L111: 0.05087634147 | M111: 0.05348784086 | N111: 0.05293301487 | O111: 0.05465152297
A112: World | B112: Imports | C112: Share | D112: Organic chemicals | E112: 1 | F112: 0.03628147914 | G112: 0.03519003197 | H112: 0.03590600947 | I112: 0.03506441513 | J112: 0.03592339152 | K112: 0.03626936646 | L112: 0.03862300367 | M112: 0.03792054936 | N112: 0.0372622804 | O112: 0.03537096489
A113: World | B113: Imports | C113: Share | D113: Inorganic chemicals | E113: 2 | F113: 0.00861725036 | G113: 0.008753669069 | H113: 0.009359527421 | I113: 0.01128002583 | J113: 0.01003032661 | K113: 0.01056241353 | L113: 0.01157140298 | M113: 0.01063272392 | N113: 0.009817935845 | O113: 0.009440739396
A114: World | B114: Imports | C114: Share | D114: Dyeing, tanning and colouring materials | E114: 3 | F114: 0.00671973997 | G114: 0.00658413511 | H114: 0.006448921256 | I114: 0.006312053837 | J114: 0.006588849797 | K114: 0.006529886356 | L114: 0.006614726577 | M114: 0.006379888278 | N114: 0.006317586512 | O114: 0.00630409827
A115: World | B115: Imports | C115: Share | D115: Medicinal and pharmaceutical products | E115: 4 | F115: 0.03744191315 | G115: 0.03775092567 | H115: 0.03909780979 | I115: 0.04041472913 | J115: 0.05203992045 | K115: 0.04648890123 | L115: 0.04454241593 | M115: 0.04448877918 | N115: 0.04502365582 | O115: 0.0457654975
A116: World | B116: Imports | C116: Share | D116: Essential oils for perfume materials and cleaning preparations | E116: 5 | F116: 0.01075578299 | G116: 0.0105984995 | H116: 0.01070452058 | I116: 0.01107250825 | J116: 0.0128264962 | K116: 0.01195519348 | L116: 0.01182132652 | M116: 0.01205778198 | N116: 0.01255782105 | O116: 0.01252830505
A117: World | B117: Imports | C117: Share | D117: Fertilizers other than group 272 | E117: 6 | F117: 0.004345040628 | G117: 0.003930945682 | H117: 0.004749655125 | I117: 0.008211026097 | J117: 0.005373837535 | K117: 0.00572539113 | L117: 0.007141939541 | M117: 0.00696875394 | N117: 0.006312794856 | O117: 0.006031138107
A118: World | B118: Imports | C118: Share | D118: Plastics in primary forms | E118: 7 | F118: 0.02379051794 | G118: 0.02432331744 | H118: 0.02461488929 | I118: 0.02424938604 | J118: 0.02358213687 | K118: 0.02592039215 | L118: 0.0266371621 | M118: 0.02596388841 | N118: 0.02638556155 | O118: 0.0266892989
A119: World | B119: Imports | C119: Share | D119: Plastics in non-primary forms | E119: 8 | F119: 0.00977001303 | G119: 0.00988997525 | H119: 0.009982563101 | I119: 0.009992840969 | J119: 0.01047291767 | K119: 0.01070112685 | L119: 0.01082246201 | M119: 0.01065154738 | N119: 0.01090975725 | O119: 0.01091131762
A120: World | B120: Imports | C120: Share | D120: Chemical materials and products, n.e.s. | E120: 9 | F120: 0.01512452292 | G120: 0.01522457237 | H120: 0.01578867381 | I120: 0.01693342654 | J120: 0.01801194378 | K120: 0.01798215528 | L120: 0.01891829485 | M120: 0.01845789872 | N120: 0.0186663183 | O120: 0.01872848381
A121: World | B121: Imports | C121: Share | D121: Leather, leather manufactures and dressed furskins | E121: 10 | F121: 0.003229477529 | G121: 0.003103116678 | H121: 0.002909227023 | I121: 0.002518195329 | J121: 0.002254476845 | K121: 0.002466688187 | L121: 0.002493582649 | M121: 0.002406253908 | N121: 0.002603444173 | O121: 0.002695985608
A122: World | B122: Imports | C122: Share | D122: Rubber manufactures, n.e.s. | E122: 11 | F122: 0.01029540708 | G122: 0.01041325306 | H122: 0.01090529518 | I122: 0.01090877454 | J122: 0.01129549656 | K122: 0.01177509677 | L122: 0.01296040377 | M122: 0.01304925494 | N122: 0.01282877272 | O122: 0.01225954331
A123: World | B123: Imports | C123: Share | D123: Cork and wood manufactures (excluding furniture) | E123: 12 | F123: 0.007026853569 | G123: 0.00675434444 | H123: 0.006456442383 | I123: 0.005893210472 | J123: 0.005484916469 | K123: 0.005287784846 | L123: 0.005204319341 | M123: 0.005168305137 | N123: 0.005288471751 | O123: 0.005442272733
A124: World | B124: Imports | C124: Share | D124: Paper and paper manufactures | E124: 13 | F124: 0.01825262682 | G124: 0.01736944078 | H124: 0.01709196995 | I124: 0.01678570796 | J124: 0.01766910069 | K124: 0.01635311352 | L124: 0.0158276021 | M124: 0.01522541283 | N124: 0.01523749748 | O124: 0.0151907621
A125: World | B125: Imports | C125: Share | D125: Textile yarn and related products | E125: 14 | F125: 0.02699547466 | G125: 0.02527289747 | H125: 0.02411506919 | I125: 0.02279327089 | J125: 0.02364914775 | K125: 0.02314843493 | L125: 0.02341998219 | M125: 0.02244874792 | N125: 0.02288853469 | O125: 0.02353473061
A126: World | B126: Imports | C126: Share | D126: Non metallic mineral manufactures, n.e.s. | E126: 15 | F126: 0.01483628078 | G126: 0.01473292412 | H126: 0.01493607515 | I126: 0.01486297572 | J126: 0.01487520951 | K126: 0.01432661786 | L126: 0.01414667766 | M126: 0.01421366106 | N126: 0.01431148465 | O126: 0.01444538048
A127: World | B127: Imports | C127: Share | D127: Iron and steel | E127: 16 | F127: 0.04404223371 | G127: 0.04538320096 | H127: 0.05068665646 | I127: 0.05709285123 | J127: 0.04017182122 | K127: 0.04239711189 | L127: 0.04569141107 | M127: 0.04275791273 | N127: 0.03917157805 | O127: 0.03927351215
A128: World | B128: Imports | C128: Share | D128: Manufactures of metal, n.e.s. | E128: 17 | F128: 0.02913560036 | G128: 0.03005737118 | H128: 0.03153632334 | I128: 0.03277440122 | J128: 0.03169593269 | K128: 0.03024543475 | L128: 0.03088737148 | M128: 0.03126340065 | N128: 0.03158254466 | O128: 0.0320551496
A129: World | B129: Imports | C129: Share | D129: Power generating machinery and equipment | E129: 18 | F129: 0.03312189859 | G129: 0.03309517945 | H129: 0.03385315307 | I129: 0.03493441302 | J129: 0.03640209886 | K129: 0.03469098555 | L129: 0.03548660899 | M129: 0.03587041926 | N129: 0.03546820223 | O129: 0.03499780427
A130: World | B130: Imports | C130: Share | D130: Specialised machinery | E130: 19 | F130: 0.03520346272 | G130: 0.03531155718 | H130: 0.03807665765 | I130: 0.03846727772 | J130: 0.03362165788 | K130: 0.03540404995 | L130: 0.03831515201 | M130: 0.03703004242 | N130: 0.03493674784 | O130: 0.03452313219
A131: World | B131: Imports | C131: Share | D131: Metal working machinery | E131: 20 | F131: 0.008558400412 | G131: 0.008781258009 | H131: 0.008362400656 | I131: 0.008532632757 | J131: 0.007083383582 | K131: 0.006732881937 | L131: 0.007780123279 | M131: 0.008160732629 | N131: 0.007211783397 | O131: 0.007227838868
A132: World | B132: Imports | C132: Share | D132: Other industrial machinery and parts | E132: 21 | F132: 0.05151087342 | G132: 0.05228798185 | H132: 0.05496980155 | I132: 0.05717081599 | J132: 0.05603527204 | K132: 0.05345415663 | L132: 0.05580063139 | M132: 0.05617530799 | N132: 0.0570981975 | O132: 0.05762488256
A133: World | B133: Imports | C133: Share | D133: Office machines and automatic data processing machines | E133: 22 | F133: 0.06778211657 | G133: 0.06535373993 | H133: 0.05909433428 | I133: 0.05489525047 | J133: 0.05773515159 | K133: 0.0582318468 | L133: 0.05288001105 | M133: 0.05314083957 | N133: 0.05066647047 | O133: 0.04941762536
A134: World | B134: Imports | C134: Share | D134: Telecommunication and sound recording apparatus | E134: 23 | F134: 0.06674122527 | G134: 0.06928829882 | H134: 0.06286762213 | I134: 0.06303411848 | J134: 0.065512184 | K134: 0.06725811139 | L134: 0.06421060146 | M134: 0.06605023724 | N134: 0.06717617435 | O134: 0.06629717104
A135: World | B135: Imports | C135: Share | D135: Electrical machinery, apparatus and appliances, n.e.s. | E135: 24 | F135: 0.1230885443 | G135: 0.125362154 | H135: 0.1215951752 | I135: 0.1169740489 | J135: 0.1235596355 | K135: 0.1334065741 | L135: 0.1267016256 | M135: 0.126946444 | N135: 0.131563787 | O135: 0.1313871656
A136: World | B136: Imports | C136: Share | D136: Road vehicles | E136: 25 | F136: 0.1173220029 | G136: 0.1170022753 | H136: 0.1199562411 | I136: 0.113093633 | J136: 0.09737559731 | K136: 0.1026993615 | L136: 0.1056087809 | M136: 0.1084203382 | N136: 0.1091996383 | O136: 0.1094432777
A137: World | B137: Imports | C137: Share | D137: Other transport equipment | E137: 26 | F137: 0.02371909412 | G137: 0.02520398391 | H137: 0.02421700462 | I137: 0.02623457626 | J137: 0.02844306338 | K137: 0.02645722495 | L137: 0.02418662216 | M137: 0.02565866587 | N137: 0.02603045447 | O137: 0.0266845709
A138: World | B138: Imports | C138: Share | D138: Prefabricated buildings, sanitary, heating and lighting fixtures, n.e.s. | E138: 27 | F138: 0.005164870139 | G138: 0.005216971889 | H138: 0.005196772238 | I138: 0.005203475235 | J138: 0.005270449096 | K138: 0.004997733818 | L138: 0.004975012061 | M138: 0.005278451318 | N138: 0.005533332801 | O138: 0.005818536528
A139: World | B139: Imports | C139: Share | D139: Furniture and parts thereof | E139: 28 | F139: 0.01431121549 | G139: 0.01399876902 | H139: 0.01412594566 | I139: 0.0134992935 | J139: 0.01354067991 | K139: 0.01278778896 | L139: 0.01230815648 | M139: 0.01262600241 | N139: 0.01284906689 | O139: 0.01343457546
A140: World | B140: Imports | C140: Share | D140: Travel goods, handbags, etc. | E140: 29 | F140: 0.003893745218 | G140: 0.003899551203 | H140: 0.00403337961 | I140: 0.004111493384 | J140: 0.004418330779 | K140: 0.004320760824 | L140: 0.004567122241 | M140: 0.004800630603 | N140: 0.004883950224 | O140: 0.00497327859
A141: World | B141: Imports | C141: Share | D141: Articles of apparel & clothing accessories | E141: 30 | F141: 0.03989036136 | G141: 0.03820639885 | H141: 0.03718439519 | I141: 0.03602654441 | J141: 0.04003981039 | K141: 0.03633880504 | L141: 0.0366199136 | M141: 0.03508772307 | N141: 0.03613139474 | O141: 0.03695176019
A142: World | B142: Imports | C142: Share | D142: Footwear | E142: 31 | F142: 0.009927512646 | G142: 0.009663389559 | H142: 0.009294127529 | I142: 0.00920441118 | J142: 0.01035792022 | K142: 0.009970336826 | L142: 0.00998949177 | M142: 0.01002723332 | N142: 0.0104000165 | O142: 0.01089562933
A143: World | B143: Imports | C143: Share | D143: Professional and scientific instruments, n.e.s. | E143: 32 | F143: 0.02992882392 | G143: 0.03057725424 | H143: 0.03052247635 | I143: 0.03020129239 | J143: 0.03190686434 | K143: 0.03230851849 | L143: 0.03196585504 | M143: 0.0330518623 | N143: 0.03300405549 | O143: 0.03256601556
A144: World | B144: Imports | C144: Share | D144: Photo apparatus, optical goods, watches and clocks | E144: 33 | F144: 0.01209317377 | G144: 0.01156576771 | H144: 0.01062269192 | I144: 0.01030465971 | J144: 0.01085417813 | K144: 0.01089869677 | L144: 0.01090639423 | M144: 0.01127420347 | N144: 0.01108813516 | O144: 0.01094670224
A145: World | B145: Imports | C145: Share | D145: Miscellaneous manufactured articles, n.e.s. | E145: 34 | F145: 0.05108246459 | G145: 0.04985284833 | H145: 0.05073819269 | I145: 0.05095226442 | J145: 0.05589780085 | K145: 0.05190705731 | L145: 0.05037381329 | M145: 0.05034610594 | N145: 0.04959255289 | O145: 0.05014285355

Sheet W4
A1: Merchandise: Trade matrix by product groups, exports in thousands of dollars, annual, 1995-2014
A2: Merchandise: Trade matrix by product groups, imports in thousands of dollars, annual, 1995-2014
A3: Source: | B3: UNCTADStat, 4.2.16
A4: PARTNER | B4: World
A5: Flow | B5: Economy | C5: Top 10 exporters/ importers | D5: Developed/developing | E5: Region | F5: Product group | G5: 2005 | H5: 2006 | I5: 2007 | J5: 2008 | K5: 2009 | L5: 2010 | M5: 2011 | N5: 2012 | O5: 2013 | P5: 2014 | Q5: Sector totals in 2014
E6: EXPORTS | F6: Manufactured goods (SITC 5 to 8 less 667 and 68) | G6: 7366154555 | H6: 8373139406 | I6: 9564662421 | J6: 1.048738023e+10 | K6: 8333419697 | L6: 9979761632 | M6: 1.150556597e+10 | N6: 1.151818483e+10 | O6: 1.191623758e+10 | P6: 1.228847003e+10
F7: Africa | G7: 55635446.12 | H7: 60120340.78 | I7: 71835015.4 | J7: 91275776.82 | K7: 70674959.3 | L7: 93195993.7 | M7: 102422460.8 | N7: 100925037.9 | O7: 102909805.1 | P7: 105547401.2
F8: Americas | G8: 1223672021 | H8: 1368816694 | I8: 1479313006 | J8: 1571412340 | K8: 1184913040 | L8: 1429060710 | M8: 1595923075 | N8: 1663241178 | O8: 1685084919 | P8: 1727597754
F9: Asia | G9: 2665315817 | H9: 3093057120 | I9: 3579861963 | J9: 3964275796 | K9: 3336224833 | L9: 4267340710 | M9: 4907158216 | N9: 5113038727 | O9: 5270890575 | P9: 5453342137
F10: Europe | G10: 3391579615 | H10: 3820736976 | I10: 4397964283 | J10: 4822165638 | K10: 3711262267 | L10: 4155106030 | M10: 4859343324 | N10: 4599881912 | O10: 4818696242 | P10: 4963775589
F11: Oceania | G11: 29951655.31 | H11: 30408275.69 | I11: 35688153.82 | J11: 38250683.91 | K11: 30344597.87 | L11: 35058188.18 | M11: 40718896.47 | N11: 41097979.65 | O11: 38656035.19 | P11: 38207143.43
G12: =SUM(G7:G11) -> 7366154555 | H12: =SUM(H7:H11) -> 8373139406 | I12: 9564662421 | J12: 1.048738023e+10 | K12: 8333419697 | L12: 9979761632 | M12: 1.150556597e+10 | N12: 1.151818483e+10 | O12: 1.191623758e+10 | P12: 1.228847003e+10
E13: IMPORTS | F13: Manufactured goods (SITC 5 to 8 less 667 and 68) | G13: 7598874914 | H13: 8549582119 | I13: 9716538485 | J13: 1.065607287e+10 | K13: 8489255108 | L13: 1.016691071e+10 | M13: 1.162854134e+10 | N13: 1.161383128e+10 | O13: 1.196300666e+10 | P13: 1.232543063e+10
F14: Africa | G14: =SUMIF($E$7571:$E$15118,"Africa",G$7571:G$15118) -> 165954030.5 | H14: =SUMIF($E$7571:$E$15118,"Africa",H$7571:H$15118) -> 190764379.8 | I14: 236637929.3 | J14: 303237180.2 | K14: 271225340.4 | L14: 306262593.1 | M14: 334274685 | N14: 365391215.4 | O14: 386011201.8 | P14: 399333977.1
F15: Americas | G15: =SUMIF($E$7571:$E$15118,"Americas",G$7571:G$15118) -> 1873858500 | H15: =SUMIF($E$7571:$E$15118,"Americas",H$7571:H$15118) -> 2082689522 | I15: 2219347741 | J15: 2354334820 | K15: 1864020401 | L15: 2262595351 | M15: 2564015935 | N15: 2709217906 | O15: 2762328524 | P15: 2846347311
F16: Asia | G16: =SUMIF($E$7571:$E$15118,"Asia",G$7571:G$15118) -> 2207133812 | H16: =SUMIF($E$7571:$E$15118,"Asia",H$7571:H$15118) -> 2481949410 | I16: 2839605784 | J16: 3144120693 | K16: 2693960163 | L16: 3426041600 | M16: 3913938553 | N16: 4074630438 | O16: 4198631291 | P16: 4296235423
F17: Europe | G17: =SUMIF($E$7571:$E$15118,"Europe",G$7571:G$15118) -> 3231077177 | H17: =SUMIF($E$7571:$E$15118,"Europe",H$7571:H$15118) -> 3667826333 | I17: 4273900909 | J17: 4686316137 | K17: 3520406415 | L17: 4006928460 | M17: 4621113068 | N17: 4251753311 | O17: 4414810525 | P17: 4582799997
F18: Oceania | G18: =SUMIF($E$7571:$E$15118,"Oceania",G$7571:G$15118) -> 120851393.8 | H18: =SUMIF($E$7571:$E$15118,"Oceania",H$7571:H$15118) -> 126352474.5 | I18: 147046122.6 | J18: 168064042.1 | K18: 139642789.1 | L18: 165082710.8 | M18: 195199096.1 | N18: 212838408.9 | O18: 201225117.7 | P18: 200713922.5
G19: =SUM(G14:G18) -> 7598874914 | H19: =SUM(H14:H18) -> 8549582119 | I19: 9716538485 | J19: 1.065607287e+10 | K19: 8489255108 | L19: 1.016691071e+10 | M19: 1.162854134e+10 | N19: 1.161383128e+10 | O19: 1.196300666e+10 | P19: 1.232543063e+10
G20: =+G19+G12 -> 1.496502947e+10 | H20: =+H19+H12 -> 1.692272153e+10 | I20: 1.928120091e+10 | J20: 2.114345311e+10 | K20: 1.682267481e+10 | L20: 2.014667235e+10 | M20: 2.313410731e+10 | N20: 2.313201611e+10 | O20: 2.387924424e+10 | P20: 2.461390066e+10
F21: Sub-total of all filtered rows | G21: =SUBTOTAL(9,G23:G15118) -> 1.496502947e+10 | H21: =SUBTOTAL(9,H23:H15118) -> 1.692272153e+10 | I21: 1.928120091e+10 | J21: 2.114345311e+10 | K21: 1.682267481e+10 | L21: 2.014667235e+10 | M21: 2.313410731e+10 | N21: 2.313201611e+10 | O21: 2.387924424e+10 | P21: 2.461390066e+10
A23: Export | B23: China | C23: =+P23/$Q23 -> 0.3727247943 | D23: Developing | E23: Asia | F23: Articles of apparel & clothing accessories | G23: 74162523.25 | H23: 95387773.15 | I23: 115520128.3 | J23: 120404747.6 | K23: 107263731.4 | L23: 129820286.4 | M23: 153773607.7 | N23: 159613703.2 | O23: 177434933.8 | P23: 186614120.4 | Q23: 500675359.7
A24: Export | B24: Italy | C24: 0.04938856076 | D24: Developed | E24: Europe | F24: Articles of apparel & clothing accessories | G24: 18646640.76 | H24: 20048712.02 | I24: 23264151.17 | J24: 25212206.26 | K24: 19617089.67 | L24: 20024596.65 | M24: 23273080.92 | N24: 22174189.54 | O24: 23728303.3 | P24: 24727635.42 | Q24: 500675359.7
A25: Export | B25: Bangladesh | C25: 0.04830399559 | D25: Developing | E25: Asia | F25: Articles of apparel & clothing accessories | G25: 7208941.428 | H25: 9075554.4 | I25: 10088319.63 | J25: 12288453.98 | K25: 12678872.18 | L25: 15397565.91 | M25: 19702899.76 | N25: 19946867.09 | O25: 23203043.85 | P25: 24184620.37 | Q25: 500675359.7
A26: Export | B26: China, Hong Kong SAR | C26: 0.04096505147 | D26: Developing | E26: Asia | F26: Articles of apparel & clothing accessories | G26: 27292317.86 | H26: 28390526.05 | I26: 28764634.21 | J26: 27907679.43 | K26: 22825690.31 | L26: 24048955.25 | M26: 24504787.06 | N26: 22572965.49 | O26: 21921575.64 | P26: 20510191.88 | Q26: 500675359.7
A27: Export | B27: Germany | C27: 0.04039137183 | D27: Developed | E27: Europe | F27: Articles of apparel & clothing accessories | G27: 12436462 | H27: 13912627 | I27: 16011488 | J27: 18138050 | K27: 16489538 | L27: 16970643.27 | M27: 20086458.54 | N27: 18312476.32 | O27: 18983817.47 | P27: 20222964.62 | Q27: 500675359.7
A28: Export | B28: Viet Nam | C28: 0.03990681624 | D28: Developing | E28: Asia | F28: Articles of apparel & clothing accessories | G28: 4680633.515 | H28: 5579137.992 | I28: 7400353.971 | J28: 8724434.957 | K28: 8539539.681 | L28: 10389595.92 | M28: 13149072.09 | N28: 14442810.25 | O28: 17148429.24 | P28: 19980359.57 | Q28: 500675359.7
A29: Export | B29: India | C29: 0.03525302913 | D29: Developing | E29: Asia | F29: Articles of apparel & clothing accessories | G29: 8738943.369 | H29: 9564341.415 | I29: 9929810.17 | J29: 10967763.34 | K29: 12004893.44 | L29: 11229331.87 | M29: 14671994.1 | N29: 13832714.71 | O29: 16842801.08 | P29: 17650323.04 | Q29: 500675359.7
A30: Export | B30: Turkey | C30: 0.03331589284 | D30: Developing | E30: Asia | F30: Articles of apparel & clothing accessories | G30: 11833105.92 | H30: 12051921.8 | I30: 13886333.45 | J30: 13590731.81 | K30: 11555926.53 | L30: 12760244.84 | M30: 13947693.56 | N30: 14289647.11 | O30: 15393251.48 | P30: 16680446.63 | Q30: 500675359.7
A31: Export | B31: Spain | C31: 0.02500517242 | D31: Developed | E31: Europe | F31: Articles of apparel & clothing accessories | G31: 4415947.791 | H31: 5223722.02 | I31: 6185156.656 | J31: 7624770.848 | K31: 7641303.75 | L31: 7736930.063 | M31: 9167365.508 | N31: 9606245.242 | O31: 11454645.73 | P31: 12519473.7 | Q31: 500675359.7
A32: Export | B32: France | C32: 0.02336553555 | D32: Developed | E32: Europe | F32: Articles of apparel & clothing accessories | G32: 8354819.265 | H32: 9165585.244 | I32: 10795044.25 | J32: 11634625.32 | K32: 10042123.29 | L32: 9996101.184 | M32: 11043188.4 | N32: 10355318.44 | O32: 11180763.6 | P32: 11698547.92 | Q32: 500675359.7
A33: Export | B33: Netherlands | D33: Developed | E33: Europe | F33: Articles of apparel & clothing accessories | G33: 4391169.35 | H33: 4794527.8 | I33: 5769375.148 | J33: 6393841.018 | K33: 6171637.275 | L33: 6558990.885 | M33: 8939775.681 | N33: 7747542.851 | O33: 8797405.898 | P33: 9768503.361 | Q33: 500675359.7
A34: Export | B34: United Kingdom | D34: Developed | E34: Europe | F34: Articles of apparel & clothing accessories | G34: 4975609.938 | H34: 5358124.39 | I34: 6194152.785 | J34: 6120016.805 | K34: 5228214.353 | L34: 5597071.006 | M34: 6758676.803 | N34: 6765314.31 | O34: 7961751.183 | P34: 9025328.352 | Q34: 500675359.7
A35: Export | B35: Belgium | D35: Developed | E35: Europe | F35: Articles of apparel & clothing accessories | G35: 6762533.161 | H35: 7232292.453 | I35: 8374822.602 | J35: 9750637.967 | K35: 8457552.835 | L35: 7809159.488 | M35: 9057627.823 | N35: 7867726.448 | O35: 9271810.116 | P35: 8930922.112 | Q35: 500675359.7
A36: Export | B36: Indonesia | D36: Developing | E36: Asia | F36: Articles of apparel & clothing accessories | G36: 5106352.133 | H36: 5760491.028 | I36: 5869799.968 | J36: 6284683.468 | K36: 5915036.522 | L36: 6819974.722 | M36: 8045240.376 | N36: 7523721.237 | O36: 7692497.62 | P36: 7669791.628 | Q36: 500675359.7
A37: Export | B37: Cambodia | D37: Developing | E37: Asia | F37: Articles of apparel & clothing accessories | G37: 2401141.048 | H37: 2844729.913 | I37: 3257814.328 | J37: 3363736.154 | K37: 2669265.134 | L37: 3712338.06 | M37: 4546846.048 | N37: 4693071.167 | O37: 5866763.065 | P37: 7131085.335 | Q37: 500675359.7
A38: Export | B38: United States | D38: Developed | E38: Americas | F38: Articles of apparel & clothing accessories | G38: 4997922.396 | H38: 4875958.441 | I38: 4297254.076 | J38: 4456968.951 | K38: 4179775.403 | L38: 4693724.758 | M38: 5240500.492 | N38: 5606519.291 | O38: 5857782.586 | P38: 6108417.461 | Q38: 500675359.7
A39: Export | B39: Pakistan | D39: Developing | E39: Asia | F39: Articles of apparel & clothing accessories | G39: 3603594.612 | H39: 3906892.195 | I39: 3806364.63 | J39: 3906000.326 | K39: 3357488.389 | L39: 3930180.49 | M39: 4549630.408 | N39: 4213961.292 | O39: 4548912.773 | P39: 4991029.849 | Q39: 500675359.7
A40: Export | B40: Sri Lanka | D40: Developing | E40: Asia | F40: Articles of apparel & clothing accessories | G40: 2873570.525 | H40: 3047922.048 | I40: 3271523.236 | J40: 3437443.814 | K40: 3265311.821 | L40: 3491431.059 | M40: 4211454.917 | N40: 4005012.673 | O40: 4516549.661 | P40: 4918854.343 | Q40: 500675359.7
A41: Export | B41: Malaysia | D41: Developing | E41: Asia | F41: Articles of apparel & clothing accessories | G41: 2478479.475 | H41: 2842448.29 | I41: 3158929.443 | J41: 3624348.102 | K41: 3126120.738 | L41: 3880141.49 | M41: 4567455.977 | N41: 4559957.396 | O41: 4580511.492 | P41: 4766474.864 | Q41: 500675359.7
A42: Export | B42: Mexico | D42: Developing | E42: Americas | F42: Articles of apparel & clothing accessories | G42: 7305680.49 | H42: 6323463.112 | I42: 5122233.407 | J42: 4910886.531 | K42: 4112818.709 | L42: 4363454.412 | M42: 4637617.132 | N42: 4448912.152 | O42: 4530076.651 | P42: 4617907.042 | Q42: 500675359.7
A43: Export | B43: Poland | D43: Developed | E43: Europe | F43: Articles of apparel & clothing accessories | G43: 2097662.225 | H43: 2134282.775 | I43: 2380736.709 | J43: 3266806.613 | K43: 2988169.015 | L43: 3236711.876 | M43: 3805403.256 | N43: 3464950.571 | O43: 3960643.455 | P43: 4538097.497 | Q43: 500675359.7
A44: Export | B44: Denmark | D44: Developed | E44: Europe | F44: Articles of apparel & clothing accessories | G44: 2869997.016 | H44: 3335521.602 | I44: 3876334.98 | J44: 4123285.899 | K44: 3448170.806 | L44: 3707904.078 | M44: 4346227.158 | N44: 3860755.574 | O44: 4013827.86 | P44: 4423965.162 | Q44: 500675359.7
A45: Export | B45: Thailand | D45: Developing | E45: Asia | F45: Articles of apparel & clothing accessories | G45: 4085275.543 | H45: 4247459.439 | I45: 4073039.687 | J45: 4240648.953 | K45: 3724496.265 | L45: 4299578.29 | M45: 4561184.804 | N45: 4274570.961 | O45: 4100309.973 | P45: 4129189.701 | Q45: 500675359.7
A46: Export | B46: Morocco | D46: Developing | E46: Africa | F46: Articles of apparel & clothing accessories | G46: 2865171.272 | H46: 3170616.302 | I46: 3520940.868 | J46: 3740336.127 | K46: 3158613.519 | L46: 3261901.813 | M46: 3527656.408 | N46: 3406090.202 | O46: 3441543.949 | P46: 4034204.771 | Q46: 500675359.7
A47: Export | B47: Portugal | D47: Developed | E47: Europe | F47: Articles of apparel & clothing accessories | G47: 3206887.055 | H47: 3263520.305 | I47: 3769731.604 | J47: 3882944.851 | K47: 3214989.689 | L47: 3176391.982 | M47: 4009849.797 | N47: 3402678.986 | O47: 3718956.401 | P47: 4033478.695 | Q47: 500675359.7
A48: Export | B48: Romania | D48: Developed | E48: Europe | F48: Articles of apparel & clothing accessories | G48: 4627022.405 | H48: 4423017.11 | I48: 4315153.821 | J48: 4090721.14 | K48: 3041578.293 | L48: 3020310.542 | M48: 3639258.83 | N48: 3339105.384 | O48: 3440593.337 | P48: 3628763.122 | Q48: 500675359.7
A49: Export | B49: Tunisia | D49: Developing | E49: Africa | F49: Articles of apparel & clothing accessories | G49: 3124346.585 | H49: 3018088.292 | I49: 3571060.454 | J49: 3765592.493 | K49: 3120268.251 | L49: 3089175.136 | M49: 3317197.913 | N49: 2724100.196 | O49: 2802319.652 | P49: 2828405.524 | Q49: 500675359.7
A50: Export | B50: Austria | D50: Developed | E50: Europe | F50: Articles of apparel & clothing accessories | G50: 2068939.241 | H50: 2113001.263 | I50: 2531824.652 | J50: 2733627.298 | K50: 2151059.653 | L50: 2130575.775 | M50: 2544607.635 | N50: 2279979.103 | O50: 2408630.816 | P50: 2700386.491 | Q50: 500675359.7
A51: Export | B51: Korea, Republic of | D51: Developing | E51: Asia | F51: Articles of apparel & clothing accessories | G51: 2580975.082 | H51: 2182779.708 | I51: 1914435.775 | J51: 1741315.207 | K51: 1396386.817 | L51: 1609763.653 | M51: 1839543.494 | N51: 1910291.098 | O51: 2100105.867 | P51: 2248550.755 | Q51: 500675359.7
A52: Export | B52: El Salvador | D52: Developing | E52: Americas | F52: Articles of apparel & clothing accessories | G52: 1677021.665 | H52: 1652874.691 | I52: 1604838.011 | J52: 1748744.511 | K52: 1402935.043 | L52: 1723095.8 | M52: 1800499.094 | N52: 1924896.922 | O52: 2086679.862 | P52: 2109180.407 | Q52: 500675359.7
A53: Export | B53: Sweden | D53: Developed | E53: Europe | F53: Articles of apparel & clothing accessories | G53: 978596.633 | H53: 1144616.249 | I53: 1338831.375 | J53: 1495320.588 | K53: 1318673.723 | L53: 1523554.852 | M53: 1879383.654 | N53: 1875687.426 | O53: 2011781.344 | P53: 2041324.157 | Q53: 500675359.7
A54: Export | B54: Honduras | D54: Developing | E54: Americas | F54: Articles of apparel & clothing accessories | G54: 2232462.989 | H54: 1951762.975 | I54: 1982057.87 | J54: 2194309.922 | K54: 1465329.563 | L54: 1841390.711 | M54: 2117658.08 | N54: 1877083.536 | O54: 2073368.314 | P54: 1988642.544 | Q54: 500675359.7
A55: Export | B55: Bulgaria | D55: Developed | E55: Europe | F55: Articles of apparel & clothing accessories | G55: 1725248.441 | H55: 1827819.945 | I55: 2006809.066 | J55: 1959373.16 | K55: 1587223.426 | L55: 1537386.745 | M55: 1812663.158 | N55: 1612586.042 | O55: 1774405.21 | P55: 1845086.928 | Q55: 500675359.7
A56: Export | B56: Philippines | D56: Developing | E56: Asia | F56: Articles of apparel & clothing accessories | G56: 2287106.896 | H56: 2624302.309 | I56: 2294417.014 | J56: 1978990.925 | K56: 1534140.128 | L56: 1077751.215 | M56: 1402183.188 | N56: 1611590.064 | O56: 1557797.947 | P56: 1842853.934 | Q56: 500675359.7
A57: Export | B57: Czech Republic | D57: Developed | E57: Europe | F57: Articles of apparel & clothing accessories | G57: 1257968.881 | H57: 1173970.263 | I57: 1442762.795 | J57: 1423690.367 | K57: 1293695.129 | L57: 1252688.293 | M57: 1423794.547 | N57: 1425615.25 | O57: 1431319.376 | P57: 1542416.741 | Q57: 500675359.7
A58: Export | B58: United Arab Emirates | D58: Developing | E58: Asia | F58: Articles of apparel & clothing accessories | G58: 1130820.086 | H58: 1240871.467 | I58: 1355377.465 | J58: 1283685.614 | K58: 1536648.898 | L58: 942272.937 | M58: 1042716.791 | N58: 1497405.619 | O58: 1512278.034 | P58: 1515272.669 | Q58: 500675359.7
A59: Export | B59: Nicaragua | D59: Developing | E59: Americas | F59: Articles of apparel & clothing accessories | G59: 437699.051 | H59: 532102.314 | I59: 587217.603 | J59: 732255.48 | K59: 548674.737 | L59: 657410.907 | M59: 824213.623 | N59: 1139153.609 | O59: 1216453.08 | P59: 1415501.593 | Q59: 500675359.7
A60: Export | B60: Guatemala | D60: Developing | E60: Americas | F60: Articles of apparel & clothing accessories | G60: 1573142.984 | H60: 1237182.648 | I60: 1447041.955 | J60: 1317266.045 | K60: 1101703.152 | L60: 1214553.419 | M60: 1304017.58 | N60: 1274511.526 | O60: 1370250.684 | P60: 1400782.853 | Q60: 500675359.7
A61: Export | B61: Egypt | D61: Developing | E61: Africa | F61: Articles of apparel & clothing accessories | G61: 565454.174 | H61: 654553.526 | I61: 725717.816 | J61: 1105660.132 | K61: 1416933.56 | L61: 1368879.383 | M61: 1558032.14 | N61: 1335503.814 | O61: 1415487.039 | P61: 1393511.389 | Q61: 500675359.7
A62: Export | B62: Switzerland | D62: Developed | E62: Europe | F62: Articles of apparel & clothing accessories | G62: 1525602.809 | H62: 1619903.081 | I62: 1771292.313 | J62: 1921227.633 | K62: 1616482.113 | L62: 1366307.022 | M62: 1541591.377 | N62: 1408969.428 | O62: 1388538.955 | P62: 1385517.356 | Q62: 500675359.7
A63: Export | B63: Canada | D63: Developed | E63: Americas | F63: Articles of apparel & clothing accessories | G63: 1860651.462 | H63: 1797863.69 | I63: 1585793.647 | J63: 1271650.462 | K63: 1005182.585 | L63: 1172683.953 | M63: 1288776.287 | N63: 1280161.834 | O63: 1269685.889 | P63: 1371457.454 | Q63: 500675359.7
A64: Export | B64: Slovakia | D64: Developed | E64: Europe | F64: Articles of apparel & clothing accessories | G64: 809490.325 | H64: 805443.718 | I64: 940756.366 | J64: 1027897.863 | K64: 877256.441 | L64: 1107984.076 | M64: 1294306.456 | N64: 1161081.981 | O64: 1252063.687 | P64: 1347452.941 | Q64: 500675359.7
A65: Export | B65: Singapore | D65: Developing | E65: Asia | F65: Articles of apparel & clothing accessories | G65: 1696437.548 | H65: 1984698.798 | I65: 1779042.226 | J65: 1557033.796 | K65: 1045210.761 | L65: 1068991.918 | M65: 1189853.599 | N65: 1334722.353 | O65: 1271554.571 | P65: 1346095.852 | Q65: 500675359.7
A66: Export | B66: Jordan | D66: Developing | E66: Asia | F66: Articles of apparel & clothing accessories | G66: 1039157.164 | H66: 1284174.761 | I66: 1207123.838 | J66: 1083403.877 | K66: 872759.861 | L66: 898734.316 | M66: 962527.082 | N66: 981719.702 | O66: 1091136.541 | P66: 1210854.994 | Q66: 500675359.7
A67: Export | B67: Peru | D67: Developing | E67: Americas | F67: Articles of apparel & clothing accessories | G67: 1057066.126 | H67: 1203768.135 | I67: 1406112.632 | J67: 1641171.035 | K67: 1166267.106 | L67: 1188516.838 | M67: 1524663.791 | N67: 1619146.188 | O67: 1391931.088 | P67: 1201478.256 | Q67: 500675359.7
A68: Export | B68: China, Taiwan Province of | D68: Developing | E68: Asia | F68: Articles of apparel & clothing accessories | G68: 1561049.355 | H68: 1410322.135 | I68: 1274495.357 | J68: 1194478.09 | K68: 903917.059 | L68: 978903.943 | M68: 994145.992 | N68: 970906.091 | O68: 920023.105 | P68: 1001240.294 | Q68: 500675359.7
A69: Export | B69: Lithuania | D69: Developed | E69: Europe | F69: Articles of apparel & clothing accessories | G69: 680733.519 | H69: 705067.792 | I69: 740892.056 | J69: 781759.19 | K69: 648641.773 | L69: 709883.86 | M69: 859740.945 | N69: 783675.764 | O69: 959608.425 | P69: 957286.937 | Q69: 500675359.7
A70: Export | B70: Greece | D70: Developed | E70: Europe | F70: Articles of apparel & clothing accessories | G70: 1614978.31 | H70: 1545347.389 | I70: 1575580.542 | J70: 1609579.644 | K70: 1165178.352 | L70: 1093162.03 | M70: 1126435.179 | N70: 951512.429 | O70: 967307.167 | P70: 946975.027 | Q70: 500675359.7
A71: Export | B71: Korea, Dem. People's Rep. of | D71: Developing | E71: Asia | F71: Articles of apparel & clothing accessories | G71: 93934.744 | H71: 81407.744 | I71: 89479.363 | J71: 96920.713 | K71: 183932.162 | L71: 268081.992 | M71: 532187.037 | N71: 566821.787 | O71: 642001.251 | P71: 829563.523 | Q71: 500675359.7
A72: Export | B72: Mauritius | D72: Developing | E72: Africa | F72: Articles of apparel & clothing accessories | G72: 744517.194 | H72: 771730.576 | I72: 886965.916 | J72: 845259.023 | K72: 734442.418 | L72: 657987.774 | M72: 893230.604 | N72: 821036.751 | O72: 758826.368 | P72: 810147.289 | Q72: 500675359.7
A73: Export | B73: Croatia | D73: Developed | E73: Europe | F73: Articles of apparel & clothing accessories | G73: 570405.875 | H73: 538164.313 | I73: 585066.647 | J73: 603518.634 | K73: 508759.927 | L73: 488096.073 | M73: 578018.91 | N73: 516280.8 | O73: 517454.792 | P73: 803264.886 | Q73: 500675359.7
A74: Export | B74: Dominican Republic | D74: Developing | E74: Americas | F74: Articles of apparel & clothing accessories | G74: 2018831.741 | H74: 1660947.512 | I74: 1088357.413 | J74: 829196.29 | K74: 708834.676 | L74: 776922.479 | M74: 900041.154 | N74: 994060.564 | O74: 783239.174 | P74: 801399.101 | Q74: 500675359.7
A75: Export | B75: Hungary | D75: Developed | E75: Europe | F75: Articles of apparel & clothing accessories | G75: 1289740 | H75: 1086675 | I75: 1072777 | J75: 987714 | K75: 751270 | L75: 703914 | M75: 830017 | N75: 673368 | O75: 753224.362 | P75: 755172.097 | Q75: 500675359.7
A76: Export | B76: Haiti | D76: Developing | E76: Americas | F76: Articles of apparel & clothing accessories | G76: 352721.327 | H76: 362101.163 | I76: 352713.112 | J76: 303676.065 | K76: 378239.48 | L76: 377176.483 | M76: 495784.984 | N76: 616446.716 | O76: 664019.942 | P76: 683991.262 | Q76: 500675359.7
A77: Export | B77: TFYR of Macedonia | D77: Developing (transition) | E77: Europe | F77: Articles of apparel & clothing accessories | G77: 498002.896 | H77: 508515.341 | I77: 634945.667 | J77: 902575.845 | K77: 583500.916 | L77: 564571.402 | M77: 658377.075 | N77: 602751.281 | O77: 623916.547 | P77: 669112.984 | Q77: 500675359.7
A78: Export | B78: Serbia | D78: Developing (transition) | E78: Europe | F78: Articles of apparel & clothing accessories | G78: _ | H78: _ | I78: _ | J78: 552375.734 | K78: 533255.71 | L78: 406944.745 | M78: 480651.585 | N78: 504766.6 | O78: 602675.372 | P78: 629224.937 | Q78: 500675359.7
A79: Export | B79: Japan | D79: Developed | E79: Asia | F79: Articles of apparel & clothing accessories | G79: 495075.351 | H79: 485240.94 | I79: 522746.681 | J79: 591035.68 | K79: 483720.753 | L79: 531451.171 | M79: 595164.095 | N79: 557207.206 | O79: 487044.008 | P79: 622749.518 | Q79: 500675359.7
A80: Export | B80: Ukraine | D80: Developing (transition) | E80: Europe | F80: Articles of apparel & clothing accessories | G80: 689063.942 | H80: 681534.122 | I80: 718184.12 | J80: 719036.406 | K80: 550948.109 | L80: 569301.186 | M80: 668172.84 | N80: 573030.806 | O80: 584983.543 | P80: 567905.769 | Q80: 500675359.7
A81: Export | B81: Colombia | D81: Developing | E81: Americas | F81: Articles of apparel & clothing accessories | G81: 907682.573 | H81: 962175.319 | I81: 1351124.959 | J81: 1221997.773 | K81: 592026.145 | L81: 650072.282 | M81: 649985.501 | N81: 702591.057 | O81: 614920.473 | P81: 546325.407 | Q81: 500675359.7
A82: Export | B82: Belarus | D82: Developing (transition) | E82: Europe | F82: Articles of apparel & clothing accessories | G82: 330345.7 | H82: 349853.6 | I82: 399599.6 | J82: 449380.5 | K82: 344220.2 | L82: 432405.1 | M82: 506560.1 | N82: 577070.5 | O82: 574610.2 | P82: 534866.7 | Q82: 500675359.7
A83: Export | B83: South Africa | D83: Developing | E83: Africa | F83: Articles of apparel & clothing accessories | G83: 173267.045 | H83: 142236.097 | I83: 118581.678 | J83: 119224.106 | K83: 100411.848 | L83: 424887.049 | M83: 490740.36 | N83: 477785.693 | O83: 502917.361 | P83: 496331.799 | Q83: 500675359.7
A84: Export | B84: Madagascar | D84: Developing | E84: Africa | F84: Articles of apparel & clothing accessories | G84: 346018.44 | H84: 396292.332 | I84: 612160.661 | J84: 659388.253 | K84: 473311.727 | L84: 329808.226 | M84: 351175.112 | N84: 422351.056 | O84: 461037.165 | P84: 465933.396 | Q84: 500675359.7
A85: Export | B85: Finland | D85: Developed | E85: Europe | F85: Articles of apparel & clothing accessories | G85: 285393.881 | H85: 297162.794 | I85: 344575.017 | J85: 375594.299 | K85: 293993.164 | L85: 329904.124 | M85: 408419.162 | N85: 415957.56 | O85: 448100.042 | P85: 429332.636 | Q85: 500675359.7
A86: Export | B86: Russian Federation | D86: Developing (transition) | E86: Europe | F86: Articles of apparel & clothing accessories | G86: 188879.254 | H86: 129804.014 | I86: 143730.397 | J86: 116097.928 | K86: 98864.634 | L86: 89107.427 | M86: 112059.707 | N86: 246566.043 | O86: 336781.583 | P86: 405807.253 | Q86: 500675359.7
A87: Export | B87: Lesotho | D87: Developing | E87: Africa | F87: Articles of apparel & clothing accessories | G87: 532481.217 | H87: 566413.86 | I87: 625578.651 | J87: 405606.143 | K87: 404119.472 | L87: 342562.056 | M87: 501480.319 | N87: 436806.272 | O87: 379158.724 | P87: 401458.007 | Q87: 500675359.7
A88: Export | B88: Uzbekistan | D88: Developing (transition) | E88: Asia | F88: Articles of apparel & clothing accessories | G88: 36353.138 | H88: 46063.916 | I88: 88174.146 | J88: 90735.385 | K88: 119758.561 | L88: 218988.64 | M88: 265506.713 | N88: 446886.157 | O88: 462353.264 | P88: 390136.578 | Q88: 500675359.7
A89: Export | B89: Chile | D89: Developing | E89: Americas | F89: Articles of apparel & clothing accessories | G89: 147466.311 | H89: 184084.017 | I89: 230439.265 | J89: 234150.381 | K89: 189115.578 | L89: 270153.998 | M89: 440696.934 | N89: 403527.995 | O89: 360805.975 | P89: 370114.53 | Q89: 500675359.7
A90: Export | B90: Bahrain | D90: Developing | E90: Asia | F90: Articles of apparel & clothing accessories | G90: 247296.567 | H90: 148136.638 | I90: 123889.274 | J90: 147677.57 | K90: 143733.754 | L90: 195300.784 | M90: 168333.479 | N90: 206058.574 | O90: 244567.377 | P90: 362222.287 | Q90: 500675359.7
A91: Export | B91: Ireland | D91: Developed | E91: Europe | F91: Articles of apparel & clothing accessories | G91: 330156.527 | H91: 286081.037 | I91: 257537.348 | J91: 225045.465 | K91: 221996.274 | L91: 475949.088 | M91: 517020.123 | N91: 466055.426 | O91: 285556.433 | P91: 342759.685 | Q91: 500675359.7
A92: Export | B92: Albania | D92: Developing (transition) | E92: Europe | F92: Articles of apparel & clothing accessories | G92: 174844.92 | H92: 200897.058 | I92: 266884.6 | J92: 342879.173 | K92: 191366.676 | L92: 289750.293 | M92: 349500.353 | N92: 312966.645 | O92: 341686.908 | P92: 335924.022 | Q92: 500675359.7
A93: Export | B93: Kenya | D93: Developing | E93: Africa | F93: Articles of apparel & clothing accessories | G93: 258021.179 | H93: 253635.571 | I93: 253813.253 | J93: 250694.243 | K93: 189072.459 | L93: 194910.224 | M93: 203132.387 | N93: 230240.252 | O93: 272891.958 | P93: 329334.976 | Q93: 500675359.7
A94: Export | B94: Estonia | D94: Developed | E94: Europe | F94: Articles of apparel & clothing accessories | G94: 278180.528 | H94: 281831.845 | I94: 324722.508 | J94: 412351.873 | K94: 252068.415 | L94: 306101.351 | M94: 389241.879 | N94: 358605.652 | O94: 369477.353 | P94: 306769.569 | Q94: 500675359.7
A95: Export | B95: Myanmar | D95: Developing | E95: Asia | F95: Articles of apparel & clothing accessories | G95: 717580.284 | H95: 849907.797 | I95: 1138642.863 | J95: 1222792.116 | K95: 1209353.158 | L95: 337395.631 | M95: 579760.519 | N95: 539367.426 | O95: 652837.769 | P95: 299430.793 | Q95: 500675359.7
A96: Export | B96: Bosnia and Herzegovina | D96: Developing (transition) | E96: Europe | F96: Articles of apparel & clothing accessories | G96: 136038.795 | H96: 174550.418 | I96: 207683.182 | J96: 242891.63 | K96: 213472.682 | L96: 205744.666 | M96: 256589.621 | N96: 215871.853 | O96: 259323.061 | P96: 299032.654 | Q96: 500675359.7
A97: Export | B97: Latvia | D97: Developed | E97: Europe | F97: Articles of apparel & clothing accessories | G97: 285587.992 | H97: 278991.122 | I97: 297499.303 | J97: 311219.142 | K97: 227937.523 | L97: 229626.247 | M97: 289829.742 | N97: 299656.973 | O97: 327305.625 | P97: 297165.001 | Q97: 500675359.7
A98: Export | B98: Slovenia | D98: Developed | E98: Europe | F98: Articles of apparel & clothing accessories | G98: 353231.84 | H98: 338636.063 | I98: 384027.241 | J98: 407318.373 | K98: 303090.573 | L98: 285962.312 | M98: 292484.137 | N98: 245066.421 | O98: 255634.36 | P98: 288235.919 | Q98: 500675359.7
A99: Export | B99: Republic of Moldova | D99: Developing (transition) | E99: Europe | F99: Articles of apparel & clothing accessories | G99: 153474.715 | H99: 178223.293 | I99: 192941.752 | J99: 206589.349 | K99: 197583.993 | L99: 226959.153 | M99: 286254.713 | N99: 268435.133 | O99: 275048.304 | P99: 277629.5 | Q99: 500675359.7
A100: Export | B100: New Zealand | D100: Developed | E100: Oceania | F100: Articles of apparel & clothing accessories | G100: 203520.003 | H100: 185832.418 | I100: 208537.801 | J100: 189902.597 | K100: 157357.335 | L100: 186375.335 | M100: 206468.033 | N100: 187057.327 | O100: 227659.255 | P100: 261539.65 | Q100: 500675359.7
A101: Export | B101: Australia | D101: Developed | E101: Oceania | F101: Articles of apparel & clothing accessories | G101: 206308.109 | H101: 184543.838 | I101: 199248.217 | J101: 212728.801 | K101: 182010.142 | L101: 215847.655 | M101: 256172.634 | N101: 263963.015 | O101: 229017.564 | P101: 221873.412 | Q101: 500675359.7
A102: Export | B102: Lao People's Dem. Rep. | D102: Developing | E102: Asia | F102: Articles of apparel & clothing accessories | G102: 164797.239 | H102: 160988.668 | I102: 158866.175 | J102: 182940.478 | K102: 155924.223 | L102: 206754.869 | M102: 216641.906 | N102: 189685.004 | O102: 159653.185 | P102: 189365.822 | Q102: 500675359.7
A103: Export | B103: Brazil | D103: Developing | E103: Americas | F103: Articles of apparel & clothing accessories | G103: 364606.532 | H103: 305478.411 | I103: 281099.057 | J103: 251950.424 | K103: 172875.079 | L103: 156886.676 | M103: 192869.778 | N103: 166944.505 | O103: 162973.726 | P103: 159492.711 | Q103: 500675359.7
A104: Export | B104: Israel | D104: Developed | E104: Asia | F104: Articles of apparel & clothing accessories | G104: 483201 | H104: 464437 | I104: 353696 | J104: 330018 | K104: 201487 | L104: 180944 | M104: 177018 | N104: 160601 | O104: 154962 | P104: 158814 | Q104: 500675359.7
A105: Export | B105: Panama | D105: Developing | E105: Americas | F105: Articles of apparel & clothing accessories | G105: 309155.99 | H105: 961666.721 | I105: 1054199.376 | J105: 1057826.364 | K105: 998571.008 | L105: 1092052.426 | M105: 1361942.962 | N105: 301740.366 | O105: 189255.482 | P105: 158723.334 | Q105: 500675359.7
A106: Export | B106: Luxembourg | D106: Developed | E106: Europe | F106: Articles of apparel & clothing accessories | G106: 211844.338 | H106: 239184.366 | I106: 202177.186 | J106: 208449.22 | K106: 177226.18 | L106: 161572.314 | M106: 136626.901 | N106: 131284.597 | O106: 130407.529 | P106: 134534.513 | Q106: 500675359.7
A107: Export | B107: Kyrgyzstan | D107: Developing (transition) | E107: Asia | F107: Articles of apparel & clothing accessories | G107: 33788.115 | H107: 59430.328 | I107: 96701.677 | J107: 139905.71 | K107: 182072.415 | L107: 239534.773 | M107: 213937.256 | N107: 185684.589 | O107: 130118.707 | P107: 123508.461 | Q107: 500675359.7
A108: Export | B108: Norway | D108: Developed | E108: Europe | F108: Articles of apparel & clothing accessories | G108: 86697.146 | H108: 92114.965 | I108: 109011.088 | J108: 119642.856 | K108: 99158.423 | L108: 110568.023 | M108: 145247.937 | N108: 124671.92 | O108: 127012.277 | P108: 116754.606 | Q108: 500675359.7
A109: Export | B109: Syrian Arab Republic | D109: Developing | E109: Asia | F109: Articles of apparel & clothing accessories | G109: 261151.893 | H109: 495637.662 | I109: 535577.777 | J109: 442666.829 | K109: 492215.429 | L109: 525055.368 | M109: 444991.317 | N109: 222196.409 | O109: 95723.02 | P109: 101805.53 | Q109: 500675359.7
A110: Export | B110: China, Macao SAR | D110: Developing | E110: Asia | F110: Articles of apparel & clothing accessories | G110: 1838993.786 | H110: 1779363.831 | I110: 1663282.598 | J110: 799483.772 | K110: 151425.897 | L110: 79585.955 | M110: 57547.933 | N110: 58685.946 | O110: 126389.292 | P110: 97854.289 | Q110: 500675359.7
A111: Export | B111: Nepal | D111: Developing | E111: Asia | F111: Articles of apparel & clothing accessories | G111: 192162.853 | H111: 182500.105 | I111: 160582.623 | J111: 163582.913 | K111: 83582.956 | L111: 83542.69 | M111: 96131.283 | N111: 61724.259 | O111: 76165.601 | P111: 92237.897 | Q111: 500675359.7
A112: Export | B112: Georgia | D112: Developing (transition) | E112: Asia | F112: Articles of apparel & clothing accessories | G112: 8525.523 | H112: 11763.657 | I112: 14949.518 | J112: 19925.832 | K112: 24135.343 | L112: 28038.4 | M112: 26379.267 | N112: 45437.426 | O112: 61377.687 | P112: 90964.881 | Q112: 500675359.7
A113: Export | B113: Swaziland | D113: Developing | E113: Africa | F113: Articles of apparel & clothing accessories | G113: 260701.064 | H113: 231671.173 | I113: 147254.477 | J113: 171687.722 | K113: 158001.571 | L113: 157478.919 | M113: 124749.101 | N113: 109220.772 | O113: 92223.806 | P113: 87525.721 | Q113: 500675359.7
A114: Export | B114: Lebanon | D114: Developing | E114: Asia | F114: Articles of apparel & clothing accessories | G114: 57482.852 | H114: 61676.015 | I114: 70910.443 | J114: 76015.581 | K114: 76858.238 | L114: 80626.157 | M114: 93602.447 | N114: 98573.626 | O114: 108525.661 | P114: 82967.361 | Q114: 500675359.7
A115: Export | B115: Argentina | D115: Developing | E115: Americas | F115: Articles of apparel & clothing accessories | G115: 100770.871 | H115: 109110.284 | I115: 110379.586 | J115: 124434.992 | K115: 93091.144 | L115: 100875.817 | M115: 118420.021 | N115: 124639.326 | O115: 99648.46 | P115: 79091.846 | Q115: 500675359.7
A116: Export | B116: Turkmenistan | D116: Developing (transition) | E116: Asia | F116: Articles of apparel & clothing accessories | G116: 58367.98 | H116: 64636.555 | I116: 87423.843 | J116: 62468.192 | K116: 60061.828 | L116: 83571.416 | M116: 70738.95 | N116: 262759.066 | O116: 81574.641 | P116: 70444.126 | Q116: 500675359.7
A117: Export | B117: Fiji | D117: Developing | E117: Oceania | F117: Articles of apparel & clothing accessories | G117: 87838.414 | H117: 67200.743 | I117: 70082.08 | J117: 79047.446 | K117: 47790.174 | L117: 55793.21 | M117: 60245.096 | N117: 64645.81 | O117: 80701.678 | P117: 69585.864 | Q117: 500675359.7
A118: Export | B118: Costa Rica | D118: Developing | E118: Americas | F118: Articles of apparel & clothing accessories | G118: 339686.482 | H118: 268015.36 | I118: 235878.832 | J118: 211054.959 | K118: 121242.865 | L118: 92955.374 | M118: 89043.455 | N118: 88242.397 | O118: 62551.349 | P118: 66988.874 | Q118: 500675359.7
A119: Export | B119: Armenia | D119: Developing (transition) | E119: Asia | F119: Articles of apparel & clothing accessories | G119: 26810.31 | H119: 24680.992 | I119: 24655.044 | J119: 24304.536 | K119: 12516.878 | L119: 18485.336 | M119: 28447.986 | N119: 33367.962 | O119: 49160.716 | P119: 64722.59 | Q119: 500675359.7
A120: Export | B120: Kuwait | D120: Developing | E120: Asia | F120: Articles of apparel & clothing accessories | G120: 44851.081 | H120: 11775.391 | I120: 14210.695 | J120: 16730.753 | K120: 11739.631 | L120: 10819.332 | M120: 13456.269 | N120: 16598.708 | O120: 37272.079 | P120: 64061.882 | Q120: 500675359.7
A121: Export | B121: Ethiopia | D121: Developing | E121: Africa | F121: Articles of apparel & clothing accessories | G121: 3936.818 | H121: 3863.417 | I121: 3498.341 | J121: 8499.605 | K121: 6190.095 | L121: 13114.524 | M121: 40250.413 | N121: 46924.724 | O121: 63573.152 | P121: 62840.694 | Q121: 500675359.7
A122: Export | B122: Saudi Arabia | D122: Developing | E122: Asia | F122: Articles of apparel & clothing accessories | G122: 32482.218 | H122: 39453.906 | I122: 64613.853 | J122: 27575.327 | K122: 34714.336 | L122: 56036.855 | M122: 31692.845 | N122: 80267.398 | O122: 52967.685 | P122: 55350.604 | Q122: 500675359.7
A123: Export | B123: Iran (Islamic Republic of) | D123: Developing | E123: Asia | F123: Articles of apparel & clothing accessories | G123: 104321.886 | H123: 99590.068 | I123: 122725.431 | J123: 121966.147 | K123: 41952.929 | L123: 103155.178 | M123: 84570.618 | N123: 49969.043 | O123: 43613.549 | P123: 46830.108 | Q123: 500675359.7
A124: Export | B124: Paraguay | D124: Developing | E124: Americas | F124: Articles of apparel & clothing accessories | G124: 38647.64 | H124: 40342.51 | I124: 41092.994 | J124: 45275.961 | K124: 37838.247 | L124: 41122.251 | M124: 52079.232 | N124: 45431.797 | O124: 49753.773 | P124: 45951.124 | Q124: 500675359.7
A125: Export | B125: Bolivia (Plurinational State of) | D125: Developing | E125: Americas | F125: Articles of apparel & clothing accessories | G125: 59087.859 | H125: 59308.446 | I125: 48496.232 | J125: 45204.61 | K125: 54453.701 | L125: 67467.098 | M125: 52561.894 | N125: 46136.841 | O125: 32385.038 | P125: 40345.658 | Q125: 500675359.7
A126: Export | B126: Ecuador | D126: Developing | E126: Americas | F126: Articles of apparel & clothing accessories | G126: 27992.486 | H126: 24660.19 | I126: 23825.13 | J126: 32027.486 | K126: 25246.343 | L126: 29299.645 | M126: 33547.057 | N126: 32972.521 | O126: 35433.739 | P126: 37192.013 | Q126: 500675359.7
A127: Export | B127: Uruguay | D127: Developing | E127: Americas | F127: Articles of apparel & clothing accessories | G127: 68820.281 | H127: 69426.653 | I127: 66142.951 | J127: 66904.175 | K127: 57914.953 | L127: 53724.441 | M127: 75632.8 | N127: 70397.208 | O127: 45840.422 | P127: 30673.558 | Q127: 500675359.7
A128: Export | B128: Kazakhstan | D128: Developing (transition) | E128: Asia | F128: Articles of apparel & clothing accessories | G128: 6565.06 | H128: 2134.588 | I128: 1884.566 | J128: 3185.313 | K128: 5309.204 | L128: 2127.117 | M128: 34074.981 | N128: 19244.94 | O128: 27076.702 | P128: 27779.533 | Q128: 500675359.7
A129: Export | B129: Tajikistan | D129: Developing (transition) | E129: Asia | F129: Articles of apparel & clothing accessories | G129: 9848.234 | H129: 13147.121 | I129: 9418.766 | J129: 11626.826 | K129: 26662.792 | L129: 26166.711 | M129: 27921.753 | N129: 27023.713 | O129: 23981.703 | P129: 27185.735 | Q129: 500675359.7
A130: Export | B130: United Republic of Tanzania | D130: Developing | E130: Africa | F130: Articles of apparel & clothing accessories | G130: 21278.054 | H130: 7088.798 | I130: 10401.315 | J130: 11298.604 | K130: 8601.233 | L130: 11175.238 | M130: 13514.828 | N130: 17029.8 | O130: 17439.014 | P130: 20581.343 | Q130: 500675359.7
A131: Export | B131: Mongolia | D131: Developing | E131: Asia | F131: Articles of apparel & clothing accessories | G131: 126264.794 | H131: 97752.797 | I131: 60756.503 | J131: 102397.486 | K131: 26803.762 | L131: 21783.897 | M131: 30328.911 | N131: 37169.767 | O131: 21708.139 | P131: 20409.652 | Q131: 500675359.7
A132: Export | B132: Botswana | D132: Developing | E132: Africa | F132: Articles of apparel & clothing accessories | G132: 130417.061 | H132: 109096.801 | I132: 251965.554 | J132: 195040.187 | K132: 117811.969 | L132: 133020.263 | M132: 131433.338 | N132: 40889.182 | O132: 18017.983 | P132: 19405.02 | Q132: 500675359.7
A133: Export | B133: Gabon | D133: Developing | E133: Africa | F133: Articles of apparel & clothing accessories | G133: 245.081 | H133: 271.122 | I133: 457.511 | J133: 243.758 | K133: 515.805 | L133: 598.528 | M133: 588.128 | N133: 660.49 | O133: 630.288 | P133: 18632.245 | Q133: 500675359.7
A134: Export | B134: Malta | D134: Developed | E134: Europe | F134: Articles of apparel & clothing accessories | G134: 100167.535 | H134: 61750.739 | I134: 51399.566 | J134: 27911.452 | K134: 19670.537 | L134: 14918.71 | M134: 16757.062 | N134: 18436.33 | O134: 19855.315 | P134: 18164.791 | Q134: 500675359.7
A135: Export | B135: Malawi | D135: Developing | E135: Africa | F135: Articles of apparel & clothing accessories | G135: 37955.698 | H135: 40388.253 | I135: 36279.722 | J135: 31675.556 | K135: 27799.336 | L135: 16281.444 | M135: 16946.129 | N135: 20009.467 | O135: 10510.357 | P135: 18038.19 | Q135: 500675359.7
A136: Export | B136: Cameroon | D136: Developing | E136: Africa | F136: Articles of apparel & clothing accessories | G136: 1485.954 | H136: 1863.414 | I136: 2286.845 | J136: 57175.047 | K136: 3020.446 | L136: 4097.098 | M136: 10658.621 | N136: 2628.407 | O136: 21140.881 | P136: 17726.689 | Q136: 500675359.7
A137: Export | B137: Cyprus | D137: Developed | E137: Europe | F137: Articles of apparel & clothing accessories | G137: 15479.21 | H137: 15870.751 | I137: 16623.033 | J137: 19851.965 | K137: 16694.243 | L137: 14333.491 | M137: 12005.133 | N137: 18167.247 | O137: 10157.038 | P137: 16408.252 | Q137: 500675359.7
A138: Export | B138: Oman | D138: Developing | E138: Asia | F138: Articles of apparel & clothing accessories | G138: 73164.552 | H138: 69025.593 | I138: 81911.77 | J138: 79636.968 | K138: 104544.288 | L138: 61765.26 | M138: 16742.208 | N138: 43011.563 | O138: 27952.984 | P138: 13753.123 | Q138: 500675359.7
A139: Export | B139: Zimbabwe | D139: Developing | E139: Africa | F139: Articles of apparel & clothing accessories | G139: 14259.659 | H139: 10865.983 | I139: 16166.726 | J139: 14834.251 | K139: 10869.975 | L139: 9342.146 | M139: 9583.389 | N139: 7155.444 | O139: 9348.618 | P139: 11366.447 | Q139: 500675359.7
A140: Export | B140: State of Palestine | D140: Developing | E140: Asia | F140: Articles of apparel & clothing accessories | G140: 7113.345 | H140: 6781.117 | I140: 9029.183 | J140: 8098.194 | K140: 7897.136 | L140: 4835.192 | M140: 6727.021 | N140: 9953.065 | O140: 9702.521 | P140: 8385.861 | Q140: 500675359.7
A141: Export | B141: Togo | D141: Developing | E141: Africa | F141: Articles of apparel & clothing accessories | G141: 7110.631 | H141: 5397.36 | I141: 3509.508 | J141: 4630.847 | K141: 7233.678 | L141: 14238.31 | M141: 7595.213 | N141: 6660.359 | O141: 10096.153 | P141: 8246.461 | Q141: 500675359.7
A142: Export | B142: Namibia | D142: Developing | E142: Africa | F142: Articles of apparel & clothing accessories | G142: 46091.29 | H142: 27427.347 | I142: 21204.916 | J142: 3090.335 | K142: 6515.309 | L142: 8337.679 | M142: 9608.643 | N142: 7515.735 | O142: 8089.686 | P142: 7993.271 | Q142: 500675359.7
A143: Export | B143: Brunei Darussalam | D143: Developing | E143: Asia | F143: Articles of apparel & clothing accessories | G143: 320142.217 | H143: 175506.445 | I143: 183639.949 | J143: 88848.058 | K143: 64337.709 | L143: 61951.092 | M143: 86191.952 | N143: 8219.608 | O143: 9223.45 | P143: 7449.847 | Q143: 500675359.7
A144: Export | B144: Barbados | D144: Developing | E144: Americas | F144: Articles of apparel & clothing accessories | G144: 1551.922 | H144: 3521.026 | I144: 1891.872 | J144: 3357.66 | K144: 2489.619 | L144: 1545.359 | M144: 1792.821 | N144: 4656.107 | O144: 4491.964 | P144: 6832.37 | Q144: 500675359.7
A145: Export | B145: Andorra | D145: Developed | E145: Europe | F145: Articles of apparel & clothing accessories | G145: 2899.964 | H145: 4070.205 | I145: 4966.048 | J145: 6239.289 | K145: 6355.267 | L145: 5837.016 | M145: 7027.118 | N145: 10479.559 | O145: 5283.703 | P145: 6354.972 | Q145: 500675359.7
A146: Export | B146: Trinidad and Tobago | D146: Developing | E146: Americas | F146: Articles of apparel & clothing accessories | G146: 6669.334 | H146: 7476.328 | I146: 8602.248 | J146: 7568.033 | K146: 6161.158 | L146: 6053.766 | M146: 6947.841 | N146: 6316.591 | O146: 5949.138 | P146: 5951.58 | Q146: 500675359.7
A147: Export | B147: Cabo Verde | D147: Developing | E147: Africa | F147: Articles of apparel & clothing accessories | G147: 1892.681 | H147: 1151.756 | I147: 1791.108 | J147: 4974.299 | K147: 6044.38 | L147: 5943.072 | M147: 5629.602 | N147: 2954.866 | O147: 4628.007 | P147: 5665.923 | Q147: 500675359.7
A148: Export | B148: Qatar | D148: Developing | E148: Asia | F148: Articles of apparel & clothing accessories | G148: 34058.754 | H148: 12276.42 | I148: 6491.318 | J148: 2084.497 | K148: 6242.648 | L148: 3051.57 | M148: 4491.837 | N148: 9467.899 | O148: 3495.839 | P148: 4963.124 | Q148: 500675359.7
A149: Export | B149: Cuba | D149: Developing | E149: Americas | F149: Articles of apparel & clothing accessories | G149: 1156.838 | H149: 1043.194 | I149: 1357.928 | J149: 1448.518 | K149: 1737.017 | L149: 1753.687 | M149: 2921.941 | N149: 3661.557 | O149: 7885.271 | P149: 4820.478 | Q149: 500675359.7
A150: Export | B150: Uganda | D150: Developing | E150: Africa | F150: Articles of apparel & clothing accessories | G150: 5104.605 | H150: 1895.93 | I150: 3006.973 | J150: 2591.396 | K150: 1589.156 | L150: 2853.93 | M150: 5628.612 | N150: 3159.575 | O150: 4839.071 | P150: 4627.565 | Q150: 500675359.7
A151: Export | B151: Ghana | D151: Developing | E151: Africa | F151: Articles of apparel & clothing accessories | G151: 9112.832 | H151: 11956.827 | I151: 11068.232 | J151: 4353.491 | K151: 6286.773 | L151: 7681.19 | M151: 4495.439 | N151: 6151.106 | O151: 5259.154 | P151: 4364.712 | Q151: 500675359.7
A152: Export | B152: Venezuela (Bolivarian Rep. of) | D152: Developing | E152: Americas | F152: Articles of apparel & clothing accessories | G152: 7955.648 | H152: 41423.824 | I152: 26580.447 | J152: 23160.235 | K152: 16260.288 | L152: 7766.592 | M152: 22910.333 | N152: 2106.305 | O152: 3772.972 | P152: 4126.006 | Q152: 500675359.7
A153: Export | B153: Maldives | D153: Developing | E153: Asia | F153: Articles of apparel & clothing accessories | G153: 2928.145 | H153: 536.398 | I153: 678.921 | J153: 789.488 | K153: 603.809 | L153: 1164.53 | M153: 2298.874 | N153: 2746.667 | O153: 2626.159 | P153: 3568.624 | Q153: 500675359.7
A154: Export | B154: Guyana | D154: Developing | E154: Americas | F154: Articles of apparel & clothing accessories | G154: 6138.545 | H154: 7708.296 | I154: 3785.872 | J154: 3928.514 | K154: 4067.17 | L154: 3298.637 | M154: 5755.6 | N154: 5048.656 | O154: 5250.157 | P154: 3421.888 | Q154: 500675359.7
A155: Export | B155: Sierra Leone | D155: Developing | E155: Africa | F155: Articles of apparel & clothing accessories | G155: 1949.529 | H155: 4554.226 | I155: 3750.323 | J155: 2934.275 | K155: 4232.152 | L155: 4897.408 | M155: 5144.246 | N155: 3845.641 | O155: 5145.096 | P155: 3357.662 | Q155: 500675359.7
A156: Export | B156: Azerbaijan | D156: Developing (transition) | E156: Asia | F156: Articles of apparel & clothing accessories | G156: 6151.42 | H156: 7406.85 | I156: 11706.009 | J156: 2895.508 | K156: 4958.472 | L156: 9369.702 | M156: 10820.443 | N156: 3351.424 | O156: 1686.739 | P156: 2930.327 | Q156: 500675359.7
A157: Export | B157: Iceland | D157: Developed | E157: Europe | F157: Articles of apparel & clothing accessories | G157: 2364.114 | H157: 2164.381 | I157: 1919.682 | J157: 2457.361 | K157: 1903.963 | L157: 2437.521 | M157: 2782.03 | N157: 2336.422 | O157: 2402.128 | P157: 2278.12 | Q157: 500675359.7
A158: Export | B158: British Virgin Islands | D158: Developing | E158: Americas | F158: Articles of apparel & clothing accessories | G158: 20.197 | H158: 118.634 | I158: 132.273 | J158: 142.302 | K158: 80.062 | L158: 78.084 | M158: 34.089 | N158: 75.014 | O158: 54.293 | P158: 2230.224 | Q158: 500675359.7
A159: Export | B159: Turks and Caicos Islands | D159: Developing | E159: Americas | F159: Articles of apparel & clothing accessories | G159: 104.05 | H159: 12.134 | I159: 9.318 | J159: 41.205 | K159: 9.358 | L159: 143.415 | M159: 5.483 | N159: 10.165 | O159: 757.694 | P159: 2147.139 | Q159: 500675359.7
A160: Export | B160: Mozambique | D160: Developing | E160: Africa | F160: Articles of apparel & clothing accessories | G160: 6630.443 | H160: 4441.826 | I160: 936.918 | J160: 593.365 | K160: 759.852 | L160: 934.034 | M160: 2055.313 | N160: 973.811 | O160: 2191.391 | P160: 2137.514 | Q160: 500675359.7
A161: Export | B161: Senegal | D161: Developing | E161: Africa | F161: Articles of apparel & clothing accessories | G161: 1526.821 | H161: 1444.424 | I161: 2076.52 | J161: 1703.608 | K161: 1237.846 | L161: 1176.415 | M161: 875.218 | N161: 1375.603 | O161: 1215.704 | P161: 2020.031 | Q161: 500675359.7
A162: Export | B162: Côte d'Ivoire | D162: Developing | E162: Africa | F162: Articles of apparel & clothing accessories | G162: 4942.608 | H162: 2464.809 | I162: 2671.418 | J162: 2842.375 | K162: 1634.801 | L162: 2078.042 | M162: 1401.86 | N162: 814.954 | O162: 1496.232 | P162: 1828.228 | Q162: 500675359.7
A163: Export | B163: Saint Lucia | D163: Developing | E163: Americas | F163: Articles of apparel & clothing accessories | G163: 502.866 | H163: 212.78 | I163: 494.1 | J163: 2156.66 | K163: 1669.812 | L163: 2318.21 | M163: 1839.582 | N163: 1978.009 | O163: 1910.822 | P163: 1738.025 | Q163: 500675359.7
A164: Export | B164: Nigeria | D164: Developing | E164: Africa | F164: Articles of apparel & clothing accessories | G164: 894.669 | H164: 1835.951 | I164: 755.493 | J164: 1361.956 | K164: 581.386 | L164: 462.689 | M164: 1154.607 | N164: 4279.927 | O164: 1355.664 | P164: 1624.389 | Q164: 500675359.7
A165: Export | B165: Montenegro | D165: Developing (transition) | E165: Europe | F165: Articles of apparel & clothing accessories | G165: _ | H165: _ | I165: _ | J165: 1392.476 | K165: 1782.348 | L165: 1545.989 | M165: 1055.864 | N165: 1323.529 | O165: 1013.104 | P165: 1589.736 | Q165: 500675359.7
A166: Export | B166: Yemen | D166: Developing | E166: Asia | F166: Articles of apparel & clothing accessories | G166: 627.356 | H166: 611.149 | I166: 565.067 | J166: 708.131 | K166: 1724.234 | L166: 2229.546 | M166: 2310.551 | N166: 2305.105 | O166: 491.528 | P166: 1496.29 | Q166: 500675359.7
A167: Export | B167: Jamaica | D167: Developing | E167: Americas | F167: Articles of apparel & clothing accessories | G167: 9082.783 | H167: 4588.695 | I167: 2350.789 | J167: 2082.376 | K167: 1921.289 | L167: 2776.267 | M167: 1717.098 | N167: 1605.799 | O167: 1628.862 | P167: 1489.992 | Q167: 500675359.7
A168: Export | B168: Niger | D168: Developing | E168: Africa | F168: Articles of apparel & clothing accessories | G168: 332.787 | H168: 680.833 | I168: 1847.034 | J168: 2807.042 | K168: 525.861 | L168: 2497.055 | M168: 2077.308 | N168: 1634.044 | O168: 663.349 | P168: 1487.247 | Q168: 500675359.7
A169: Export | B169: Benin | D169: Developing | E169: Africa | F169: Articles of apparel & clothing accessories | G169: 230.051 | H169: 318.255 | I169: 1602.933 | J169: 823.826 | K169: 1044.895 | L169: 311.021 | M169: 860.3 | N169: 668.844 | O169: 505.853 | P169: 1435.089 | Q169: 500675359.7
A170: Export | B170: Eritrea | D170: Developing | E170: Africa | F170: Articles of apparel & clothing accessories | G170: 390.805 | H170: 602.806 | I170: 335.819 | J170: 621.033 | K170: 889.411 | L170: 996.925 | M170: 2177.842 | N170: 2128.011 | O170: 1926.961 | P170: 1420.981 | Q170: 500675359.7
A171: Export | B171: Iraq | D171: Developing | E171: Asia | F171: Articles of apparel & clothing accessories | G171: 22.975 | H171: 345.477 | I171: 296.105 | J171: 259.816 | K171: 344.94 | L171: 720.359 | M171: 315.345 | N171: 471.648 | O171: 589.731 | P171: 1268.772 | Q171: 500675359.7
A172: Export | B172: Belize | D172: Developing | E172: Americas | F172: Articles of apparel & clothing accessories | G172: 19571.741 | H172: 12560.778 | I172: 12375.082 | J172: 684.982 | K172: 1733.442 | L172: 202.5 | M172: 4111.288 | N172: 144.272 | O172: 2528.496 | P172: 1238.878 | Q172: 500675359.7
A173: Export | B173: New Caledonia | D173: Developing | E173: Oceania | F173: Articles of apparel & clothing accessories | G173: 531.585 | H173: 702.745 | I173: 776.1 | J173: 679.034 | K173: 538.894 | L173: 1739.737 | M173: 551.217 | N173: 853.429 | O173: 775.944 | P173: 1204.489 | Q173: 500675359.7
A174: Export | B174: Mauritania | D174: Developing | E174: Africa | F174: Articles of apparel & clothing accessories | G174: 1241.318 | H174: 3114.823 | I174: 1742.592 | J174: 1620.633 | K174: 661.192 | L174: 609.282 | M174: 1738.052 | N174: 1423.797 | O174: 867.697 | P174: 1099.375 | Q174: 500675359.7
A175: Export | B175: Chad | D175: Developing | E175: Africa | F175: Articles of apparel & clothing accessories | G175: 1127.554 | H175: 1067.975 | I175: 1641.65 | J175: 993.412 | K175: 803.2 | L175: 421.503 | M175: 447.892 | N175: 617.017 | O175: 480.832 | P175: 1001.529 | Q175: 500675359.7
A176: Export | B176: Sudan | D176: Developing | E176: Africa | F176: Articles of apparel & clothing accessories | G176: _ | H176: _ | I176: _ | J176: _ | K176: _ | L176: _ | M176: _ | N176: 2220.604 | O176: 948.358 | P176: 958.658 | Q176: 500675359.7
A177: Export | B177: Guam | D177: Developing | E177: Oceania | F177: Articles of apparel & clothing accessories | G177: 296.384 | H177: 1177.129 | I177: 1081.678 | J177: 1288.152 | K177: 1012.284 | L177: 491.376 | M177: 330.72 | N177: 242.168 | O177: 869.438 | P177: 954.362 | Q177: 500675359.7
A178: Export | B178: Zambia | D178: Developing | E178: Africa | F178: Articles of apparel & clothing accessories | G178: 1697.374 | H178: 375.814 | I178: 941.687 | J178: 576.107 | K178: 621.919 | L178: 581.361 | M178: 461.7 | N178: 817.612 | O178: 1781.075 | P178: 899.567 | Q178: 500675359.7
A179: Export | B179: Dem. Rep. of the Congo | D179: Developing | E179: Africa | F179: Articles of apparel & clothing accessories | G179: 1251.898 | H179: 1311.941 | I179: 600.032 | J179: 744.11 | K179: 778.623 | L179: 430.026 | M179: 867.227 | N179: 301.621 | O179: 1009.308 | P179: 882.591 | Q179: 500675359.7
A180: Export | B180: Nauru | D180: Developing | E180: Oceania | F180: Articles of apparel & clothing accessories | G180: 64.791 | H180: 56.669 | I180: 174.598 | J180: 418.254 | K180: 399.129 | L180: 582.018 | M180: 226.231 | N180: 538.866 | O180: 619.998 | P180: 846.406 | Q180: 500675359.7
A181: Export | B181: American Samoa | D181: Developing | E181: Oceania | F181: Articles of apparel & clothing accessories | G181: 437.309 | H181: 187.901 | I181: 7273.857 | J181: 723.821 | K181: 909.393 | L181: 546.013 | M181: 318.679 | N181: 212.686 | O181: 1226.541 | P181: 805.789 | Q181: 500675359.7
A182: Export | B182: Suriname | D182: Developing | E182: Americas | F182: Articles of apparel & clothing accessories | G182: 818.79 | H182: 1777.745 | I182: 2804.699 | J182: 958.173 | K182: 407.926 | L182: 334.643 | M182: 401.013 | N182: 706.278 | O182: 874.294 | P182: 793.481 | Q182: 500675359.7
A183: Export | B183: Seychelles | D183: Developing | E183: Africa | F183: Articles of apparel & clothing accessories | G183: 47.56 | H183: 193.651 | I183: 232.793 | J183: 707.311 | K183: 416.78 | L183: 1050.09 | M183: 536.039 | N183: 745.04 | O183: 851.403 | P183: 745.331 | Q183: 500675359.7
A184: Export | B184: Mali | D184: Developing | E184: Africa | F184: Articles of apparel & clothing accessories | G184: 2003.77 | H184: 1088.485 | I184: 4856.442 | J184: 2354.277 | K184: 3212.75 | L184: 885.157 | M184: 523.969 | N184: 923.904 | O184: 778.234 | P184: 678.93 | Q184: 500675359.7
A185: Export | B185: Afghanistan | D185: Developing | E185: Asia | F185: Articles of apparel & clothing accessories | G185: 721.147 | H185: 1150.068 | I185: 826.188 | J185: 993.22 | K185: 462.292 | L185: 1175.777 | M185: 373.771 | N185: 517.564 | O185: 636.911 | P185: 608.207 | Q185: 500675359.7
A186: Export | B186: Rwanda | D186: Developing | E186: Africa | F186: Articles of apparel & clothing accessories | G186: 150.521 | H186: 195.976 | I186: 59.834 | J186: 31.429 | K186: 93.542 | L186: 57.07 | M186: 252.542 | N186: 61.314 | O186: 96.87 | P186: 451.361 | Q186: 500675359.7
A187: Export | B187: Grenada | D187: Developing | E187: Americas | F187: Articles of apparel & clothing accessories | G187: 499.005 | H187: 425.101 | I187: 328.62 | J187: 329.104 | K187: 345.661 | L187: 289.713 | M187: 342.394 | N187: 399.021 | O187: 421.554 | P187: 384.252 | Q187: 500675359.7
A188: Export | B188: French Polynesia | D188: Developing | E188: Oceania | F188: Articles of apparel & clothing accessories | G188: 438.185 | H188: 504.553 | I188: 454.712 | J188: 858.019 | K188: 443.517 | L188: 244.112 | M188: 268.288 | N188: 293.59 | O188: 437.148 | P188: 358.154 | Q188: 500675359.7
A189: Export | B189: Liberia | D189: Developing | E189: Africa | F189: Articles of apparel & clothing accessories | G189: 79.035 | H189: 28.593 | I189: 65.383 | J189: 28.669 | K189: 43.829 | L189: 27.597 | M189: 70.165 | N189: 45.237 | O189: 113.571 | P189: 316.305 | Q189: 500675359.7
A190: Export | B190: Burkina Faso | D190: Developing | E190: Africa | F190: Articles of apparel & clothing accessories | G190: 791.737 | H190: 1014.63 | I190: 1330.172 | J190: 416.261 | K190: 431.367 | L190: 414.281 | M190: 6291.364 | N190: 3915.708 | O190: 916.184 | P190: 304.316 | Q190: 500675359.7
A191: Export | B191: Djibouti | D191: Developing | E191: Africa | F191: Articles of apparel & clothing accessories | G191: 976.117 | H191: 137.701 | I191: 107.803 | J191: 87.272 | K191: 13.295 | L191: 171.311 | M191: 262.091 | N191: 178.843 | O191: 207.384 | P191: 284.867 | Q191: 500675359.7
A192: Export | B192: Samoa | D192: Developing | E192: Oceania | F192: Articles of apparel & clothing accessories | G192: 308.92 | H192: 21.36 | I192: 14.027 | J192: 19.632 | K192: 88.535 | L192: 61.528 | M192: 199.758 | N192: 340.807 | O192: 266.109 | P192: 284.627 | Q192: 500675359.7
A193: Export | B193: Papua New Guinea | D193: Developing | E193: Oceania | F193: Articles of apparel & clothing accessories | G193: 229.77 | H193: 274.972 | I193: 278.283 | J193: 397.126 | K193: 317.819 | L193: 469.562 | M193: 196.951 | N193: 456.36 | O193: 359.925 | P193: 281.832 | Q193: 500675359.7
A194: Export | B194: Bhutan | D194: Developing | E194: Asia | F194: Articles of apparel & clothing accessories | G194: 197.911 | H194: 298.627 | I194: 797.095 | J194: 256.365 | K194: 217.333 | L194: 547.368 | M194: 171.831 | N194: 26.97 | O194: 141.243 | P194: 268.348 | Q194: 500675359.7
A195: Export | B195: Central African Republic | D195: Developing | E195: Africa | F195: Articles of apparel & clothing accessories | G195: 58.703 | H195: 21.805 | I195: 97.497 | J195: 47.271 | K195: 28.56 | L195: 27.219 | M195: 30.826 | N195: 1170.234 | O195: 13.961 | P195: 227.378 | Q195: 500675359.7
A196: Export | B196: Angola | D196: Developing | E196: Africa | F196: Articles of apparel & clothing accessories | G196: 497.078 | H196: 64.323 | I196: 169.542 | J196: 156.423 | K196: 894.005 | L196: 174.334 | M196: 234.9 | N196: 229.651 | O196: 143.712 | P196: 213.631 | Q196: 500675359.7
A197: Export | B197: Congo | D197: Developing | E197: Africa | F197: Articles of apparel & clothing accessories | G197: 82.187 | H197: 64.575 | I197: 46.629 | J197: 439.048 | K197: 286.875 | L197: 268.551 | M197: 117.566 | N197: 138.358 | O197: 95.466 | P197: 202.002 | Q197: 500675359.7
A198: Export | B198: Comoros | D198: Developing | E198: Africa | F198: Articles of apparel & clothing accessories | G198: 21.365 | H198: 13.7 | I198: 121.651 | J198: 4.143 | K198: 47.216 | L198: 220.38 | M198: 242.478 | N198: 167.566 | O198: 171.646 | P198: 186.904 | Q198: 500675359.7
A199: Export | B199: Sint Maarten (Dutch part) | D199: Developing | E199: Americas | F199: Articles of apparel & clothing accessories | G199: _ | H199: _ | I199: _ | J199: _ | K199: _ | L199: _ | M199: 333.009 | N199: 15.448 | O199: 138.6 | P199: 173.351 | Q199: 500675359.7
A200: Export | B200: Libya | D200: Developing | E200: Africa | F200: Articles of apparel & clothing accessories | G200: 732.478 | H200: 2615.313 | I200: 347.609 | J200: 2382.423 | K200: 40.357 | L200: 223.471 | M200: 233.122 | N200: 267.947 | O200: 240.719 | P200: 154.216 | Q200: 500675359.7
A201: Export | B201: Saint Vincent and the Grenadines | D201: Developing | E201: Americas | F201: Articles of apparel & clothing accessories | G201: 164.996 | H201: 57.282 | I201: 93.158 | J201: 67.627 | K201: 40.445 | L201: 2035.857 | M201: 68.852 | N201: 124.522 | O201: 163.481 | P201: 151.558 | Q201: 500675359.7
... 4299 more rows

Sheet W5
A1: Click on arrow (▼) above right to select desired group from drop-down list
A2: Various summaries of manufactures exports by country and sector
A3: Source: | B3: Compiled from data on previous page
A4: Flow | B4: Country group | C4: Product group | D4: Avg. ann. change 2005-14 | E4: 2005 | F4: 2006 | G4: 2007 | H4: 2008 | I4: 2009 | J4: 2010 | K4: 2011 | L4: 2012 | M4: 2013 | N4: 2014
A5: EXPORTS | B5: Developed economies:
B6: Check: | C6: Should be | E6: 4834671836 | F6: 5400115780 | G6: 6098981640 | H6: 6606451952 | I6: 5062889951 | J6: 5840802406 | K6: 6679017295 | L6: 6435248473 | M6: 6580615065 | N6: 6739406215
C7: Listed here | E7: =SUM(E8:E41) -> 4834671836 | F7: =SUM(F8:F41) -> 5400115780 | G7: 6098981640 | H7: 6606451952 | I7: 5062889951 | J7: 5840802406 | K7: 6679017295 | L7: 6435248473 | M7: 6580615065 | N7: 6739406215
C8: Office machines and automatic data processing machines | D8: -0.01097115055 | E8: 216535145.2 | F8: 231683084.7 | G8: 228167977.6 | H8: 226575429.6 | I8: 179705949.6 | J8: 193924894.3 | K8: 206091187.5 | L8: 192479194 | M8: 192216694 | N8: 196069045.6
C9: Telecommunication and sound recording apparatus | D9: -0.002857667702 | E9: 230472985.1 | F9: 280895892.8 | G9: 244245963.2 | H9: 259458765.6 | I9: 199522779.7 | J9: 230646386.8 | K9: 243314378.6 | L9: 223963318.8 | M9: 220262326.7 | N9: 224612754.1
C10: Textile yarn and related products | D10: 0.005259854602 | E10: 95461964.48 | F10: 98850846.04 | G10: 106330379.3 | H10: 106123495.9 | I10: 82627332.44 | J10: 90851503.21 | K10: 103456363.7 | L10: 94571890.19 | M10: 98135049.34 | N10: 100077263.2
C11: Cork and wood manufactures (excluding furniture) | D11: 0.00877523698 | E11: 34828734.06 | F11: 36805121.93 | G11: 40549333.16 | H11: 40244316.97 | I11: 29931993.59 | J11: 32114795.49 | K11: 35918418.94 | L11: 33837236.03 | M11: 36506799.11 | N11: 37677962.05
C12: Paper and paper manufactures | D12: 0.01954427676 | E12: 111784322.6 | F12: 119039905.6 | G12: 131696934.5 | H12: 140566447.5 | I12: 116874279 | J12: 127123856.1 | K12: 138962480.4 | L12: 128762913.4 | M12: 132366267.4 | N12: 133056384.7
C13: Non metallic mineral manufactures, n.e.s. | D13: 0.02233467958 | E13: 73354352.9 | F13: 81380853.79 | G13: 93511602.39 | H13: 99098416.74 | I13: 77736448.77 | J13: 85012934.21 | K13: 95678364.78 | L13: 90679865.95 | M13: 93941017.76 | N13: 89487778.85
C14: Photo apparatus, optical goods, watches and clocks | D14: 0.02564292461 | E14: 65858241.18 | F14: 70767783 | G14: 68002684.35 | H14: 70702372.23 | I14: 58999850.11 | J14: 69217121.84 | K14: 81349955.23 | L14: 81186245.92 | M14: 81692978.37 | N14: 82713390.58
C15: Iron and steel | D15: 0.02701843202 | E15: 188686475.9 | F15: 219382786.9 | G15: 274409491.7 | H15: 319838102.7 | I15: 186074219.5 | J15: 235740374.4 | K15: 287264933.3 | L15: 257036925.7 | M15: 242270568.3 | N15: 239852867.7
C16: Electrical machinery, apparatus and appliances, n.e.s. | D16: 0.02788046535 | E16: 445015535.7 | F16: 489810807.3 | G16: 530341358 | H16: 566904813.2 | I16: 446462354.6 | J16: 541735508.7 | K16: 587742781 | L16: 554638767 | M16: 560021918.4 | N16: 569978776.6
C17: Metal working machinery | D17: 0.02902197667 | E17: 52301011.55 | F17: 60452076.33 | G17: 62893475.81 | H17: 71602903.05 | I17: 46750116.29 | J17: 52569235.8 | K17: 69845691.74 | L17: 71113927.97 | M17: 65903636.19 | N17: 67659991.5
C18: Organic chemicals | D18: 0.02964936995 | E18: 182915907.9 | F18: 198300422.1 | G18: 225148503.5 | H18: 232022695.6 | I18: 190610591.3 | J18: 224170333 | K18: 257333755.1 | L18: 248798613.3 | M18: 255848811.2 | N18: 237933558.5
C19: Leather, leather manufactures and dressed furskins | D19: 0.03135813836 | E19: 11211891.1 | F19: 12156048.77 | G19: 13340839.09 | H19: 12800024.93 | I19: 9424693.806 | J19: 11555476.69 | K19: 13437690.25 | L19: 12793189.78 | M19: 14223617.95 | N19: 14803498.7
C20: Furniture and parts thereof | D20: 0.03233237123 | E20: 62579358.81 | F20: 67451053.86 | G20: 78147146.84 | H20: 82404215.14 | I20: 64203758.77 | J20: 68039143.17 | K20: 77263639.72 | L20: 73834175.08 | M20: 78362873.98 | N20: 83331082.22
C21: Road vehicles | D21: 0.03335111078 | E21: 744858246 | F21: 814801354.8 | G21: 945484096.7 | H21: 971119736.7 | I21: 646577502.4 | J21: 810974388.5 | K21: 948636453.8 | L21: 942789378.6 | M21: 969194418.1 | N21: 1000702134
C22: Dyeing, tanning and colouring materials | D22: 0.03650096251 | E22: 39923434.96 | F22: 43421186.93 | G22: 49024048.14 | H22: 51513253.31 | I22: 42398939.03 | J22: 49690608.1 | K22: 57184525.14 | L22: 53881340.23 | M22: 54539672.49 | N22: 55125848.58
C23: Specialised machinery | D23: 0.03775674587 | E23: 220302549.5 | F23: 247741401 | G23: 309241921.5 | H23: 338813695 | I23: 224255087.2 | J23: 280739805.5 | K23: 341825320.2 | L23: 317254068.1 | M23: 306324662.1 | N23: 307524421.2
C24: Power generating machinery and equipment | D24: 0.03923503461 | E24: 210087662.5 | F24: 235110462.5 | G24: 269133394.5 | H24: 293732191.3 | I24: 221865366.5 | J24: 250500553.3 | K24: 292054205.5 | L24: 288769238 | M24: 289975829.4 | N24: 297046583.7
C25: Other transport equipment | D25: 0.03942435701 | E25: 169525433.9 | F25: 209113668.1 | G25: 235067508 | H25: 255488045.7 | I25: 180123669.7 | J25: 196736313.9 | K25: 208098311.5 | L25: 216048660.2 | M25: 218960676.4 | N25: 240088230.1
C26: Prefabricated buildings, sanitary, heating and lighting fixtures, n.e.s. | D26: 0.04215409248 | E26: 24070106.85 | F26: 27171334.47 | G26: 31538346.38 | H26: 35228520.51 | I26: 27317795.08 | J26: 28675105.05 | K26: 33115687.92 | L26: 31753175.98 | M26: 33858998.45 | N26: 34903217.46
C27: Articles of apparel & clothing accessories | D27: 0.04220126835 | E27: 95506059.46 | F27: 101345493.5 | G27: 114105065.3 | H27: 123950812.1 | I27: 106088701.1 | J27: 108667375.7 | K27: 128000064.4 | L27: 119732335 | M27: 130184714.1 | N27: 138546418.3
C28: Plastics in primary forms | D28: 0.04473167097 | E28: 120285240.2 | F28: 136795130 | G28: 160855364.7 | H28: 169724240.5 | I28: 123976329.9 | J28: 154889345.4 | K28: 178976043.4 | L28: 168261501.3 | M28: 176096435.8 | N28: 178342637.3
C29: Miscellaneous manufactured articles, n.e.s. | D29: 0.04524091028 | E29: 230095034.4 | F29: 252929078.6 | G29: 285675804.6 | H29: 313413928.1 | I29: 267377574.7 | J29: 292120815.4 | K29: 323625731.2 | L29: 313880594 | M29: 327087328.3 | N29: 342653239.3
C30: Inorganic chemicals | D30: 0.04835023863 | E30: 34161996.79 | F30: 40416256.5 | G30: 51789362.02 | H30: 62720127.67 | I30: 44198549.43 | J30: 52847152 | K30: 63251463.36 | L30: 56426638.03 | M30: 54142870.73 | N30: 52251749.12
C31: Plastics in non-primary forms | D31: 0.05005000542 | E31: 58947409.07 | F31: 67203363.23 | G31: 77562939.51 | H31: 83955393.11 | I31: 68694238.75 | J31: 80156633.14 | K31: 90818608.34 | L31: 85566341.03 | M31: 88421263.2 | N31: 91485982.15
C32: Manufactures of metal, n.e.s. | D32: 0.05051553648 | E32: 146487411.3 | F32: 169272276.3 | G32: 201366634.2 | H32: 225345656.2 | I32: 165796160.8 | J32: 185357495.6 | K32: 219264417.4 | L32: 210598447 | M32: 221495804.9 | N32: 228256220.6
C33: Rubber manufactures, n.e.s. | D33: 0.05406294474 | E33: 54665226.65 | F33: 60648036.69 | G33: 71108793.31 | H33: 76696213.83 | I33: 61873469.33 | J33: 74517117.15 | K33: 93220433.71 | L33: 88344781.66 | M33: 89488152.01 | N33: 87803144.2
C34: Other industrial machinery and parts | D34: 0.05409590418 | E34: 298748333 | F34: 340942311.4 | G34: 406114759.3 | H34: 457830801.5 | I34: 347912983.1 | J34: 383939566.3 | K34: 454931623.7 | L34: 447562777.7 | M34: 465059222 | N34: 479983848
C35: Professional and scientific instruments, n.e.s. | D35: 0.05723480186 | E35: 152856660.9 | F35: 167302616.1 | G35: 185912894.9 | H35: 203476504.3 | I35: 176131971.9 | J35: 205921297.4 | K35: 238737059.3 | L35: 237421848.2 | M35: 243735415.4 | N35: 252247821.8
C36: Essential oils for perfume materials and cleaning preparations | D36: 0.06230577293 | E36: 68284287.54 | F36: 74866058.79 | G36: 86336109 | H36: 96460993.57 | I36: 87324467.9 | J36: 94526530.44 | K36: 107453591.8 | L36: 105358515 | M36: 113114937 | N36: 117643153.3
C37: Footwear | D37: 0.06511243281 | E37: 28549993.35 | F37: 30976618.63 | G37: 34923176.55 | H37: 37906768 | I37: 33273873.47 | J37: 35814909.59 | K37: 43573324.07 | L37: 41188667.29 | M37: 46244292.79 | N37: 50369205.27
C38: Chemical materials and products, n.e.s. | D38: 0.07129201487 | E38: 88569427.77 | F38: 99802024.91 | G38: 116109406.6 | H38: 140625677.2 | I38: 116365276.8 | J38: 134417871.9 | K38: 158117529.8 | L38: 150278507.1 | M38: 160229917.6 | N38: 164609406.5
C39: Medicinal and pharmaceutical products | D39: 0.07537207642 | E39: 256673875.8 | F39: 290680218.1 | G39: 342192380.6 | H39: 389020912.6 | I39: 400709815.9 | J39: 418926081.9 | K39: 448278074.3 | L39: 445612824.3 | M39: 469969703 | N39: 493640138.3
C40: Fertilizers other than group 272 | D40: 0.09507813443 | E40: 11649761.55 | F40: 11792698.91 | G40: 15542399.97 | H40: 36537067.35 | I40: 19191278.84 | J40: 24672165 | K40: 33515317.79 | L40: 31393353.23 | M40: 29382099.73 | N40: 26382928.66
C41: Travel goods, handbags, etc. | D41: 0.1018530133 | E41: 9417758.23 | F41: 10807507.27 | G41: 13111544.78 | H41: 14549414.44 | I41: 12512531.16 | J41: 14009710.72 | K41: 18679868.07 | L41: 19429218.07 | M41: 21356092.79 | N41: 22545533.18
A43: EXPORTS | B43: Developing & transition
B44: Check: | C44: Should be | E44: 2531482718 | F44: 2973023626 | G44: 3465680781 | H44: 3880928283 | I44: 3270529746 | J44: 4138959226 | K44: 4826548678 | L44: 5082936362 | M44: 5335622511 | N44: 5549063810
C45: Listed here | E45: =SUM(E46:E79) -> 2531482718 | F45: =SUM(F46:F79) -> 2973023626 | G45: 3465680781 | H45: 3880928283 | I45: 3270529746 | J45: 4138959226 | K45: 4826548678 | L45: 5082936362 | M45: 5335622511 | N45: 5549063810
C46: Leather, leather manufactures and dressed furskins | D46: 0.03410162646 | E46: 14483907.04 | F46: 16091498.3 | G46: 17007616.53 | H46: 15209697.81 | I46: 10877651.56 | J46: 14688737.35 | K46: 16062417.94 | L46: 16450981.13 | M46: 18600904.39 | N46: 19586404.51
C47: Office machines and automatic data processing machines | D47: 0.0436357167 | E47: 275165562.4 | F47: 311608280.7 | G47: 338960477.7 | H47: 344527193.3 | I47: 300473488 | J47: 379983527.2 | K47: 387915246 | L47: 406490650.3 | M47: 395563773.8 | N47: 404142462.4
C48: Iron and steel | D48: 0.0670284764 | E48: 130296834.6 | F48: 156105425.3 | G48: 205580997.5 | H48: 269580435.9 | I48: 138563711.5 | J48: 191446310.8 | K48: 242965889.2 | L48: 230940194.7 | M48: 215630481.6 | N48: 233624268
C49: Articles of apparel & clothing accessories | D49: 0.06791621927 | E49: 200460399.9 | F49: 228285397.1 | G49: 254849783.1 | H49: 263644996.5 | I49: 233480766.1 | J49: 266747713.9 | K49: 312165736.9 | L49: 314933486.7 | M49: 344671871.9 | N49: 362128941.4
C50: Cork and wood manufactures (excluding furniture) | D50: 0.06951060358 | E50: 17876389.12 | F50: 21514647.04 | G50: 23367422.02 | H50: 22732555.14 | I50: 18442258.04 | J50: 22187777.8 | K50: 25964588.69 | L50: 28040907.93 | M50: 30104409.39 | N50: 32729973.37
C51: Textile yarn and related products | D51: 0.07084099786 | E51: 120015686.5 | F51: 131212401.4 | G51: 143323657.6 | H51: 153572794.3 | I51: 136714433 | J51: 169543648.7 | K51: 199620987.5 | L51: 198170242.6 | M51: 216853111.9 | N51: 222209654.7
C52: Metal working machinery | D52: 0.07782570614 | E52: 11896466.77 | F52: 14277637.78 | G52: 16855800.47 | H52: 19607993.84 | I52: 12899464.98 | J52: 16969939.97 | K52: 21012055.85 | L52: 22320285.17 | M52: 20978992.45 | N52: 23353653.45
C53: Telecommunication and sound recording apparatus | D53: 0.08271042666 | E53: 264883815.4 | F53: 308834242.1 | G53: 343324971.8 | H53: 375213999.7 | I53: 336178755.6 | J53: 397013783.2 | K53: 443300666.5 | L53: 472759593.3 | M53: 518298046.2 | N53: 541584586.1
C54: Photo apparatus, optical goods, watches and clocks | D54: 0.08288322684 | E54: 27877935.16 | F54: 30029901.43 | G54: 33337269.09 | H54: 36815250.95 | I54: 33627395 | J54: 42182248.16 | K54: 47561395.97 | L54: 53828933.28 | M54: 55924306.99 | N54: 57081482.66
C55: Dyeing, tanning and colouring materials | D55: 0.08733968772 | E55: 10953201.39 | F55: 12471213.64 | G55: 14022819.9 | H55: 15486057.08 | I55: 13789905.16 | J55: 17344759.12 | K55: 21809710.62 | L55: 23147207.62 | M55: 22056038.69 | N55: 23271706.6
C56: Electrical machinery, apparatus and appliances, n.e.s. | D56: 0.09584047108 | E56: 411071706.5 | F56: 503238316.9 | G56: 566907912.9 | H56: 586332043.5 | I56: 529455517.1 | J56: 706484962.1 | K56: 769526486.7 | L56: 813235235.9 | M56: 910259645.2 | N56: 936792933.2
C57: Organic chemicals | D57: 0.0962468002 | E57: 73264861.84 | F57: 84769499.73 | G57: 101855967.2 | H57: 114831602.3 | I57: 91060836.53 | J57: 123685940.7 | K57: 165181885.9 | L57: 167934458.2 | M57: 169405211.1 | N57: 167521588.9
C58: Inorganic chemicals | D58: 0.09865454647 | E58: 21897449.18 | F58: 25113811.56 | G58: 30316718.79 | H58: 45386912.55 | I58: 28988651.79 | J58: 41350728.24 | K58: 56430321.02 | L58: 52192232.84 | M58: 50252436.94 | N58: 51067422.96
C59: Paper and paper manufactures | D59: 0.09939496172 | E59: 22419308.42 | F59: 25609366.65 | G59: 30617184.79 | H59: 33744010.39 | I59: 31002087.64 | J59: 37434347.43 | K59: 45411618.92 | L59: 46330468.3 | M59: 49706039.83 | N59: 52602440.37
C60: Plastics in primary forms | D60: 0.0996251896 | E60: 60892265.99 | F60: 68009917.08 | G60: 80893531.03 | H60: 86128054.13 | I60: 75043126.74 | J60: 105332074.1 | K60: 129116194.5 | L60: 131601821.5 | M60: 137490294.6 | N60: 143141068.4
C61: Footwear | D61: 0.1002379691 | E61: 38409816.34 | F61: 42770625.94 | G61: 47902921.03 | H61: 53990389.48 | I61: 48506472.18 | J61: 60234806.57 | K61: 70327410.93 | L61: 75420138.94 | M61: 81339830.35 | N61: 90744828.78
C62: Road vehicles | D62: 0.1002537464 | E62: 155423731.4 | F62: 185102391.5 | G62: 222771084.5 | H62: 247722405.2 | I62: 181662720.3 | J62: 252868767.9 | K62: 307157172 | L62: 336956272.4 | M62: 353622410.9 | N62: 367242584.8
C63: Manufactures of metal, n.e.s. | D63: 0.1081918306 | E63: 70505036.78 | F63: 86586702.3 | G63: 105273108.3 | H63: 123856216.7 | I63: 100515617.7 | J63: 118057788.6 | K63: 143696742.7 | L63: 156708577.7 | M63: 163785639.3 | N63: 177727504.2
C64: Miscellaneous manufactured articles, n.e.s. | D64: 0.1082774996 | E64: 130396915.3 | F64: 146723658.2 | G64: 175614183.2 | H64: 196101649.5 | I64: 184698600.1 | J64: 210792309 | K64: 261735372 | L64: 302202243.4 | M64: 303675052.4 | N64: 328930362.6
C65: Professional and scientific instruments, n.e.s. | D65: 0.110604238 | E65: 62848474.05 | F65: 79862283.49 | G65: 99457825.81 | H65: 112764364.4 | I65: 101664042.5 | J65: 134174698.5 | K65: 144071633.9 | L65: 160937013.6 | M65: 161688117.8 | N65: 161558076.9
C66: Non metallic mineral manufactures, n.e.s. | D66: 0.1110652748 | E66: 34419615.82 | F66: 41378222.33 | G66: 47290150.59 | H66: 54957038.75 | I66: 47902631.79 | J66: 58410724.51 | K66: 69106279.3 | L66: 78335523.08 | M66: 86028396.51 | N66: 88810065.04
C67: Furniture and parts thereof | D67: 0.1111174211 | E67: 35253505.57 | F67: 41038106.63 | G67: 49075103.5 | H67: 54606793.21 | I67: 48661511 | J67: 61281506.19 | K67: 68785970.76 | L67: 82779180.49 | M67: 87766847.12 | N67: 91000110.85
C68: Power generating machinery and equipment | D68: 0.1128262776 | E68: 43517885.81 | F68: 52177387.24 | G68: 61123193.32 | H68: 77130583.14 | I68: 65433144.3 | J68: 81331612.91 | K68: 98446491.8 | L68: 103880315.4 | M68: 109009553.4 | N68: 113897486.1
C69: Specialised machinery | D69: 0.115948275 | E69: 45252842.83 | F69: 54695122.21 | G69: 69197181.86 | H69: 82056787.79 | I69: 62687096.89 | J69: 85547293.22 | K69: 109135262.8 | L69: 116112672.5 | M69: 117092958.9 | N69: 121462566.7
C70: Travel goods, handbags, etc. | D70: 0.1178972796 | E70: 14352910.86 | F70: 16240916.91 | G70: 19227152.75 | H70: 23212788.94 | I70: 20686265.38 | J70: 26806341.76 | K70: 34460322.81 | L70: 36568653.82 | M70: 39474549.64 | N70: 39134255.96
C71: Other industrial machinery and parts | D71: 0.1182588606 | E71: 78714202.6 | F71: 95581104.4 | G71: 122004288.6 | H71: 146613065.4 | I71: 119189627.6 | J71: 146865336.8 | K71: 178414634.5 | L71: 190535611.4 | M71: 202406062.5 | N71: 215245575.3
C72: Other transport equipment | D72: 0.1194678608 | E72: 46871212.4 | F72: 58970872.35 | G72: 75814208.03 | H72: 110555679.7 | I72: 113393976.3 | J72: 134022206.3 | K72: 158600379.3 | L72: 142604624.6 | M72: 138704656 | N72: 129422819.1
C73: Rubber manufactures, n.e.s. | D73: 0.1261051312 | E73: 20853406.15 | F73: 25894557.23 | G73: 31994682.52 | H73: 36274882.3 | I73: 32669861.33 | J73: 42835969.96 | K73: 57060976.04 | L73: 60265232.8 | M73: 61279706.96 | N73: 60727784.65
C74: Essential oils for perfume materials and cleaning preparations | D74: 0.1292402588 | E74: 14025702.4 | F74: 16838375.77 | G74: 20292871.68 | H74: 24744095.46 | I74: 24099361.44 | J74: 29370663.2 | K74: 35235516.07 | L74: 38854209.63 | M74: 40529547.08 | N74: 41879529.66
C75: Fertilizers other than group 272 | D75: 0.1300934907 | E75: 13257671.15 | F75: 14075611.9 | G75: 22257413.19 | H75: 39894319.86 | I75: 22019984.16 | J75: 30710076.04 | K75: 43137572.49 | L75: 44207789.25 | M75: 38149422.79 | N75: 39856265.48
C76: Plastics in non-primary forms | D76: 0.1303385892 | E76: 14924386.59 | F76: 17756453.84 | G76: 21411213.33 | H76: 24564906.13 | I76: 21834081.24 | J76: 29484289.47 | K76: 36876176.24 | L76: 39114816.85 | M76: 43310333.49 | N76: 44954531.94
C77: Medicinal and pharmaceutical products | D77: 0.1350018351 | E77: 17128159.6 | F77: 22098147.34 | G77: 27959954.15 | H77: 31637573.92 | I77: 35417986.12 | J77: 40446802.77 | K77: 47978119.83 | L77: 50515199.52 | M77: 51909757.7 | N77: 53540173.53
C78: Chemical materials and products, n.e.s. | D78: 0.1372169746 | E78: 19694670.1 | F78: 23715728.63 | G78: 28850428.88 | H78: 37564754.42 | I78: 32478606.63 | J78: 42935813.23 | K78: 53112680.72 | L78: 54476666.63 | M78: 57971672.5 | N78: 62652544.31
C79: Prefabricated buildings, sanitary, heating and lighting fixtures, n.e.s. | D79: 0.1684615184 | E79: 12176782.51 | F79: 14345801.4 | G79: 16941685.64 | H79: 19866390.82 | I79: 16410110.71 | J79: 20385720.31 | K79: 25164761.52 | L79: 34084920.16 | M79: 42082430.69 | N79: 49438157.4
A81: EXPORTS | B81: Africa
B82: Check: | C82: Should be | E82: 55635446.12 | F82: 60120340.78 | G82: 71835015.39 | H82: 91275776.82 | I82: 70674959.3 | J82: 93195993.7 | K82: 102422460.8 | L82: 100925037.9 | M82: 102909805.1 | N82: 105547401.2
C83: Listed here | E83: =SUM(E84:E117) -> 55635446.12 | F83: =SUM(F84:F117) -> 60120340.78 | G83: 71835015.4 | H83: 91275776.82 | I83: 70674959.3 | J83: 93195993.7 | K83: 102422460.8 | L83: 100925037.9 | M83: 102909805.1 | N83: 105547401.2
C84: Cork and wood manufactures (excluding furniture) | D84: =EXP(LN(N84/E84)/9)-1 -> -0.001094563812 | E84: 835093.913 | F84: 746722.847 | G84: 825788.683 | H84: 876467.364 | I84: 633893.581 | J84: 841324.615 | K84: 742309.472 | L84: 935265.849 | M84: 785701.152 | N84: 826903.267
C85: Iron and steel | D85: 0.0150364333 | E85: 7784049.407 | F85: 8053034.109 | G85: 9869585.181 | H85: 11892459.04 | I85: 6787497.509 | J85: 10630554.47 | K85: 10783741.45 | L85: 9165830.102 | M85: 8731895.062 | N85: 8903079.718
C86: Articles of apparel & clothing accessories | D86: 0.02105425994 | E86: 9177711.752 | F86: 9455257.733 | G86: 10851124.49 | H86: 11427438.45 | I86: 9978166.939 | J86: 10073939.58 | K86: 11252258.43 | L86: 10154670.07 | M86: 10323977.16 | N86: 11070667.51
C87: Metal working machinery | D87: 0.02801510239 | E87: 119677.94 | F87: 98785.197 | G87: 142012.861 | H87: 136273.189 | I87: 120830.895 | J87: 166258.864 | K87: 173364.198 | L87: 164356.685 | M87: 159452.107 | N87: 153465.076
C88: Furniture and parts thereof | D88: 0.0317917884 | E88: 779925.847 | F88: 821141.033 | G88: 897085.347 | H88: 923722.248 | I88: 807074.86 | J88: 1186168.43 | K88: 1110636.401 | L88: 1053559.039 | M88: 1021688.687 | N88: 1033670.014
C89: Photo apparatus, optical goods, watches and clocks | D89: 0.04689510582 | E89: 131473.771 | F89: 134469.412 | G89: 140645.426 | H89: 152042.195 | I89: 127722.116 | J89: 170578.591 | K89: 199195.547 | L89: 218836.608 | M89: 194864.781 | N89: 198594.696
C90: Organic chemicals | D90: 0.0550336715 | E90: 1815464.693 | F90: 2024321.585 | G90: 2567703.072 | H90: 2947540.825 | I90: 1884607.35 | J90: 2454708.594 | K90: 2613181.508 | L90: 3292904.373 | M90: 2951200.723 | N90: 2940252.926
C91: Inorganic chemicals | D91: 0.05977203858 | E91: 3249823.725 | F91: 3184699.95 | G91: 3506346.591 | H91: 6959862.968 | I91: 3939835.514 | J91: 5399406.433 | K91: 6624155.349 | L91: 5771454.123 | M91: 5476635.521 | N91: 5479890.943
C92: Other industrial machinery and parts | D92: 0.06135608593 | E92: 2649222.628 | F92: 3437234.567 | G92: 4568589.991 | H92: 4812099.271 | I92: 3234467.045 | J92: 4314384.987 | K92: 5172145.878 | L92: 4702698.498 | M92: 4607630.132 | N92: 4527604.54
C93: Miscellaneous manufactured articles, n.e.s. | D93: 0.06226160251 | E93: 1978925.792 | F93: 2040324.508 | G93: 2337503.374 | H93: 2596190.923 | I93: 2565135.502 | J93: 3448568.217 | K93: 3470308.683 | L93: 3198574.071 | M93: 3330235.761 | N93: 3408104.157
C94: Rubber manufactures, n.e.s. | D94: 0.07033908172 | E94: 457817.786 | F94: 469434.232 | G94: 486737.798 | H94: 552146.494 | I94: 489292.458 | J94: 716499.975 | K94: 945497.823 | L94: 916210.389 | M94: 867185.397 | N94: 844082.916
C95: Footwear | D95: 0.07520065862 | E95: 799242.364 | F95: 889075.986 | G95: 1074149.927 | H95: 1152020.319 | I95: 1087322.887 | J95: 1434230.147 | K95: 1474475.787 | L95: 1401161.215 | M95: 1392123.948 | N95: 1534914.509
C96: Non metallic mineral manufactures, n.e.s. | D96: 0.07692965981 | E96: 1572272.758 | F96: 1596164.657 | G96: 1763884.755 | H96: 2155746.272 | I96: 2203841.5 | J96: 2808558.502 | K96: 2782169.749 | L96: 3250027.811 | M96: 3282946.594 | N96: 3063472.12
C97: Textile yarn and related products | D97: 0.08392992183 | E97: 1611755.297 | F97: 1700581.062 | G97: 2265252.784 | H97: 2471022.444 | I97: 2283265.78 | J97: 2806131.905 | K97: 3236635.557 | L97: 3077098.324 | M97: 3208246.19 | N97: 3328970.544
C98: Paper and paper manufactures | D98: 0.08444302503 | E98: 871189.033 | F98: 941867.876 | G98: 1331579.789 | H98: 1494348.4 | I98: 1476668.034 | J98: 1843601.395 | K98: 1954635.633 | L98: 1780026.403 | M98: 1745000.506 | N98: 1807062.018
C99: Travel goods, handbags, etc. | D99: 0.08611293355 | E99: 86526.129 | F99: 77268.882 | G99: 93443.605 | H99: 115672.244 | I99: 103955.351 | J99: 144151.287 | K99: 158203.971 | L99: 163366.809 | M99: 181498.928 | N99: 181979.364
C100: Prefabricated buildings, sanitary, heating and lighting fixtures, n.e.s. | D100: 0.08935033404 | E100: 226896.094 | F100: 237342.647 | G100: 329932.077 | H100: 380603.368 | I100: 324554.412 | J100: 416186.215 | K100: 439739.629 | L100: 463938.829 | M100: 452786.226 | N100: 490156.942
C101: Power generating machinery and equipment | D101: 0.0916241516 | E101: 903604.507 | F101: 1143208.095 | G101: 1302853.424 | H101: 1505786.055 | I101: 1179436.323 | J101: 1661122.363 | K101: 1691072.765 | L101: 1761969.248 | M101: 1860262.086 | N101: 1989008.363
C102: Road vehicles | D102: 0.09351035549 | E102: 5153588.814 | F102: 5687344.98 | G102: 6376570.986 | H102: 8855357.377 | I102: 6583395.93 | J102: 9062220.524 | K102: 10118675.67 | L102: 10908404.04 | M102: 11213616.09 | N102: 11521681.51
C103: Plastics in primary forms | D103: 0.09793640069 | E103: 903518.572 | F103: 933177.797 | G103: 938390.39 | H103: 1490036.387 | I103: 1109413.177 | J103: 1400200.2 | K103: 1557458.407 | L103: 1736145.109 | M103: 1848690.793 | N103: 2094747.777
C104: Other transport equipment | D104: 0.09959327545 | E104: 1676824.311 | F104: 1896771.749 | G104: 1883420.657 | H104: 3281695.775 | I104: 2252540.209 | J104: 3575670.314 | K104: 3358384.772 | L104: 3745816.401 | M104: 6422992.65 | N104: 3940725.999
C105: Dyeing, tanning and colouring materials | D105: 0.1025632377 | E105: 305415.754 | F105: 355116.881 | G105: 405385.689 | H105: 482877.879 | I105: 498605.944 | J105: 606559.629 | K105: 663659.808 | L105: 662599.579 | M105: 699548.845 | N105: 735398.951
C106: Electrical machinery, apparatus and appliances, n.e.s. | D106: 0.1051514668 | E106: 4063693.299 | F106: 4670459.425 | G106: 5515483.27 | H106: 7156158.054 | I106: 6111252.453 | J106: 7942921.218 | K106: 9702109.543 | L106: 8759017.216 | M106: 9001353.392 | N106: 9993489.551
C107: Office machines and automatic data processing machines | D107: 0.1088329508 | E107: 273635.243 | F107: 449962.438 | G107: 489316.987 | H107: 512910.552 | I107: 528202.621 | J107: 604251.161 | K107: 618896.039 | L107: 711575.363 | M107: 629697.571 | N107: 693373.343
C108: Essential oils for perfume materials and cleaning preparations | D108: 0.1126261609 | E108: 1162372.067 | F108: 1167937.079 | G108: 1393713.004 | H108: 1898962.205 | I108: 1774412.332 | J108: 2262573.864 | K108: 2712271.015 | L108: 2686262.78 | M108: 2966233.562 | N108: 3037306.15
C109: Manufactures of metal, n.e.s. | D109: 0.1166319903 | E109: 1439391.674 | F109: 1638587.185 | G109: 2228741.91 | H109: 2952780.137 | I109: 2811782.283 | J109: 3466885.567 | K109: 3554482.881 | L109: 3869679.778 | M109: 3638082.86 | N109: 3884808.166
C110: Leather, leather manufactures and dressed furskins | D110: 0.1224697217 | E110: 502029.086 | F110: 543524.665 | G110: 778112.761 | H110: 799743.353 | I110: 667381.717 | J110: 1607098.094 | K110: 1187282.675 | L110: 1170939.96 | M110: 1316300.54 | N110: 1420040.051
C111: Professional and scientific instruments, n.e.s. | D111: 0.1238529995 | E111: 462497.92 | F111: 516663.25 | G111: 641341.637 | H111: 877232.57 | I111: 807718.066 | J111: 1053089.914 | K111: 1076608.29 | L111: 1190223.042 | M111: 1196321.316 | N111: 1322803.591
C112: Medicinal and pharmaceutical products | D112: 0.1252409024 | E112: 387305.753 | F112: 395336.068 | G112: 609472.544 | H112: 668497.816 | I112: 767775.493 | J112: 1009001.898 | K112: 1059183.772 | L112: 1097134.609 | M112: 1142641.047 | N112: 1120117.393
C113: Fertilizers other than group 272 | D113: 0.1286291939 | E113: 1569686.505 | F113: 1660681.094 | G113: 2511415.381 | H113: 4911900.003 | I113: 3165347.436 | J113: 4194543.213 | K113: 5076302.48 | L113: 5163979.762 | M113: 4703021.103 | N113: 4664170.772
C114: Specialised machinery | D114: 0.1329876766 | E114: 922966.61 | F114: 1107126.97 | G114: 1481331.605 | H114: 1841355.864 | I114: 1671746.213 | J114: 2235311.115 | K114: 2520926.432 | L114: 3065408.265 | M114: 2813485.185 | N114: 2839309.038
C115: Chemical materials and products, n.e.s. | D115: 0.1447101152 | E115: 689049.928 | F115: 698437.5 | G115: 860682.832 | H115: 1216917.214 | I115: 1070597.009 | J115: 1393286.243 | K115: 1610638.219 | L115: 1801720.112 | M115: 1774291.977 | N115: 2325468.044
C116: Telecommunication and sound recording apparatus | D116: 0.1589309989 | E116: 873400.885 | F116: 1113881.118 | G116: 1034312.158 | H116: 1298858.125 | I116: 1198132.722 | J116: 1661135.565 | K116: 2081855.194 | L116: 2087606.868 | M116: 2101279.912 | N116: 3294062.559
C117: Plastics in non-primary forms | D117: 0.1790490168 | E117: 199396.26 | F117: 234398.203 | G117: 333104.407 | H117: 479051.451 | I117: 429087.641 | J117: 604870.607 | K117: 699997.753 | L117: 796576.578 | M117: 868917.314 | N117: 878018.673
A119: EXPORTS | B119: Asia
B120: Check: | C120: Should be | E120: 2665315817 | F120: 3093057120 | G120: 3579861963 | H120: 3964275796 | I120: 3336224833 | J120: 4267340710 | K120: 4907158216 | L120: 5113038727 | M120: 5270890575 | N120: 5453342137
C121: Listed here | E121: =SUM(E122:E155) -> 2665315817 | F121: =SUM(F122:F155) -> 3093057120 | G121: 3579861963 | H121: 3964275796 | I121: 3336224833 | J121: 4267340710 | K121: 4907158216 | L121: 5113038727 | M121: 5270890575 | N121: 5453342137
C122: Leather, leather manufactures and dressed furskins | D122: =EXP(LN(N122/E122)/9)-1 -> 0.01879031571 | E122: 10360752.36 | F122: 11052574.8 | G122: 10950269.51 | H122: 9564916.521 | I122: 7231394.412 | J122: 8940591.307 | K122: 10229831.95 | L122: 10617851.76 | M122: 12083304.87 | N122: 12250521.19
C123: Office machines and automatic data processing machines | D123: 0.03603977198 | E123: 286198033.4 | F123: 321191782.9 | G123: 350084137.4 | H123: 356574711.3 | I123: 305680270.4 | J123: 382508639.4 | K123: 387592506 | L123: 402115394.2 | M123: 390845320.5 | N123: 393599459.9
C124: Metal working machinery | D124: 0.05181778572 | E124: 23107564.22 | F124: 26369601.29 | G124: 27872920.61 | H124: 32000313.05 | I124: 18676596.95 | J124: 27624736 | K124: 36587128.68 | L124: 39584797.37 | M124: 32795138.8 | N124: 36409839.2
C125: Photo apparatus, optical goods, watches and clocks | D125: 0.05186179814 | E125: 44297596 | F125: 45956885.37 | G125: 46118583.4 | H125: 50397576.83 | I125: 44602581.86 | J125: 55863214.14 | K125: 62485200.03 | L125: 68986798.86 | M125: 69299733.96 | N125: 69824575
C126: Road vehicles | D126: 0.0624558511 | E126: 222369590.2 | F126: 257124394.6 | G126: 306961554 | H126: 336535475.8 | I126: 223238681.6 | J126: 312243308 | K126: 349514411.5 | L126: 382584474.2 | M126: 378045868.4 | N126: 383595433.9
C127: Textile yarn and related products | D127: 0.06931624159 | E127: 119237343.3 | F127: 130018279.8 | G127: 140727140.8 | H127: 151049235.2 | I127: 134961050.9 | J127: 167625245.3 | K127: 197215496.7 | L127: 195673742.2 | M127: 212883549.2 | N127: 217955463.7
C128: Telecommunication and sound recording apparatus | D128: 0.07352160641 | E128: 271141896.8 | F128: 306328788.2 | G128: 337348495.1 | H128: 362577400.5 | I128: 320661001.6 | J128: 376645779.1 | K128: 423570291.7 | L128: 451477207.6 | M128: 491064739.5 | N128: 513444773.9
C129: Articles of apparel & clothing accessories | D129: 0.07712510184 | E129: 170245440 | F129: 198880055.7 | G129: 224551130 | H129: 232438130.2 | I129: 208134753.2 | J129: 239800379 | K129: 281581725.1 | L129: 286221047.6 | M129: 315498097.3 | N129: 332254453.9
C130: Dyeing, tanning and colouring materials | D130: 0.07912454158 | E130: 12193932.33 | F130: 13572262.43 | G130: 15019611.1 | H130: 16208152.33 | I130: 14364317.73 | J130: 18880910.28 | K130: 21991796 | L130: 22039581.74 | M130: 23009406.07 | N130: 24198469.88
C131: Cork and wood manufactures (excluding furniture) | D131: 0.08167512648 | E131: 12840884.28 | F131: 16186119.16 | G131: 17545918.5 | H131: 16728188.65 | I131: 14236434.94 | J131: 17308397.64 | K131: 20579559.75 | L131: 22245162 | M131: 23931822.82 | N131: 26029541.59
C132: Iron and steel | D132: 0.08512371578 | E132: 97272984.3 | F132: 120618195.3 | G132: 159994275.6 | H132: 212110332.8 | I132: 116300383.7 | J132: 163828790.6 | K132: 203943126.1 | L132: 199107802.4 | M132: 185745670 | N132: 202910974.8
C133: Specialised machinery | D133: 0.08530056529 | E133: 71456973.36 | F133: 83442278.99 | G133: 104673285.1 | H133: 118482003.5 | I133: 80968941.29 | J133: 125456435.7 | K133: 153694434.7 | L133: 149922184.4 | M133: 143023752.5 | N133: 149277681.1
C134: Electrical machinery, apparatus and appliances, n.e.s. | D134: 0.08584727951 | E134: 455314929.6 | F134: 547759065.6 | G134: 615059217.8 | H134: 632847403.8 | I134: 570713035.9 | J134: 761278613.9 | K134: 816231896.3 | L134: 852116122.5 | M134: 935555549.8 | N134: 955499841.4
C135: Organic chemicals | D135: 0.09159987953 | E135: 78899000.05 | F135: 88537621.36 | G135: 105665213 | H135: 116370464.4 | I135: 98358715.63 | J135: 131314530 | K135: 172502517.8 | L135: 172870269.5 | M135: 177773681.5 | N135: 173637214.7
C136: Power generating machinery and equipment | D136: 0.09340567325 | E136: 50590766.99 | F136: 57631981.06 | G136: 67971170.83 | H136: 85273266 | I136: 73719629.2 | J136: 90827835.75 | K136: 108034502.2 | L136: 110846284.9 | M136: 110413231.4 | N136: 113006433.9
C137: Plastics in primary forms | D137: 0.09445444912 | E137: 63749830.88 | F137: 70777243.3 | G137: 84275399.1 | H137: 89564536.57 | I137: 77974741.54 | J137: 109930256.9 | K137: 132018661.3 | L137: 133664755.2 | M137: 138532317.5 | N137: 143634331.2
C138: Non metallic mineral manufactures, n.e.s. | D138: 0.0977296334 | E138: 32870233.13 | F138: 39174513.71 | G138: 44657260.07 | H138: 52539401.36 | I138: 46649704.45 | J138: 58724092.46 | K138: 69357508.33 | L138: 76298680.15 | M138: 81117042.71 | N138: 76078383.87
C139: Other industrial machinery and parts | D139: 0.0997345515 | E139: 95335168.81 | F139: 110948255.8 | G139: 136437484.1 | H139: 163427172.7 | I139: 131824165.4 | J139: 165865797.2 | K139: 200243750.5 | L139: 206987193.9 | M139: 213350574.1 | N139: 224307590.1
C140: Professional and scientific instruments, n.e.s. | D140: 0.09997281986 | E140: 73884189.02 | F140: 90149413.7 | G140: 109965975.6 | H140: 123140590.2 | I140: 109695357.3 | J140: 149655365.6 | K140: 163942873 | L140: 179358549.5 | M140: 174924951.1 | N140: 174176314.3
C141: Inorganic chemicals | D141: 0.1014604961 | E141: 15598943.31 | F141: 18318408.76 | G141: 22932327.46 | H141: 32470417.33 | I141: 22657060.96 | J141: 31456863.6 | K141: 41797492.04 | L141: 38025288.99 | M141: 36143900.63 | N141: 37223354.8
C142: Miscellaneous manufactured articles, n.e.s. | D142: 0.1026662533 | E142: 132574754.5 | F142: 147873064.2 | G142: 177349977.1 | H142: 196448366.4 | I142: 182855410.6 | J142: 208856571.8 | K142: 260457520.6 | L142: 295696660.8 | M142: 293191767.7 | N142: 319490229.9
C143: Manufactures of metal, n.e.s. | D143: 0.1052310325 | E143: 68365740.48 | F143: 83172309.54 | G143: 100311838.7 | H143: 118037567.5 | I143: 94980816.19 | J143: 114218958.7 | K143: 138510703.5 | L143: 150098119.9 | M143: 155168874.6 | N143: 168234924
C144: Paper and paper manufactures | D144: 0.1053221521 | E144: 17732973.09 | F144: 20170931.28 | G144: 23988021.24 | H144: 26457917.41 | I144: 24191489.12 | J144: 30379527.49 | K144: 36803509.87 | L144: 37818575.55 | M144: 40697982.31 | N144: 43669821.87
C145: Footwear | D145: 0.1070442435 | E145: 33927253.46 | F145: 37787439.19 | G145: 42328940.66 | H145: 47970439.09 | I145: 43598614.88 | J145: 54458140.51 | K145: 63997091.64 | L145: 69751657.33 | M145: 75498877.76 | N145: 84729277.88
C146: Rubber manufactures, n.e.s. | D146: 0.1090800133 | E146: 23979038.58 | F146: 28605460.03 | G146: 34632029.5 | H146: 39216269.46 | I146: 35505148.24 | J146: 46672376.33 | K146: 60397160.73 | L146: 63404220.21 | M146: 62113886.69 | N146: 60883228.93
C147: Other transport equipment | D147: 0.1093273262 | E147: 50335285.09 | F147: 64390629.41 | G147: 80079277.21 | H147: 112955338.8 | I147: 126455208.3 | J147: 146911025.4 | K147: 170656262.9 | L147: 143807219.4 | M147: 127062457.4 | N147: 128058949
C148: Plastics in non-primary forms | D148: 0.1125367049 | E148: 19209689.34 | F148: 22686112.92 | G148: 26825644.06 | H148: 30484055.92 | I148: 28144379.08 | J148: 38884369.34 | K148: 45858063.69 | L148: 46602774.05 | M148: 48849929.31 | N148: 50159069.9
C149: Chemical materials and products, n.e.s. | D149: 0.1147048633 | E149: 25153683.58 | F149: 30415425.98 | G149: 35863487.6 | H149: 46022890.43 | I149: 38130239.71 | J149: 51364690.68 | K149: 61581376.48 | L149: 59901384.26 | M149: 63641324.99 | N149: 66840648.77
C150: Travel goods, handbags, etc. | D150: 0.1188762051 | E150: 14024888.96 | F150: 15856138.22 | G150: 18756619.34 | H150: 22717853.5 | I150: 20280330.82 | J150: 26337509.21 | K150: 33906227.48 | L150: 35999016.43 | M150: 38883314.95 | N150: 38542312.87
C151: Furniture and parts thereof | D151: 0.1222944422 | E151: 28338469.08 | F151: 33717911.18 | G151: 41494071.12 | H151: 47419345.23 | I151: 43311971.58 | J151: 54541196.8 | K151: 61210754.12 | L151: 74066348.86 | M151: 77977895.34 | N151: 80045642.5
C152: Medicinal and pharmaceutical products | D152: 0.1267096492 | E152: 18004138.84 | F152: 23278453.9 | G152: 28428344 | H152: 33014109.25 | I152: 35146130.88 | J152: 41685818.39 | K152: 47447695.66 | L152: 50758192.63 | M152: 51281633.64 | N152: 52684210.52
C153: Essential oils for perfume materials and cleaning preparations | D153: 0.1306107608 | E153: 11168846.52 | F153: 13302858.87 | G153: 15646024.7 | H153: 18849980.07 | I153: 18263438.33 | J153: 23490292.58 | K153: 28203658.45 | L153: 31288256.11 | M153: 32072706.55 | N153: 33715247.67
C154: Fertilizers other than group 272 | D154: 0.1614954286 | E154: 5626882.782 | F154: 5895600.637 | G154: 11146988.89 | H154: 17371178.08 | I154: 10412665.65 | J154: 15683035.22 | K154: 22321303.64 | L154: 22262068.99 | M154: 19990122.66 | N154: 21648380.46
C155: Prefabricated buildings, sanitary, heating and lighting fixtures, n.e.s. | D155: 0.1840564676 | E155: 9908120.119 | F155: 11867063.04 | G155: 14199330.06 | H155: 17010795.51 | I155: 14300171.09 | J155: 18077415.57 | K155: 22692177.96 | L155: 30841043.22 | M155: 38422147.9 | N155: 45325540.56
A157: EXPORTS | B157: Americas
B158: Check: | C158: Should be | E158: 1223672021 | F158: 1368816694 | G158: 1479313006 | H158: 1571412340 | I158: 1184913040 | J158: 1429060710 | K158: 1595923075 | L158: 1663241178 | M158: 1685084919 | N158: 1727597754
C159: Listed here | E159: =SUM(E160:E193) -> 1223672021 | F159: =SUM(F160:F193) -> 1368816694 | G159: 1479313006 | H159: 1571412340 | I159: 1184913040 | J159: 1429060710 | K159: 1595923075 | L159: 1663241178 | M159: 1685084919 | N159: 1727597754
C160: Other transport equipment | D160: =EXP(LN(N160/E160)/9)-1 -> -0.04472935876 | E160: 70329261.52 | F160: 89729407.19 | G160: 103338357.8 | H160: 102344028.7 | I160: 32650739.41 | J160: 32745313.1 | K160: 34361727.65 | L160: 42556712.23 | M160: 47859652.49 | N160: 46587985.59
C161: Cork and wood manufactures (excluding furniture) | D161: -0.03462363845 | E161: 11986113.81 | F161: 11441392.79 | G161: 9972987.47 | H161: 8985663.701 | I161: 6443762.508 | J161: 7263609.829 | K161: 7327910.865 | L161: 7673071.216 | M161: 8557617.474 | N161: 8728675.339
C162: Articles of apparel & clothing accessories | D162: -0.01202272243 | E162: 25945824.79 | F162: 24686534.42 | G162: 22987591.57 | H162: 22756112.5 | I162: 18469139.51 | J162: 20606081.98 | K162: 23251923.63 | L162: 22792064.82 | M162: 22933993.13 | N162: 23269662.72
C163: Metal working machinery | D163: -0.0002374730252 | E163: 8555884.147 | F163: 10430635.89 | G163: 7507526.83 | H163: 8377432.668 | I163: 5977436.353 | J163: 7248783.749 | K163: 8560118.672 | L163: 8805377.913 | M163: 8706502.402 | N163: 8537615.382
C164: Photo apparatus, optical goods, watches and clocks | D164: 0.0006920575734 | E164: 9996817.047 | F164: 10592653.97 | G164: 10731303.12 | H164: 10238825.84 | I164: 9577254.118 | J164: 10519490.97 | K164: 10588490.74 | L164: 10376181.74 | M164: 10088665.49 | N164: 10059255.05
C165: Textile yarn and related products | D165: 0.01262222914 | E165: 20058100.94 | F165: 20613477.09 | G165: 21003659.58 | H165: 21018390.69 | I165: 16767198.06 | J165: 19810147.55 | K165: 22277485.61 | L165: 21744422.23 | M165: 22277926.88 | N165: 22455199.8
C166: Paper and paper manufactures | D166: 0.01330104778 | E166: 28679211.31 | F166: 29889411.12 | G166: 30993475.44 | H166: 33174001.86 | I166: 27807672.32 | J166: 30655953.2 | K166: 32761582.99 | L166: 31548552.03 | M166: 32253108.44 | N166: 32300826.08
C167: Footwear | D167: 0.01471276879 | E167: 3978910.742 | F167: 4337133.293 | G167: 4625396.589 | H167: 5022965.977 | I167: 4073642.569 | J167: 4594328.117 | K167: 5026689.333 | L167: 4542318.069 | M167: 4567255.837 | N167: 4537872.878
C168: Power generating machinery and equipment | D168: 0.01736382289 | E168: 65273956.71 | F168: 69813645.89 | G168: 77887273.62 | H168: 83603375.08 | I168: 49903797.3 | J168: 61328136.19 | K168: 68305867.94 | L168: 73085849.37 | M168: 71894015.17 | N168: 76212560.19
C169: Office machines and automatic data processing machines | D169: 0.02080456716 | E169: 64163050.12 | F169: 67541862.03 | G169: 65106940.42 | H169: 63828387.38 | I169: 55935459.05 | J169: 67125656.25 | K169: 73554884.75 | L169: 76306830.94 | M169: 73430576.64 | N169: 77226871.36
C170: Furniture and parts thereof | D170: 0.02358172787 | E170: 16963240.3 | F170: 17731591.17 | G170: 17775578.83 | H170: 16865325.08 | I170: 12058272.18 | J170: 15088008.26 | K170: 16394946.69 | L170: 18231015.85 | M170: 19235638.66 | N170: 20922401.69
C171: Iron and steel | D171: 0.02872851377 | E171: 37417731.25 | F171: 40768597.31 | G171: 47624668.9 | H171: 59176346.53 | I171: 34339889.02 | J171: 44865005.94 | K171: 55710132.53 | L171: 50503914.93 | M171: 46323076.95 | N171: 48281910.8
C172: Electrical machinery, apparatus and appliances, n.e.s. | D172: 0.02945909803 | E172: 136086066.6 | F172: 152389646.1 | G172: 151266040.3 | H172: 155297736.3 | I172: 124174609.1 | J172: 151513999.8 | K172: 159521184.4 | L172: 164663790.7 | M172: 170111492.5 | N172: 176723997.5
C173: Organic chemicals | D173: 0.04356610298 | E173: 38448251.59 | F173: 44398105.88 | G173: 49501614.9 | H173: 51514778.36 | I173: 39187041.22 | J173: 51989951.41 | K173: 61381772.11 | L173: 60246258.13 | M173: 60676467.7 | N173: 56436005.98
C174: Telecommunication and sound recording apparatus | D174: 0.04399747478 | E174: 66167633.78 | F174: 79985392.95 | G174: 84075907.24 | H174: 95669163.8 | I174: 81027398.39 | J174: 92173983.41 | K174: 93679942.54 | L174: 95417370.82 | M174: 96738054.47 | N174: 97485637.91
C175: Non metallic mineral manufactures, n.e.s. | D175: 0.04509731346 | E175: 14256961.9 | F175: 16178539.91 | G175: 17380506.4 | H175: 17460832.91 | I175: 13805267.85 | J175: 16515310.24 | K175: 18020618.37 | L175: 18587757.96 | M175: 20181330.99 | N175: 21204965.53
C176: Miscellaneous manufactured articles, n.e.s. | D176: 0.0453655862 | E176: 61931767.24 | F176: 69007960.35 | G176: 76978118.65 | H176: 81763310.52 | I176: 73067639.75 | J176: 78370925.26 | K176: 82180804.19 | L176: 86337188.25 | M176: 90244926.63 | N176: 92326689.32
C177: Leather, leather manufactures and dressed furskins | D177: 0.04616600816 | E177: 4862375.026 | F177: 5536704.419 | G177: 6187704.119 | H177: 5555090.806 | I177: 3506744.622 | J177: 4992564.193 | K177: 5641425.177 | L177: 5624896.371 | M177: 6362667.836 | N177: 7298840.887
C178: Inorganic chemicals | D178: 0.04753883544 | E178: 15004785.89 | F178: 17437304.37 | G178: 21782201.66 | H178: 25108427.06 | I178: 17789339.55 | J178: 22219040.85 | K178: 27986743.85 | L178: 25597810.73 | M178: 23950500.67 | N178: 22790874.81
C179: Specialised machinery | D179: 0.04767559614 | E179: 46970407.34 | F179: 52697134.15 | G179: 65900141.28 | H179: 72313966.36 | I179: 51703064.42 | J179: 65212716.96 | K179: 75034461.34 | L179: 78915939.06 | M179: 72048851.83 | N179: 71427553.85
C180: Road vehicles | D180: 0.04937321533 | E180: 192036832.2 | F180: 211329558.5 | G180: 228044613.1 | H180: 221963195.8 | I180: 152799307 | J180: 216319257.9 | K180: 255244307.2 | L180: 284530954.8 | M180: 290873256.9 | N180: 296315457.4
C181: Dyeing, tanning and colouring materials | D181: 0.05047390004 | E181: 7088173.279 | F181: 7842637.743 | G181: 8450275.719 | H181: 8988039.57 | I181: 7797418.557 | J181: 10281192.18 | K181: 11834790.17 | L181: 11126083.65 | M181: 10707717 | N181: 11040830.02
C182: Plastics in primary forms | D182: 0.05384085008 | E182: 31662569.05 | F182: 36108288.45 | G182: 40733215.4 | H182: 43419003.5 | I182: 34400985.82 | J182: 43683300.36 | K182: 49710774.65 | L182: 48068405.87 | M182: 49393184.95 | N182: 50759976.47
C183: Manufactures of metal, n.e.s. | D183: 0.05400213214 | E183: 31250253.54 | F183: 35905457.87 | G183: 39225057.41 | H183: 42419053.63 | I183: 33036901.02 | J183: 38191910.1 | K183: 43657025.16 | L183: 47133066.01 | M183: 48102029.08 | N183: 50168018.72
C184: Professional and scientific instruments, n.e.s. | D184: 0.05598624914 | E184: 50419989.94 | F184: 57133490.62 | G184: 61452910.13 | H184: 65637177.75 | I184: 58408487.31 | J184: 67482151.45 | K184: 74154049.89 | L184: 77828999.04 | M184: 80118263.22 | N184: 82324124.55
C185: Plastics in non-primary forms | D185: 0.05616127606 | E185: 12460855 | F185: 13669234.41 | G185: 14440457.25 | H185: 15732286.83 | I185: 13624489.53 | J185: 16393758.35 | K185: 18372632.41 | L185: 18805384.81 | M185: 19386074.37 | N185: 20376050.27
C186: Prefabricated buildings, sanitary, heating and lighting fixtures, n.e.s. | D186: 0.05850454126 | E186: 4904726.051 | F186: 5256667.01 | G186: 5483946.852 | H186: 6002524.639 | I186: 4807871.92 | J186: 5436728.307 | K186: 6101905.043 | L186: 6902724.418 | M186: 7397705.824 | N186: 8181808.034
C187: Rubber manufactures, n.e.s. | D187: 0.06785182001 | E187: 11827497.45 | F187: 12980839.43 | G187: 14466993.22 | H187: 15366122.5 | I187: 12957844.41 | J187: 16010804.14 | K187: 19570756.98 | L187: 20416213.2 | M187: 21037340.75 | N187: 21354617.29
C188: Other industrial machinery and parts | D188: 0.06906208688 | E188: 63241886.14 | F188: 72071417.42 | G188: 79720292.12 | H188: 89295982.11 | I188: 72219175.18 | J188: 83765394.94 | K188: 97893678.74 | L188: 105798223.7 | M188: 108591700.6 | N188: 115353603.6
C189: Medicinal and pharmaceutical products | D189: 0.07479698747 | E189: 33043948.04 | F189: 37973896.36 | G189: 44340750 | H189: 49813171.57 | I189: 57855022.21 | J189: 57614914.7 | K189: 58043218.98 | L189: 57482071.5 | M189: 57305086.59 | N189: 63245538.55
C190: Travel goods, handbags, etc. | D190: 0.07496461665 | E190: 901906.529 | F190: 1058179.193 | G190: 1141657 | H190: 1236593.682 | I190: 1177396.006 | J190: 1290007.733 | K190: 1522956.673 | L190: 1635391.031 | M190: 1704769.912 | N190: 1728657.898
C191: Essential oils for perfume materials and cleaning preparations | D191: 0.08023396084 | E191: 12980118.01 | F191: 14806371.81 | G191: 16950778.08 | H191: 19523308.11 | I191: 19096069.86 | J191: 21134359.28 | K191: 23164641.03 | L191: 24404414.52 | M191: 25535485.33 | N191: 25997948.63
C192: Chemical materials and products, n.e.s. | D192: 0.08578591136 | E192: 20731015.9 | F192: 23376735.03 | G192: 27089145.03 | H192: 34203182.56 | I192: 28488490.24 | J192: 33988395.77 | K192: 38469266.81 | L192: 40134020.77 | M192: 42429221.56 | N192: 43482890.33
C193: Fertilizers other than group 272 | D193: 0.1330533129 | E193: 4045898.067 | F193: 4096789.89 | G193: 5145919.962 | H193: 17738535.97 | I193: 9978213.533 | J193: 12629527.83 | K193: 16614357.71 | L193: 15417901.79 | M193: 14060760.37 | N193: 12452829.48
A195: EXPORTS | B195: Europe
B196: Check: | C196: Should be | E196: 3391579615 | F196: 3820736976 | G196: 4397964283 | H196: 4822165638 | I196: 3711262267 | J196: 4155106030 | K196: 4859343324 | L196: 4599881912 | M196: 4818696242 | N196: 4963775589
C197: Listed here | E197: =SUM(E198:E231) -> 3391579615 | F197: =SUM(F198:F231) -> 3820736976 | G197: 4397964283 | H197: 4822165638 | I197: 3711262267 | J197: 4155106030 | K197: 4859343324 | L197: 4599881912 | M197: 4818696242 | N197: 4963775589
C198: Office machines and automatic data processing machines | D198: =EXP(LN(N198/E198)/9)-1 -> -0.01065599608 | E198: 140019769 | F198: 153075463.3 | G198: 150302238.5 | H198: 149007482.9 | I198: 117069452 | J198: 122436454.1 | K198: 130872811.2 | L198: 118525515.9 | M198: 121504596.8 | N198: 127149685.7
C199: Telecommunication and sound recording apparatus | D199: -0.004164555575 | E199: 156346402.3 | F199: 201488685.3 | G199: 164225036 | H199: 174085491.1 | I199: 131848967.7 | J199: 156197470.6 | K199: 166094735.6 | L199: 146523535.8 | M199: 147388781.3 | N199: 150583057.6
C200: Textile yarn and related products | D200: 0.006066527295 | E200: 73928591.68 | F200: 77110676.75 | G200: 84968549.94 | H200: 84534621.09 | I200: 64851144.24 | J200: 69639100.34 | K200: 79761567.17 | L200: 71710827.95 | M200: 76124547.5 | N200: 78064347.15
C201: Iron and steel | D201: 0.02140162654 | E201: 174924276.7 | F201: 204125956.3 | G201: 259860731.8 | H201: 303678719.3 | I201: 165874821.1 | J201: 205471304.8 | K201: 257256415.3 | L201: 227432777.2 | M201: 215522844.3 | N201: 211650350.9
C202: Paper and paper manufactures | D202: 0.0241627313 | E202: 86000277.69 | F202: 92779373.92 | G202: 105028252.6 | H202: 112177682.7 | I202: 93545081.27 | J202: 100556889.3 | K202: 111518155.4 | L202: 102693033.2 | M202: 106074186 | N202: 106615553.5
C203: Organic chemicals | D203: 0.02585814641 | E203: 136809897.8 | F203: 147878544.6 | G203: 168961562.3 | H203: 175479082.7 | I203: 142013904.2 | J203: 161948549.6 | K203: 185827141.9 | L203: 179993968.3 | M203: 183581280.5 | N203: 172148531.5
C204: Cork and wood manufactures (excluding furniture) | D204: 0.02934803098 | E204: 26408930.91 | F204: 29373467.34 | G204: 34993456.34 | H204: 35811236.37 | I204: 26604184.83 | J204: 28334704.71 | K204: 32617771.7 | L204: 30406168.74 | M204: 32809421.01 | N204: 34261862.15
C205: Non metallic mineral manufactures, n.e.s. | D205: 0.03136717324 | E205: 58734250.39 | F205: 65483194.28 | G205: 76653170.51 | H205: 81581034.3 | I205: 62683715.8 | J205: 65054118.71 | K205: 74304691.02 | L205: 70499428.54 | M205: 75011895.74 | N205: 77555244.24
... 322 more rows

Sheet W6
A1: Click on arrow (▼) above right to select desired section from drop-down list
A2: Green titles relate to exports | B2: Brown titles relate to imports
A3: Broad overview of global trade in manufactures
A4: Value of world manufactures exports | I4: Value of world manufactures imports
A5: [data on page 'W1'] | I5: [data on page 'W1']
A24: Source: UNCTADStat. 'Manufactures' = SITC 5-8 less 667 and 68. | I24: Source: UNCTADStat. 'Manufactures' = SITC 5-8 less 667 and 68.
A26: Share of manufactures in total world exports | I26: Share of manufactures in total world imports
A27: [data on page 'W1'] | I27: [data on page 'W1']
A46: Source: UNCTADStat. 'Manufactures' = SITC 5-8 less 667 and 68. | I46: Source: UNCTADStat. 'Manufactures' = SITC 5-8 less 667 and 68.
A48: Growth in world manufactures exports 2005-14 | E48: 0.05851062294 | F48: average annual | H48: 0.6682340744 | I48: change in absolute value | L48: [data on page 'W1']
A49: Growth in world non-manufactures exports 2005-14 | E49: 0.0919049796 | F49: average annual | H49: 1.206295195 | I49: change in absolute value | L49: [data on page 'W1']
A50: Growth in world manufactures imports 2005-14 | E50: 0.05521073478 | F50: average annual | H50: 0.6220073064 | I50: change in absolute value | L50: [data on page 'W1']
A51: Growth in world non-manufactures imports 2005-14 | E51: 0.0868132844 | F51: average annual | H51: 1.115409471 | I51: change in absolute value | L51: [data on page 'W1']
A52: Source: UNCTADStat. 'Manufactures' = SITC 5-8 less 667 and 68.
A54: Value of world manufactures exports by various groupings | K54: Value of world manufactures imports by various groupings
A55: [data on page 'W2'] | K55: [data on page 'W2']
A74: Notes: * Excludes Western Sahara (not included in any income group) | K74: Notes: * Excludes Western Sahara (not included in any income group)
A75: ** Excludes South Sudan (no data). Values too small to show on graph. | K75: ** Excludes South Sudan (no data). Values too small to show on graph.
A76: Source: UNCTADStat. 'Manufactures' = SITC 5-8 less 667 and 68. | K76: Source: UNCTADStat. 'Manufactures' = SITC 5-8 less 667 and 68.
A78: Sectoral trade | F78: Imports >>> | M78: Imports >>> | T78: Imports >>>
A79: Share of total world manufactures exports by sector (in descending order of share in 2014) | M79: Share of total world manufactures exports by sector, 2005 and 2014 | U79: Share of total world manufactures imports by sector (in descending order of share in 2014) | AG79: Share of total world manufactures imports by sector, 2005 and 2014
A80: [data on page 'W3'] | U80: [data on page 'W3'] | AG80: [data on page 'W3']
A82: Sector | B82: 2005 | C82: 2006 | D82: 2007 | E82: 2008 | F82: 2009 | G82: 2010 | H82: 2011 | I82: 2012 | J82: 2013 | K82: 2014 | U82: Sector | V82: 2005 | W82: 2006 | X82: 2007 | Y82: 2008 | Z82: 2009 | AA82: 2010 | AB82: 2011 | AC82: 2012 | AD82: 2013 | AE82: 2014
A83: Value of world manufactures exports (US$ billions) | B83: 7366.154555 | C83: 8373.139406 | D83: 9564.662421 | E83: 10487.38023 | F83: 8333.419697 | G83: 9979.761632 | H83: 11505.56597 | I83: 11518.18483 | J83: 11916.23758 | K83: 12288.47003 | U83: Value of world manufactures imports (US$ billions) | V83: 7598.874914 | W83: 8549.582119 | X83: 9716.538485 | Y83: 10656.07287 | Z83: 8489.255108 | AA83: 10166.91071 | AB83: 11628.54134 | AC83: 11613.83128 | AD83: 11963.00666 | AE83: 12325.43063
A84: Electrical machinery, apparatus and appliances, n.e.s. | B84: 0.1162190171 | C84: 0.1185993779 | D84: 0.1147190797 | E84: 0.1099642457 | F84: 0.1171089309 | G84: 0.1250751788 | H84: 0.1179663192 | I84: 0.118757775 | J84: 0.1233847139 | K84: 0.1226167055 | U84: Electrical machinery, apparatus and appliances, n.e.s. | V84: 0.1230885443 | W84: 0.125362154 | X84: 0.1215951752 | Y84: 0.1169740489 | Z84: 0.1235596355 | AA84: 0.1334065741 | AB84: 0.1267016256 | AC84: 0.126946444 | AD84: 0.131563787 | AE84: 0.1313871656
A85: Road vehicles | B85: 0.1222187195 | C85: 0.1194180221 | D85: 0.1221428556 | E85: 0.1162198866 | F85: 0.0993877967 | G85: 0.1066000568 | H85: 0.109146619 | I85: 0.1111065389 | J85: 0.1110096052 | K85: 0.1113193681 | U85: Road vehicles | V85: 0.1173220029 | W85: 0.1170022753 | X85: 0.1199562411 | Y85: 0.113093633 | Z85: 0.09737559731 | AA85: 0.1026993615 | AB85: 0.1056087809 | AC85: 0.1084203382 | AD85: 0.1091996383 | AE85: 0.1094432777
A86: Telecommunication and sound recording apparatus | B86: 0.06724767947 | C86: 0.07043118552 | D86: 0.06143143471 | E86: 0.0605177605 | F86: 0.06428351802 | G86: 0.06289330278 | H86: 0.05967677268 | I86: 0.06048895049 | J86: 0.06197932596 | K86: 0.06235091419 | U86: Telecommunication and sound recording apparatus | V86: 0.06674122527 | W86: 0.06928829882 | X86: 0.06286762213 | Y86: 0.06303411848 | Z86: 0.065512184 | AA86: 0.06725811139 | AB86: 0.06421060146 | AC86: 0.06605023724 | AD86: 0.06717617435 | AE86: 0.06629717104
A87: Other industrial machinery and parts | B87: 0.0512428205 | C87: 0.05213378096 | D87: 0.05521564951 | E87: 0.05763535349 | F87: 0.05605173238 | G87: 0.05318813441 | H87: 0.05504694508 | I87: 0.05539921422 | J87: 0.05601308972 | K87: 0.05657575124 | U87: Other industrial machinery and parts | V87: 0.05151087342 | W87: 0.05228798185 | X87: 0.05496980155 | Y87: 0.05717081599 | Z87: 0.05603527204 | AA87: 0.05345415663 | AB87: 0.05580063139 | AC87: 0.05617530799 | AD87: 0.0570981975 | AE87: 0.05762488256
A88: Miscellaneous manufactured articles, n.e.s. | B88: 0.04893896089 | C88: 0.04773033356 | D88: 0.04822856966 | E88: 0.04858368498 | F88: 0.05424857876 | G88: 0.05039330025 | H88: 0.05087634147 | I88: 0.05348784086 | J88: 0.05293301487 | K88: 0.05465152297 | U88: Miscellaneous manufactured articles, n.e.s. | V88: 0.05108246459 | W88: 0.04985284833 | X88: 0.05073819269 | Y88: 0.05095226442 | Z88: 0.05589780085 | AA88: 0.05190705731 | AB88: 0.05037381329 | AC88: 0.05034610594 | AD88: 0.04959255289 | AE88: 0.05014285355
A89: Office machines and automatic data processing machines | B89: 0.06675134277 | C89: 0.06488502568 | D89: 0.05929414236 | E89: 0.05445617591 | F89: 0.05762093535 | G89: 0.05750722739 | H89: 0.05162774564 | I89: 0.05200210388 | J89: 0.04932601117 | K89: 0.04884346926 | U89: Office machines and automatic data processing machines | V89: 0.06778211657 | W89: 0.06535373993 | X89: 0.05909433428 | Y89: 0.05489525047 | Z89: 0.05773515159 | AA89: 0.0582318468 | AB89: 0.05288001105 | AC89: 0.05314083957 | AD89: 0.05066647047 | AE89: 0.04941762536
A90: Medicinal and pharmaceutical products | B90: 0.03717028109 | C90: 0.0373549693 | D90: 0.03869998945 | E90: 0.04011092161 | F90: 0.05233479386 | G90: 0.04603044658 | H90: 0.04313183683 | I90: 0.04307345567 | J90: 0.0437956576 | K90: 0.04452794455 | U90: Medicinal and pharmaceutical products | V90: 0.03744191315 | W90: 0.03775092567 | X90: 0.03909780979 | Y90: 0.04041472913 | Z90: 0.05203992045 | AA90: 0.04648890123 | AB90: 0.04454241593 | AC90: 0.04448877918 | AD90: 0.04502365582 | AE90: 0.0457654975
A91: Articles of apparel & clothing accessories | B91: 0.0401792356 | C91: 0.03936765825 | D91: 0.03857479043 | E91: 0.03695830606 | F91: 0.04074791377 | G91: 0.03761764093 | H91: 0.03825677088 | I91: 0.03773735428 | J91: 0.03984954001 | K91: 0.04074350661 | U91: Iron and steel | V91: 0.04404223371 | W91: 0.04538320096 | X91: 0.05068665646 | Y91: 0.05709285123 | Z91: 0.04017182122 | AA91: 0.04239711189 | AB91: 0.04569141107 | AC91: 0.04275791273 | AD91: 0.03917157805 | AE91: 0.03927351215
A92: Iron and steel | B92: 0.04330391225 | C92: 0.04484437605 | D92: 0.0501837355 | E92: 0.05620264788 | F92: 0.038956148 | G92: 0.04280529946 | H92: 0.04608472315 | I92: 0.04236580046 | J92: 0.03842664659 | K92: 0.03853019414 | U92: Articles of apparel & clothing accessories | V92: 0.03989036136 | W92: 0.03820639885 | X92: 0.03718439519 | Y92: 0.03602654441 | Z92: 0.04003981039 | AA92: 0.03633880504 | AB92: 0.0366199136 | AC92: 0.03508772307 | AD92: 0.03613139474 | AE92: 0.03695176019
A93: Specialised machinery | B93: 0.03605074946 | C93: 0.03611984807 | D93: 0.03956638371 | E93: 0.04013113603 | F93: 0.03443270525 | G93: 0.03670299074 | H93: 0.03919499346 | I93: 0.03762456904 | J93: 0.03553282807 | K93: 0.03490971512 | U93: Organic chemicals | V93: 0.03628147914 | W93: 0.03519003197 | X93: 0.03590600947 | Y93: 0.03506441513 | Z93: 0.03592339152 | AA93: 0.03626936646 | AB93: 0.03862300367 | AC93: 0.03792054936 | AD93: 0.0372622804 | AE93: 0.03537096489
A94: Professional and scientific instruments, n.e.s. | B94: 0.02928327574 | C94: 0.02951878473 | D94: 0.02983594278 | E94: 0.03015442004 | F94: 0.03333517626 | G94: 0.03407856905 | H94: 0.03327160907 | I94: 0.03458521177 | J94: 0.03402278031 | K94: 0.03367432218 | U94: Power generating machinery and equipment | V94: 0.03312189859 | W94: 0.03309517945 | X94: 0.03385315307 | Y94: 0.03493441302 | Z94: 0.03640209886 | AA94: 0.03469098555 | AB94: 0.03548660899 | AC94: 0.03587041926 | AD94: 0.03546820223 | AE94: 0.03499780427
A95: Power generating machinery and equipment | B95: 0.03442848591 | C95: 0.03431064931 | D95: 0.03452882844 | E95: 0.03536276611 | F95: 0.03447546401 | G95: 0.03325051023 | H95: 0.03394015542 | I95: 0.03408953398 | J95: 0.03348249649 | K95: 0.03344143485 | U95: Specialised machinery | V95: 0.03520346272 | W95: 0.03531155718 | X95: 0.03807665765 | Y95: 0.03846727772 | Z95: 0.03362165788 | AA95: 0.03540404995 | AB95: 0.03831515201 | AC95: 0.03703004242 | AD95: 0.03493674784 | AE95: 0.03452313219
A96: Manufactures of metal, n.e.s. | B96: 0.02945803628 | C96: 0.03055711438 | D96: 0.03205965135 | E96: 0.03329734072 | F96: 0.03195708222 | G96: 0.03040305924 | H96: 0.03154657154 | I96: 0.03188931502 | J96: 0.03233247421 | K96: 0.03303777638 | U96: Professional and scientific instruments, n.e.s. | V96: 0.02992882392 | W96: 0.03057725424 | X96: 0.03052247635 | Y96: 0.03020129239 | Z96: 0.03190686434 | AA96: 0.03230851849 | AB96: 0.03196585504 | AC96: 0.0330518623 | AD96: 0.03300405549 | AE96: 0.03256601556
A97: Organic chemicals | B97: 0.03477808779 | C97: 0.03380690421 | D97: 0.03418881465 | E97: 0.03307349311 | F97: 0.03380022105 | G97: 0.03485617057 | H97: 0.03672271681 | I97: 0.03618044662 | J97: 0.03568693722 | K97: 0.03299476229 | U97: Manufactures of metal, n.e.s. | V97: 0.02913560036 | W97: 0.03005737118 | X97: 0.03153632334 | Y97: 0.03277440122 | Z97: 0.03169593269 | AA97: 0.03024543475 | AB97: 0.03088737148 | AC97: 0.03126340065 | AD97: 0.03158254466 | AE97: 0.0320551496
A98: Other transport equipment | B98: 0.02937715258 | C98: 0.03201720734 | D98: 0.03250315613 | E98: 0.03490325679 | F98: 0.03522175249 | G98: 0.0331429279 | H98: 0.03187141698 | I98: 0.03113800395 | J98: 0.03001495481 | K98: 0.03006973598 | U98: Plastics in primary forms | V98: 0.02379051794 | W98: 0.02432331744 | X98: 0.02461488929 | Y98: 0.02424938604 | Z98: 0.02358213687 | AA98: 0.02592039215 | AB98: 0.0266371621 | AC98: 0.02596388841 | AD98: 0.02638556155 | AE98: 0.0266892989
A99: Textile yarn and related products | B99: 0.02925239342 | C99: 0.02747634265 | D99: 0.02610170917 | E99: 0.02476274193 | F99: 0.02632073908 | G99: 0.0260923218 | H99: 0.0263418029 | I99: 0.02541564812 | J99: 0.02643352478 | K99: 0.02622677333 | U99: Other transport equipment | V99: 0.02371909412 | W99: 0.02520398391 | X99: 0.02421700462 | Y99: 0.02623457626 | Z99: 0.02844306338 | AA99: 0.02645722495 | AB99: 0.02418662216 | AC99: 0.02565866587 | AD99: 0.02603045447 | AE99: 0.0266845709
A100: Plastics in primary forms | B100: 0.02459594146 | C100: 0.02445976797 | D100: 0.02527521465 | E100: 0.02439620657 | F100: 0.02388208729 | G100: 0.02607491332 | H100: 0.02677766906 | I100: 0.02603390439 | J100: 0.02631591795 | K100: 0.02616141025 | U100: Textile yarn and related products | V100: 0.02699547466 | W100: 0.02527289747 | X100: 0.02411506919 | Y100: 0.02279327089 | Z100: 0.02364914775 | AA100: 0.02314843493 | AB100: 0.02341998219 | AC100: 0.02244874792 | AD100: 0.02288853469 | AE100: 0.02353473061
A101: Chemical materials and products, n.e.s. | B101: 0.01469750561 | C101: 0.01475166572 | D101: 0.01515577122 | E101: 0.01699093841 | F101: 0.01786108091 | G101: 0.0177713348 | H101: 0.0183589587 | I101: 0.01777668761 | J101: 0.01831128229 | K101: 0.0184939175 | U101: Chemical materials and products, n.e.s. | V101: 0.01512452292 | W101: 0.01522457237 | X101: 0.01578867381 | Y101: 0.01693342654 | Z101: 0.01801194378 | AA101: 0.01798215528 | AB101: 0.01891829485 | AC101: 0.01845789872 | AD101: 0.0186663183 | AE101: 0.01872848381
A102: Paper and paper manufactures | B102: 0.018218954 | C102: 0.0172753928 | D102: 0.01697018799 | E102: 0.01662097244 | F102: 0.01774498009 | G102: 0.01648919179 | H102: 0.01602477443 | I102: 0.01520147352 | J102: 0.01527934518 | K102: 0.01510837595 | U102: Paper and paper manufactures | V102: 0.01825262682 | W102: 0.01736944078 | X102: 0.01709196995 | Y102: 0.01678570796 | Z102: 0.01766910069 | AA102: 0.01635311352 | AB102: 0.0158276021 | AC102: 0.01522541283 | AD102: 0.01523749748 | AE102: 0.0151907621
A103: Non metallic mineral manufactures, n.e.s. (minus pearls and semi-/precious stones)) | B103: 0.01463096761 | C103: 0.01466105724 | D103: 0.01472103737 | E103: 0.01468960332 | F103: 0.01507653342 | G103: 0.01437145134 | H103: 0.01432216759 | I103: 0.01467378684 | J103: 0.01510287229 | K103: 0.01450936069 | U103: Non metallic mineral manufactures, n.e.s. | V103: 0.01483628078 | W103: 0.01473292412 | X103: 0.01493607515 | Y103: 0.01486297572 | Z103: 0.01487520951 | AA103: 0.01432661786 | AB103: 0.01414667766 | AC103: 0.01421366106 | AD103: 0.01431148465 | AE103: 0.01444538048
A104: Furniture and parts thereof | B104: 0.01328140262 | C104: 0.0129568081 | D104: 0.01330127973 | E104: 0.0130643693 | F104: 0.01354369201 | G104: 0.0129582904 | H104: 0.01269382235 | I104: 0.01359705178 | J104: 0.01394145762 | K104: 0.01418656616 | U104: Furniture and parts thereof | V104: 0.01431121549 | W104: 0.01399876902 | X104: 0.01412594566 | Y104: 0.0134992935 | Z104: 0.01354067991 | AA104: 0.01278778896 | AB104: 0.01230815648 | AC104: 0.01262600241 | AD104: 0.01284906689 | AE104: 0.01343457546
A105: Essential oils for perfume materials and cleaning preparations | B105: 0.01117407859 | C105: 0.01095221638 | D105: 0.01114822207 | E105: 0.01155723225 | F105: 0.01337072095 | G105: 0.01241484498 | H105: 0.0124017461 | I105: 0.01252043848 | J105: 0.01289370769 | K105: 0.01298149262 | U105: Essential oils for perfume materials and cleaning preparations | V105: 0.01075578299 | W105: 0.0105984995 | X105: 0.01070452058 | Y105: 0.01107250825 | Z105: 0.0128264962 | AA105: 0.01195519348 | AB105: 0.01182132652 | AC105: 0.01205778198 | AD105: 0.01255782105 | AE105: 0.01252830505
A106: Rubber manufactures, n.e.s. | B106: 0.01025211082 | C106: 0.01033574024 | D106: 0.01077962518 | E106: 0.01077209881 | F106: 0.0113450821 | G106: 0.01175910722 | H106: 0.01306162688 | I106: 0.01290220782 | J106: 0.01265230388 | K106: 0.0120870156 | M106: Source: UNCTADStat. 'Manufactures' = SITC 5-8 less 667 and 68. | U106: Rubber manufactures, n.e.s. | V106: 0.01029540708 | W106: 0.01041325306 | X106: 0.01090529518 | Y106: 0.01090877454 | Z106: 0.01129549656 | AA106: 0.01177509677 | AB106: 0.01296040377 | AC106: 0.01304925494 | AD106: 0.01282877272 | AE106: 0.01225954331 | AG106: Source: UNCTADStat. 'Manufactures' = SITC 5-8 less 667 and 68.
A107: Footwear | B107: 0.009090198854 | C107: 0.008807597842 | D107: 0.008659594447 | E107: 0.008762641902 | F107: 0.009813539774 | G107: 0.009624449932 | H107: 0.009899620347 | I107: 0.01012388739 | J107: 0.01070674551 | K107: 0.01148345024 | U107: Photo apparatus, optical goods, watches and clocks | V107: 0.01209317377 | W107: 0.01156576771 | X107: 0.01062269192 | Y107: 0.01030465971 | Z107: 0.01085417813 | AA107: 0.01089869677 | AB107: 0.01090639423 | AC107: 0.01127420347 | AD107: 0.01108813516 | AE107: 0.01094670224
A108: Photo apparatus, optical goods, watches and clocks | B108: 0.01272525246 | C108: 0.01203821883 | D108: 0.01059524623 | E108: 0.01025209545 | F108: 0.01111515422 | G108: 0.01116252814 | H108: 0.01120425988 | I108: 0.01172191462 | J108: 0.01154871951 | K108: 0.01137610076 | U108: Plastics in non-primary forms | V108: 0.00977001303 | W108: 0.00988997525 | X108: 0.009982563101 | Y108: 0.009992840969 | Z108: 0.01047291767 | AA108: 0.01070112685 | AB108: 0.01082246201 | AC108: 0.01065154738 | AD108: 0.01090975725 | AE108: 0.01091131762
A109: Plastics in non-primary forms | B109: 0.01002854272 | C109: 0.01014670997 | D109: 0.01034789818 | E109: 0.01034770332 | F109: 0.01086328582 | G109: 0.01098632679 | H109: 0.01109852265 | I109: 0.01082472279 | J109: 0.01105479778 | K109: 0.01110313276 | U109: Footwear | V109: 0.009927512646 | W109: 0.009663389559 | X109: 0.009294127529 | Y109: 0.00920441118 | Z109: 0.01035792022 | AA109: 0.009970336826 | AB109: 0.00998949177 | AC109: 0.01002723332 | AD109: 0.0104000165 | AE109: 0.01089562933
A110: Inorganic chemicals | B110: 0.007610408599 | C110: 0.007826224416 | D110: 0.008584315597 | E110: 0.01030829796 | F110: 0.008782373129 | G110: 0.009438890799 | H110: 0.0104020771 | I110: 0.009430207313 | J110: 0.008760760853 | K110: 0.008407814143 | U110: Inorganic chemicals | V110: 0.00861725036 | W110: 0.008753669069 | X110: 0.009359527421 | Y110: 0.01128002583 | Z110: 0.01003032661 | AA110: 0.01056241353 | AB110: 0.01157140298 | AC110: 0.01063272392 | AD110: 0.009817935845 | AE110: 0.009440739396
A111: Metal working machinery | B111: 0.008715195675 | C111: 0.008924933706 | D111: 0.0083379081 | E111: 0.008697205102 | F111: 0.007157875571 | G111: 0.006968019711 | H111: 0.007896851647 | I111: 0.00811188694 | J111: 0.007291112492 | K111: 0.007406426086 | U111: Metal working machinery | V111: 0.008558400412 | W111: 0.008781258009 | X111: 0.008362400656 | Y111: 0.008532632757 | Z111: 0.007083383582 | AA111: 0.006732881937 | AB111: 0.007780123279 | AC111: 0.008160732629 | AD111: 0.007211783397 | AE111: 0.007227838868
A112: Prefabricated buildings, sanitary, heating and lighting fixtures, n.e.s. | B112: 0.004920734298 | C112: 0.004958371508 | D112: 0.005068661066 | E112: 0.00525344844 | F112: 0.005247294313 | G112: 0.004916031782 | H112: 0.00506541352 | I112: 0.005716013164 | J112: 0.006372936814 | K112: 0.006863456124 | U112: Dyeing, tanning and colouring materials | V112: 0.00671973997 | W112: 0.00658413511 | X112: 0.006448921256 | Y112: 0.006312053837 | Z112: 0.006588849797 | AA112: 0.006529886356 | AB112: 0.006614726577 | AC112: 0.006379888278 | AD112: 0.006317586512 | AE112: 0.00630409827
A113: Dyeing, tanning and colouring materials | B113: 0.006906810871 | C113: 0.006675202437 | D113: 0.006591645922 | E113: 0.006388565009 | F113: 0.006742591426 | G113: 0.006717131099 | H113: 0.006865740978 | I113: 0.006687559625 | J113: 0.006427843578 | K113: 0.006379765343 | U113: Fertilizers other than group 272 | V113: 0.004345040628 | W113: 0.003930945682 | X113: 0.004749655125 | Y113: 0.008211026097 | Z113: 0.005373837535 | AA113: 0.00572539113 | AB113: 0.007141939541 | AC113: 0.00696875394 | AD113: 0.006312794856 | AE113: 0.006031138107
A114: Cork and wood manufactures (excluding furniture) | B114: 0.007155039008 | C114: 0.006965101875 | D114: 0.006682593944 | E114: 0.006005014666 | F114: 0.005804850036 | G114: 0.005441269571 | H114: 0.005378527903 | I114: 0.005372213143 | J114: 0.005589953043 | K114: 0.005729593292 | U114: Prefabricated buildings, sanitary, heating and lighting fixtures, n.e.s. | V114: 0.005164870139 | W114: 0.005216971889 | X114: 0.005196772238 | Y114: 0.005203475235 | Z114: 0.005270449096 | AA114: 0.004997733818 | AB114: 0.004975012061 | AC114: 0.005278451318 | AD114: 0.005533332801 | AE114: 0.005818536528
A115: Fertilizers other than group 272 | B115: 0.003381334523 | C115: 0.003089439881 | D115: 0.003952027944 | E115: 0.00728793898 | F115: 0.004945300309 | G115: 0.005549455296 | H115: 0.00666224421 | I115: 0.006563633382 | J115: 0.005667184972 | K115: 0.005390353234 | U115: Cork and wood manufactures (excluding furniture) | V115: 0.007026853569 | W115: 0.00675434444 | X115: 0.006456442383 | Y115: 0.005893210472 | Z115: 0.005484916469 | AA115: 0.005287784846 | AB115: 0.005204319341 | AC115: 0.005168305137 | AD115: 0.005288471751 | AE115: 0.005442272733
A116: Travel goods, handbags, etc. | B116: 0.003227011992 | C116: 0.003230380252 | D116: 0.00338106 | E116: 0.003600727973 | F116: 0.003983814298 | G116: 0.004089882502 | H116: 0.004618650748 | I116: 0.004861692418 | J116: 0.005104853108 | K116: 0.005019322097 | U116: Travel goods, handbags, etc. | V116: 0.003893745218 | W116: 0.003899551203 | X116: 0.00403337961 | Y116: 0.004111493384 | Z116: 0.004418330779 | AA116: 0.004320760824 | AB116: 0.004567122241 | AC116: 0.004800630603 | AD116: 0.004883950224 | AE116: 0.00497327859
A117: Leather, leather manufactures and dressed furskins | B117: 0.003488359896 | C117: 0.00337359092 | D117: 0.003172977182 | E117: 0.002670802632 | F117: 0.002436256195 | G117: 0.002629743576 | H117: 0.002563985836 | I117: 0.002538956557 | J117: 0.002754604558 | K117: 0.002798550442 | U117: Leather, leather manufactures and dressed furskins | V117: 0.003229477529 | W117: 0.003103116678 | X117: 0.002909227023 | Y117: 0.002518195329 | Z117: 0.002254476845 | AA117: 0.002466688187 | AB117: 0.002493582649 | AC117: 0.002406253908 | AD117: 0.002603444173 | AE117: 0.002695985608
A118: Source: UNCTADStat. 'Manufactures' = SITC 5-8 less 667 and 68. | U118: Source: UNCTADStat. 'Manufactures' = SITC 5-8 less 667 and 68.
A120: IMPORTS >>> | E120: IMPORTS >>> | M120: IMPORTS >>> | U120: IMPORTS
A121: Average annual growth in value of manufactures exports by sector, 2005-14: developed economies | J121: Average annual growth in value of manufactures exports by sector, 2005-14: developing and transition economies | U121: Average annual growth in value of manufactures imports by sector, 2005-14: developed economies | AE121: Average annual growth in value of manufactures imports by sector, 2005-14: developing and transition economies
A122: [data on page 'W5'] | J122: [data on page 'W5'] | U122: [data on page 'W5'] | AE122: [data on page 'W5']
A147: Source: UNCTADStat. 'Manufactures' = SITC 5-8 less 667 and 68. | J147: Source: UNCTADStat. 'Manufactures' = SITC 5-8 less 667 and 68. | U147: Source: UNCTADStat. 'Manufactures' = SITC 5-8 less 667 and 68. | AE147: Source: UNCTADStat. 'Manufactures' = SITC 5-8 less 667 and 68.
A149: Regional trade
A150: Value of manufactures exports by region | L150: Value of manufactures imports by region
A151: [data on page 'W4'] | L151: [data on page 'W4']
A170: Note: Oceania values to small to show on graph. | L170: Note: Oceania values to small to show on graph.
A171: Source: UNCTADStat. 'Manufactures' = SITC 5-8 less 667 and 68. | L171: Source: UNCTADStat. 'Manufactures' = SITC 5-8 less 667 and 68.
A173: IMPORTS >>> | E173: IMPORTS >>> | M173: IMPORTS >>> | U173: IMPORTS
A174: Africa: share of total manufactures exports by sector (in descending order of share in 2014) | M174: Africa: share of total manufactures exports by sector, 2005 and 2014 | U174: Africa: share of total manufactures imports by sector (in descending order of share in 2014) | AG174: Africa: share of total manufactures imports by sector, 2005 and 2014
A175: [Calculated from data on page 'W5'] | U175: [Calculated from data on page 'W5']
A176: Sector | B176: 2005 | C176: 2006 | D176: 2007 | E176: 2008 | F176: 2009 | G176: 2010 | H176: 2011 | I176: 2012 | J176: 2013 | K176: 2014 | U176: Sector | V176: 2005 | W176: 2006 | X176: 2007 | Y176: 2008 | Z176: 2009 | AA176: 2010 | AB176: 2011 | AC176: 2012 | AD176: 2013 | AE176: 2014
A177: Value of manufactures exports (US$ billions) | B177: 55.63544612 | C177: 60.12034078 | D177: 71.8350154 | E177: 91.27577682 | F177: 70.6749593 | G177: 93.1959937 | H177: 102.4224608 | I177: 100.9250379 | J177: 102.9098051 | K177: 105.5474012 | U177: Value of manufactures imports (US$ billions) | V177: 165.9540305 | W177: 190.7643798 | X177: 236.6379293 | Y177: 303.2371802 | Z177: 271.2253404 | AA177: 306.2625931 | AB177: 334.274685 | AC177: 365.3912154 | AD177: 386.0112018 | AE177: 399.3339771
A178: Road vehicles | B178: 0.09263139192 | C178: 0.09459934701 | D178: 0.08876689106 | E178: 0.09701760626 | F178: 0.0931503321 | G178: 0.09723830568 | H178: 0.0987935224 | I178: 0.1080842203 | J178: 0.1089654779 | K178: 0.1091612051 | U178: Road vehicles | V178: 0.1200273505 | W178: 0.1266106491 | X178: 0.1333636139 | Y178: 0.1278398137 | Z178: 0.1246302589 | AA178: 0.1270733946 | AB178: 0.1237243691 | AC178: 0.1391980817 | AD178: 0.1272957409 | AE178: 0.1244116388
A179: Articles of apparel & clothing accessories | B179: 0.1649615918 | C179: 0.1572721912 | D179: 0.1510562005 | E179: 0.1251968358 | F179: 0.1411839078 | G179: 0.108094127 | H179: 0.1098612388 | I179: 0.1006159649 | J179: 0.1003206366 | K179: 0.1048881108 | U179: Electrical machinery, apparatus and appliances, n.e.s. | V179: 0.06144076919 | W179: 0.06299115153 | X179: 0.06355340421 | Y179: 0.0652060449 | Z179: 0.07072100936 | AA179: 0.07361260889 | AB179: 0.07263642059 | AC179: 0.06595434093 | AD179: 0.06837101795 | AE179: 0.07175129097
A180: Electrical machinery, apparatus and appliances, n.e.s. | B180: 0.07304144359 | C180: 0.07768517883 | D180: 0.07677987176 | E180: 0.0784015026 | F180: 0.08646984043 | G180: 0.08522814021 | H180: 0.09472638589 | I180: 0.08678735622 | J180: 0.08746837468 | K180: 0.09468247856 | U180: Other industrial machinery and parts | V180: 0.07346764902 | W180: 0.06789323358 | X180: 0.06910368157 | Y180: 0.07309208382 | Z180: 0.08139047008 | AA180: 0.08211084786 | AB180: 0.07569078393 | AC180: 0.07067465876 | AD180: 0.0724337402 | AE180: 0.07072808811
A181: Iron and steel | B181: 0.1399116921 | C181: 0.1339485772 | D181: 0.1373924002 | E181: 0.1302915127 | F181: 0.0960382231 | G181: 0.1140666466 | H181: 0.1052868811 | I181: 0.09081819827 | J181: 0.08484998151 | K181: 0.08435148205 | U181: Iron and steel | V181: 0.06619600178 | W181: 0.06754728136 | X181: 0.07201138105 | Y181: 0.08468672572 | Z181: 0.07980750995 | AA181: 0.06714451489 | AB181: 0.06606260123 | AC181: 0.06645184429 | AD181: 0.06828735686 | AE181: 0.06452789099
A182: Inorganic chemicals | B182: 0.05841282765 | C182: 0.05297208746 | D182: 0.04881110656 | E182: 0.07625093108 | F182: 0.05574584765 | G182: 0.05793603586 | H182: 0.06467483108 | I182: 0.05718555319 | J182: 0.05321782035 | K182: 0.05191876712 | U182: Specialised machinery | V182: 0.06987256486 | W182: 0.07664728869 | X182: 0.07968336164 | Y182: 0.07793442691 | Z182: 0.07149597269 | AA182: 0.06219533117 | AB182: 0.06543507192 | AC182: 0.07083652623 | AD182: 0.07088453871 | AE182: 0.06444548455
A183: Fertilizers other than group 272 | B183: 0.02821378482 | C183: 0.02762261611 | D183: 0.03496088039 | E183: 0.05381383949 | F183: 0.04478739666 | G183: 0.04500776317 | H183: 0.04956239522 | I183: 0.05116648821 | J183: 0.04570041793 | K183: 0.04419029478 | U183: Manufactures of metal, n.e.s. | V183: 0.03971078789 | W183: 0.03906032432 | X183: 0.04298024786 | Y183: 0.04756825485 | Z183: 0.05317829018 | AA183: 0.05073411463 | AB183: 0.04640415831 | AC183: 0.04586770764 | AD183: 0.04532209081 | AE183: 0.04933903508
A184: Other industrial machinery and parts | B184: 0.04761753186 | C184: 0.05717257292 | D184: 0.06359837143 | E184: 0.0527204417 | F184: 0.04576538957 | G184: 0.04629367439 | H184: 0.05049816065 | I184: 0.04659595474 | J184: 0.0447734803 | K184: 0.04289640947 | U184: Telecommunication and sound recording apparatus | V184: 0.05877862852 | W184: 0.06192156661 | X184: 0.05586204658 | Y184: 0.05341408517 | Z184: 0.04773678216 | AA184: 0.04864131555 | AB184: 0.04878056434 | AC184: 0.04373483941 | AD184: 0.04011725293 | AE184: 0.04662167809
A185: Other transport equipment | B185: 0.0301394961 | C185: 0.03154958412 | D185: 0.02621869915 | E185: 0.03595363293 | F185: 0.03187182888 | G185: 0.03836721056 | H185: 0.03278953412 | I185: 0.03711483769 | J185: 0.06241380637 | K185: 0.03733607795 | U185: Textile yarn and related products | V185: 0.05677698104 | W185: 0.05162458689 | X185: 0.05046288086 | Y185: 0.04490238787 | Z185: 0.04278625064 | AA185: 0.04351527535 | AB185: 0.04583429755 | AC185: 0.04364721514 | AD185: 0.04217442545 | AE185: 0.04507907717
A186: Manufactures of metal, n.e.s. | B186: 0.02587184564 | C186: 0.02725512137 | D186: 0.03102584301 | E186: 0.03235009594 | F186: 0.03978470325 | G186: 0.03719994207 | H186: 0.03470413476 | I186: 0.03834211865 | J186: 0.03535214993 | K186: 0.03680628914 | U186: Medicinal and pharmaceutical products | V186: 0.03613284256 | W186: 0.03586253024 | X186: 0.0363826383 | Y186: 0.03326684996 | Z186: 0.03904727725 | AA186: 0.0379365625 | AB186: 0.03894803551 | AC186: 0.04012093034 | AD186: 0.03999777758 | AE186: 0.03973489205
A187: Miscellaneous manufactured articles, n.e.s. | B187: 0.03556951422 | C187: 0.03393734103 | D187: 0.03253988826 | E187: 0.02844337253 | F187: 0.03629482814 | G187: 0.03700339553 | H187: 0.03388230137 | I187: 0.0316925724 | J187: 0.03236072362 | K187: 0.03228979699 | U187: Power generating machinery and equipment | V187: 0.02735428264 | W187: 0.0400267015 | X187: 0.03375522297 | Y187: 0.03755568455 | Z187: 0.03893761505 | AA187: 0.03746760393 | AB187: 0.03711027606 | AC187: 0.03354694725 | AD187: 0.03639726156 | AE187: 0.03872670754
A188: Textile yarn and related products | B188: 0.02896993571 | C188: 0.02828628447 | D188: 0.03153410313 | E188: 0.02707205055 | F188: 0.03230657368 | G188: 0.03011000574 | H188: 0.03160083767 | I188: 0.03048894891 | J188: 0.03117532082 | K188: 0.03154005221 | U188: Miscellaneous manufactured articles, n.e.s. | V188: 0.0415318155 | W188: 0.04100305864 | X188: 0.0359817036 | Y188: 0.03124936169 | Z188: 0.03378072257 | AA188: 0.03532630763 | AB188: 0.03370913403 | AC188: 0.03468000508 | AD188: 0.03647671101 | AE188: 0.03516116558
A189: Telecommunication and sound recording apparatus | B189: 0.01569864081 | C189: 0.01852752502 | D189: 0.01439843999 | E189: 0.01423004186 | F189: 0.01695271895 | G189: 0.01782410916 | H189: 0.02032615872 | I189: 0.02068472711 | J189: 0.02041865602 | K189: 0.03120931943 | U189: Other transport equipment | V189: 0.05349417342 | W189: 0.03544924914 | X189: 0.03623607769 | Y189: 0.04288459708 | Z189: 0.02952652646 | AA189: 0.03495881501 | AB189: 0.03413647821 | AC189: 0.03080955928 | AD189: 0.03808921836 | AE189: 0.03244506424
A190: Non metallic mineral manufactures, n.e.s. | B190: 0.02826027052 | C190: 0.0265494945 | D190: 0.02455466523 | E190: 0.02361794495 | F190: 0.03118277707 | G190: 0.0301360433 | H190: 0.02716366828 | I190: 0.03220239376 | J190: 0.0319012031 | K190: 0.02902460966 | U190: Non metallic mineral manufactures, n.e.s. | V190: 0.02443518147 | W190: 0.02392416707 | X190: 0.02530070974 | Y190: 0.02600184484 | Z190: 0.02917494944 | AA190: 0.03011071173 | AB190: 0.02752342096 | AC190: 0.02995034372 | AD190: 0.03046833297 | AE190: 0.03077397679
A191: Essential oils for perfume materials and cleaning preparations | B191: 0.02089265294 | C191: 0.01942665434 | D191: 0.01940158287 | E191: 0.02080466769 | F191: 0.02510666224 | G191: 0.0242775872 | H191: 0.02648121315 | I191: 0.02661641587 | J191: 0.02882362432 | K191: 0.02877670237 | U191: Plastics in primary forms | V191: 0.02910475022 | W191: 0.03004049943 | X191: 0.03155157726 | Y191: 0.02780641102 | Z191: 0.02610752951 | AA191: 0.02708916041 | AB191: 0.03082955393 | AC191: 0.02976178467 | AD191: 0.03023237562 | AE191: 0.03041475565
A192: Organic chemicals | B192: 0.03263143948 | C192: 0.03367115952 | D192: 0.03574444939 | E192: 0.03229269503 | F192: 0.02666584273 | G192: 0.02633920726 | H192: 0.02551375439 | I192: 0.03262722949 | J192: 0.02867754651 | K192: 0.02785717974 | U192: Paper and paper manufactures | V192: 0.02087767622 | W192: 0.02101913077 | X192: 0.02059504392 | Y192: 0.0199009523 | Z192: 0.02048246949 | AA192: 0.02084142933 | AB192: 0.02227836544 | AC192: 0.02209096742 | AD192: 0.02383290145 | AE192: 0.02378750037
A193: Specialised machinery | B193: 0.01658954272 | C193: 0.01841518121 | D193: 0.02062130281 | E193: 0.02017354361 | F193: 0.02365401027 | G193: 0.02398505586 | H193: 0.02461302348 | I193: 0.03037311978 | J193: 0.02733933061 | K193: 0.02690079534 | U193: Chemical materials and products, n.e.s. | V193: 0.01950092579 | W193: 0.01965132458 | X193: 0.0190543219 | Y193: 0.01838832845 | Z193: 0.01992604403 | AA193: 0.02070572511 | AB193: 0.02264726307 | AC193: 0.02199359641 | AD193: 0.02227722896 | AE193: 0.02302933757
A194: Chemical materials and products, n.e.s. | B194: 0.01238508857 | C194: 0.01161732437 | D194: 0.011981383 | E194: 0.01333231287 | F194: 0.01514818006 | G194: 0.01495006585 | H194: 0.01572543958 | I194: 0.01785206277 | J194: 0.01724123348 | K194: 0.02203245194 | U194: Articles of apparel & clothing accessories | V194: 0.02015087412 | W194: 0.01958607977 | X194: 0.01916736598 | Y194: 0.01571524908 | Z194: 0.01806539342 | AA194: 0.01912221494 | AB194: 0.01963324418 | AC194: 0.02111389219 | AD194: 0.02047895002 | AE194: 0.02242166136
A195: Plastics in primary forms | B195: 0.01623998071 | C195: 0.01552183146 | D195: 0.01306313342 | E195: 0.01632455443 | F195: 0.015697401 | G195: 0.01502425313 | H195: 0.01520621937 | I195: 0.01720232308 | J195: 0.01796418515 | K195: 0.01984651212 | U195: Office machines and automatic data processing machines | V195: 0.03202598206 | W195: 0.03210587755 | X195: 0.02983255827 | Y195: 0.02640810523 | Z195: 0.02512783448 | AA195: 0.02650767096 | AB195: 0.02577825224 | AC195: 0.02396951775 | AD195: 0.02223363256 | AE195: 0.02238145923
A196: Power generating machinery and equipment | B196: 0.01624152532 | C196: 0.01901532959 | D196: 0.01813674594 | E196: 0.01649710479 | F196: 0.01668817831 | G196: 0.0178239675 | H196: 0.01651076094 | I196: 0.01745819754 | J196: 0.01807662626 | K196: 0.01884469291 | U196: Professional and scientific instruments, n.e.s. | V196: 0.02065374497 | W196: 0.02076397716 | X196: 0.02119739836 | Y196: 0.01841464161 | Z196: 0.01952862151 | AA196: 0.01932074175 | AB196: 0.01906704331 | AC196: 0.01879138677 | AD196: 0.01939831821 | AE196: 0.01951703494
A197: Paper and paper manufactures | B197: 0.01565888465 | C197: 0.0156663762 | D197: 0.01853663957 | E197: 0.01637179602 | F197: 0.02089379391 | G197: 0.0197819812 | H197: 0.01908405264 | I197: 0.01763711404 | J197: 0.01695660102 | K197: 0.01712085752 | U197: Rubber manufactures, n.e.s. | V197: 0.01485758592 | W197: 0.01423817757 | X197: 0.01542025727 | Y197: 0.01455236866 | Z197: 0.0155821081 | AA197: 0.01777481839 | AB197: 0.01842400547 | AC197: 0.01927600986 | AD197: 0.01877224786 | AE197: 0.01821543713
A198: Footwear | B198: 0.01436570424 | C198: 0.01478827256 | D198: 0.01495301311 | E198: 0.01262131487 | F198: 0.01538483924 | G198: 0.01538939701 | H198: 0.01439601993 | I198: 0.0138831874 | J198: 0.01352761232 | K198: 0.01454241878 | U198: Essential oils for perfume materials and cleaning preparations | V198: 0.01490740906 | W198: 0.01447565816 | X198: 0.01376126821 | Y198: 0.01487817583 | Z198: 0.01610244635 | AA198: 0.01688982233 | AB198: 0.01823715069 | AC198: 0.01885102558 | AD198: 0.01904594576 | AE198: 0.01779359705
A199: Leather, leather manufactures and dressed furskins | B199: 0.009023547415 | C199: 0.009040611845 | D199: 0.01083194257 | E199: 0.008761835624 | F199: 0.009442972781 | G199: 0.01724428304 | H199: 0.01159201474 | I199: 0.011602076 | J199: 0.01279081754 | K199: 0.01345405036 | U199: Organic chemicals | V199: 0.0173711078 | W199: 0.01714268568 | X199: 0.0169196866 | Y199: 0.01603984965 | Z199: 0.01469937101 | AA199: 0.01690323571 | AB199: 0.0172324943 | AC199: 0.01667621607 | AD199: 0.01535905528 | AE199: 0.01535666524
A200: Professional and scientific instruments, n.e.s. | B200: 0.008313008204 | C200: 0.008593817721 | D200: 0.008927980783 | E200: 0.009610792705 | F200: 0.0114286315 | G200: 0.01129973374 | H200: 0.01051144721 | I200: 0.01179313941 | J200: 0.01162494978 | K200: 0.01253279167 | M200: Source: UNCTADStat. 'Manufactures' = SITC 5-8 less 667 and 68. | U200: Furniture and parts thereof | V200: 0.007813974933 | W200: 0.008471587624 | X200: 0.00846423397 | Y200: 0.008398708745 | Z200: 0.009157477678 | AA200: 0.009414042793 | AB200: 0.009528983846 | AC200: 0.01115314913 | AD200: 0.01068326395 | AE200: 0.01235349346 | AG200: Source: UNCTADStat. 'Manufactures' = SITC 5-8 less 667 and 68.
A201: Medicinal and pharmaceutical products | B201: 0.006961492718 | C201: 0.006575745627 | D201: 0.008484337905 | E201: 0.007323934556 | F201: 0.01086347273 | G201: 0.01082666602 | H201: 0.01034132322 | I201: 0.01087078719 | J201: 0.01110332534 | K201: 0.01061245829 | U201: Plastics in non-primary forms | V201: 0.008930398544 | W201: 0.008907681333 | X201: 0.00927769288 | Y201: 0.009616993749 | Z201: 0.01084305027 | AA201: 0.01079943269 | AB201: 0.0117761771 | AC201: 0.01144146531 | AD201: 0.01292823893 | AE201: 0.0123064182
A202: Furniture and parts thereof | B202: 0.01401850621 | C202: 0.01365828973 | D202: 0.01248813468 | E202: 0.01012012475 | F202: 0.01141953059 | G202: 0.01272767619 | H202: 0.01084368011 | I202: 0.01043902545 | J202: 0.009928001378 | K202: 0.00979341985 | U202: Inorganic chemicals | V202: 0.01042241992 | W202: 0.009735431452 | X202: 0.009364972979 | Y202: 0.01145945589 | Z202: 0.009619753156 | AA202: 0.01073786059 | AB202: 0.01252635324 | AC202: 0.01263705415 | AD202: 0.01189087268 | AE202: 0.01161058678
A203: Plastics in non-primary forms | B203: 0.003583978811 | C203: 0.003898816939 | D203: 0.004637075738 | E203: 0.005248396318 | F203: 0.006071282463 | G203: 0.006490306965 | H203: 0.006834416472 | I203: 0.007892754807 | J203: 0.008443484204 | K203: 0.008318714275 | U203: Fertilizers other than group 272 | V203: 0.010638708 | W203: 0.01009879043 | X203: 0.009322654159 | Y203: 0.01354822966 | Z203: 0.01013796547 | AA203: 0.009829502032 | AB203: 0.01292106418 | AC203: 0.01253147181 | AD203: 0.01348047435 | AE203: 0.01124146663
A204: Rubber manufactures, n.e.s. | B204: 0.008228886761 | C204: 0.007808243032 | D204: 0.00677577356 | E204: 0.006049211666 | F204: 0.006923137457 | G204: 0.007688098453 | H204: 0.009231352341 | I204: 0.009078127767 | J204: 0.008426654739 | K204: 0.007997192791 | U204: Footwear | V204: 0.008518250253 | W204: 0.008182647309 | X204: 0.007758688893 | Y204: 0.006621090461 | Z204: 0.007839124048 | AA204: 0.008428325585 | AB204: 0.00905062884 | AC204: 0.009605440793 | AD204: 0.01003994864 | AE204: 0.01114659166
A205: Cork and wood manufactures (excluding furniture) | B205: 0.01501010545 | C205: 0.0124204693 | D205: 0.01149562896 | E205: 0.009602409254 | F205: 0.008969139668 | G205: 0.009027476199 | H205: 0.00724752624 | I205: 0.009266935821 | J205: 0.0076348522 | K205: 0.007834425648 | U205: Dyeing, tanning and colouring materials | V205: 0.008580466199 | W205: 0.008562665586 | X205: 0.007861092489 | Y205: 0.007588858308 | Z205: 0.007914812436 | AA205: 0.008080156555 | AB205: 0.008344216184 | AC205: 0.007853035174 | AD205: 0.007552244511 | AE205: 0.00780863573
A206: Dyeing, tanning and colouring materials | B206: 0.005489589377 | C206: 0.0059067676 | D206: 0.00564328812 | E206: 0.005290317933 | F206: 0.007054916606 | G206: 0.006508430297 | H206: 0.006479631547 | I206: 0.006565264604 | J206: 0.006797688949 | K206: 0.006967475681 | U206: Prefabricated buildings, sanitary, heating and lighting fixtures, n.e.s. | V206: 0.005260863593 | W206: 0.006729685109 | X206: 0.006066865312 | Y206: 0.006407568033 | Z206: 0.006999716156 | AA206: 0.006574015579 | AB206: 0.00635690322 | AC206: 0.007842831256 | AD206: 0.007288084506 | AE206: 0.007802145366
A207: Office machines and automatic data processing machines | B207: 0.004918361622 | C207: 0.007484362733 | D207: 0.006811677903 | E207: 0.00561935017 | F207: 0.007473688365 | G207: 0.006483660263 | H207: 0.00604258123 | I207: 0.007050533523 | J207: 0.006118926863 | K207: 0.006569307582 | U207: Metal working machinery | V207: 0.006130009685 | W207: 0.006444685739 | X207: 0.006265910407 | Y207: 0.006401229559 | Z207: 0.006900251424 | AA207: 0.006307751161 | AB207: 0.005886693613 | AC207: 0.005547860306 | AD207: 0.005380940787 | AE207: 0.005279949285
A208: Prefabricated buildings, sanitary, heating and lighting fixtures, n.e.s. | B208: 0.004078265024 | C208: 0.003947792776 | D208: 0.004592914405 | E208: 0.0041698179 | F208: 0.004592212223 | G208: 0.004465709291 | H208: 0.004293390587 | I208: 0.004596865541 | J208: 0.004399835618 | K208: 0.004643950836 | U208: Cork and wood manufactures (excluding furniture) | V208: 0.005512849362 | W208: 0.004466665406 | X208: 0.004865545081 | Y208: 0.004612278815 | Z208: 0.004911464427 | AA208: 0.005406924651 | AB208: 0.0048962928 | AC208: 0.005524996436 | AD208: 0.004993694359 | AE208: 0.005144638284
A209: Photo apparatus, optical goods, watches and clocks | B209: 0.002363129626 | C209: 0.002236670821 | D209: 0.001957895119 | E209: 0.001665745286 | F209: 0.001807176364 | G209: 0.001830321071 | H209: 0.001944842425 | I209: 0.002168308405 | J209: 0.001893549218 | K209: 0.00188156879 | U209: Photo apparatus, optical goods, watches and clocks | V209: 0.005359766157 | W209: 0.004690853056 | X209: 0.004393646931 | Y209: 0.00385590065 | Z209: 0.004076407523 | AA209: 0.004022277891 | AB209: 0.00387798622 | AC209: 0.003671055563 | AD209: 0.003713762454 | AE209: 0.00371175536
A210: Travel goods, handbags, etc. | B210: 0.001555233849 | C210: 0.001285236926 | D210: 0.001300808589 | E210: 0.001267283041 | F210: 0.00147089368 | G210: 0.001546754118 | H210: 0.001544621852 | I210: 0.001618694552 | J210: 0.001763669922 | K210: 0.001724148221 | U210: Travel goods, handbags, etc. | V210: 0.002005414554 | W210: 0.001825539371 | X210: 0.001846428424 | Y210: 0.001852981147 | Z210: 0.002018213856 | AA210: 0.002052106131 | AB210: 0.002400712136 | AC210: 0.002730890881 | AD210: 0.002563140363 | AE210: 0.00289589922
A211: Metal working machinery | B211: 0.00215110956 | C211: 0.001643124369 | D211: 0.001976930891 | E211: 0.001492983065 | F211: 0.001709670528 | G211: 0.001783970076 | H211: 0.001692638477 | I211: 0.001628502584 | J211: 0.001549435516 | K211: 0.001453991991 | U211: Leather, leather manufactures and dressed furskins | V211: 0.002157794276 | W211: 0.002298568273 | X211: 0.002335820756 | Y211: 0.001930462101 | Z211: 0.00174631091 | AA211: 0.002365381693 | AB211: 0.00231100426 | AC211: 0.001463352698 | AD211: 0.001539213446 | AE211: 0.002034981541
A212: Source: UNCTADStat. 'Manufactures' = SITC 5-8 less 667 and 68. | U212: Source: UNCTADStat. 'Manufactures' = SITC 5-8 less 667 and 68.
A214: Americas: share of total manufactures exports by sector (in descending order of share in 2014) | M214: Americas: share of total manufactures exports by sector, 2005 and 2014 | U214: Americas: share of total manufactures imports by sector (in descending order of share in 2014) | AG214: Americas: share of total manufactures imports by sector, 2005 and 2014
A215: [Calculated from data on page 'W5'] | U215: [Calculated from data on page 'W5']
A216: Sector | B216: 2005 | C216: 2006 | D216: 2007 | E216: 2008 | F216: 2009 | G216: 2010 | H216: 2011 | I216: 2012 | J216: 2013 | K216: 2014 | U216: Sector | V216: 2005 | W216: 2006 | X216: 2007 | Y216: 2008 | Z216: 2009 | AA216: 2010 | AB216: 2011 | AC216: 2012 | AD216: 2013 | AE216: 2014
A217: Value of manufactures exports (US$ billions) | B217: 1223.672021 | C217: 1368.816694 | D217: 1479.313006 | E217: 1571.41234 | F217: 1184.91304 | G217: 1429.06071 | H217: 1595.923075 | I217: 1663.241178 | J217: 1685.084919 | K217: 1727.597754 | U217: Value of manufactures imports (US$ billions) | V217: 1873.8585 | W217: 2082.689522 | X217: 2219.347741 | Y217: 2354.33482 | Z217: 1864.020401 | AA217: 2262.595351 | AB217: 2564.015935 | AC217: 2709.217906 | AD217: 2762.328524 | AE217: 2846.347311
A218: Road vehicles | B218: 0.1569348885 | C218: 0.1543885017 | D218: 0.1541557548 | E218: 0.1412507654 | F218: 0.1289540261 | G218: 0.1513716362 | H218: 0.1599352194 | I218: 0.1710701722 | J218: 0.172616379 | K218: 0.171518779 | U218: Road vehicles | V218: 0.1597539706 | W218: 0.1588290421 | X218: 0.1558204287 | Y218: 0.1393210185 | Z218: 0.120624285 | AA218: 0.138648331 | AB218: 0.1394830372 | AC218: 0.1500366904 | AD218: 0.1514083027 | AE218: 0.1479872103
A219: Electrical machinery, apparatus and appliances, n.e.s. | B219: 0.1112112268 | C219: 0.1113294766 | D219: 0.1022542489 | E219: 0.09882685295 | F219: 0.10479639 | G219: 0.1060234871 | H219: 0.09995543455 | I219: 0.09900175203 | J219: 0.1009512877 | K219: 0.1022946442 | U219: Electrical machinery, apparatus and appliances, n.e.s. | V219: 0.0903770311 | W219: 0.09055812767 | X219: 0.08519981357 | Y219: 0.08598925673 | Z219: 0.08799206073 | AA219: 0.09260638663 | AB219: 0.09357099646 | AC219: 0.09204662629 | AD219: 0.09505774048 | AE219: 0.09546631053
A220: Other industrial machinery and parts | B220: 0.05168205618 | C220: 0.05265235128 | D220: 0.05389007721 | E220: 0.05682530283 | F220: 0.06094892431 | G220: 0.05861570075 | H220: 0.06133984794 | I220: 0.0636096707 | J220: 0.06444286538 | K220: 0.06677110072 | U220: Telecommunication and sound recording apparatus | V220: 0.07737667699 | W220: 0.0805461766 | X220: 0.07884475954 | Y220: 0.08320317651 | Z220: 0.09232637877 | AA220: 0.09000926058 | AB220: 0.08248591875 | AC220: 0.08040913073 | AD220: 0.08087520073 | AE220: 0.07954926449
A221: Telecommunication and sound recording apparatus | B221: 0.05407301355 | C221: 0.0584339695 | D221: 0.05683442713 | E221: 0.0608810058 | F221: 0.06838256958 | G221: 0.06449969742 | H221: 0.05869953509 | I221: 0.05736833122 | J221: 0.05740841509 | K221: 0.0564284352 | U221: Other industrial machinery and parts | V221: 0.05144333052 | W221: 0.05267626275 | X221: 0.05471273208 | Y221: 0.05650498042 | Z221: 0.05540464177 | AA221: 0.05444916563 | AB221: 0.05844627926 | AC221: 0.06034170654 | AD221: 0.0612074816 | AE221: 0.06307201712
A222: Miscellaneous manufactured articles, n.e.s. | B222: 0.05061141071 | C222: 0.05041431818 | D222: 0.05203639685 | E222: 0.05203173503 | F222: 0.06166498071 | G222: 0.05484086484 | H222: 0.0514942139 | I222: 0.05190900116 | J222: 0.05355512095 | K222: 0.05344223741 | U222: Office machines and automatic data processing machines | V222: 0.07030819824 | W222: 0.06881602201 | X222: 0.06576587474 | Y222: 0.06105425959 | Z222: 0.07012393829 | AA222: 0.07108101773 | AB222: 0.06527241312 | AC222: 0.06271152367 | AD222: 0.06083815727 | AE222: 0.05864672719
A223: Professional and scientific instruments, n.e.s. | B223: 0.04120384307 | C223: 0.04173932921 | D223: 0.04154151953 | E223: 0.04176954455 | F223: 0.04929348006 | G223: 0.04722133284 | H223: 0.04646467681 | I223: 0.04679357393 | J223: 0.04754553455 | K223: 0.04765236836 | U223: Miscellaneous manufactured articles, n.e.s. | V223: 0.06149523652 | W223: 0.06044421352 | X223: 0.06351199222 | Y223: 0.06170240295 | Z223: 0.06684034701 | AA223: 0.06147500637 | AB223: 0.05642091246 | AC223: 0.05427409033 | AD223: 0.05500824485 | AE223: 0.05465596847
A224: Office machines and automatic data processing machines | B224: 0.05243484284 | C224: 0.04934324831 | D224: 0.04401160549 | E224: 0.04061848424 | F224: 0.04720638322 | G224: 0.04697187164 | H224: 0.04608924196 | I224: 0.0458783921 | J224: 0.04357678111 | K224: 0.04470188224 | U224: Medicinal and pharmaceutical products | V224: 0.03098776011 | W224: 0.03303604253 | X224: 0.03629506148 | Y224: 0.03837272059 | Z224: 0.04971248624 | AA224: 0.04496012326 | AB224: 0.04267510149 | AC224: 0.04039397663 | AD224: 0.03958663408 | AE224: 0.041878904
A225: Power generating machinery and equipment | B225: 0.05334268953 | C225: 0.0510029182 | D225: 0.05265097603 | E225: 0.0532026973 | F225: 0.04211599976 | G225: 0.04291499706 | H225: 0.04280022579 | I225: 0.04394182294 | J225: 0.04266492114 | K225: 0.04411475994 | U225: Power generating machinery and equipment | V225: 0.03812249551 | W225: 0.03771641113 | X225: 0.0388026243 | Y225: 0.04015461388 | Z225: 0.03947373209 | AA225: 0.03951912947 | AB225: 0.04013129977 | AC225: 0.04194369191 | AD225: 0.04041261324 | AE225: 0.04136482452
A226: Specialised machinery | B226: 0.03838480126 | C226: 0.03849831345 | D226: 0.04454780091 | E226: 0.04601845391 | F226: 0.04363448006 | G226: 0.0456332726 | H226: 0.04701633965 | I226: 0.04744708108 | J226: 0.0427568077 | K226: 0.04134501431 | U226: Articles of apparel & clothing accessories | V226: 0.0501325664 | W226: 0.04740405749 | X226: 0.04625220878 | Y226: 0.04338420962 | Z226: 0.04753065566 | AA226: 0.04322845137 | AB226: 0.04265722517 | AC226: 0.04042519531 | AD226: 0.0410794554 | AE226: 0.04084858027
A227: Medicinal and pharmaceutical products | B227: 0.02700392546 | C227: 0.02774213416 | D227: 0.02997387964 | E227: 0.03169961842 | F227: 0.04882638663 | G227: 0.04031663195 | H227: 0.03636968467 | I227: 0.03456027439 | J227: 0.03400723961 | K227: 0.03660894928 | U227: Specialised machinery | V227: 0.03066887728 | W227: 0.03064767522 | X227: 0.03242066243 | Y227: 0.03357456564 | Z227: 0.03014438844 | AA227: 0.03050338409 | AB227: 0.03532228285 | AC227: 0.03613942459 | AD227: 0.03346216669 | AE227: 0.03266998018
A228: Organic chemicals | B228: 0.03142038955 | C228: 0.03243539188 | D228: 0.03346256992 | E228: 0.03278247029 | F228: 0.03307166003 | G228: 0.03638050576 | H228: 0.03846161076 | I228: 0.03622220211 | J228: 0.03600795843 | K228: 0.03266733003 | U228: Iron and steel | V228: 0.02943927179 | W228: 0.03343909481 | X228: 0.03188177961 | Y228: 0.04011927502 | Z228: 0.02581442296 | AA228: 0.03000850212 | AB228: 0.03271838093 | AC228: 0.03320930383 | AD228: 0.02875602672 | AE228: 0.03225932874
A229: Plastics in primary forms | B229: 0.02587504535 | C229: 0.02637919935 | D229: 0.02753522428 | E229: 0.02763056035 | F229: 0.0290324983 | G229: 0.03056784085 | H229: 0.03114860323 | I229: 0.02890044239 | J229: 0.02931198565 | K229: 0.02938182592 | U229: Manufactures of metal, n.e.s. | V229: 0.03173314049 | W229: 0.03231666979 | X229: 0.0328602157 | Y229: 0.03274628213 | Z229: 0.03113984772 | AA229: 0.0301662654 | AB229: 0.03053267645 | AC229: 0.03190787109 | AD229: 0.03190804669 | AE229: 0.03194276701
A230: Manufactures of metal, n.e.s. | B230: 0.02553809599 | C230: 0.02623101985 | D230: 0.02651572538 | E230: 0.02699422204 | F230: 0.02788128741 | G230: 0.02672518377 | H230: 0.02735534428 | I230: 0.02833808267 | J230: 0.02854575965 | K230: 0.02903917802 | U230: Organic chemicals | V230: 0.03169878396 | W230: 0.03205937663 | X230: 0.03181943831 | Y230: 0.0344477572 | Z230: 0.03647075491 | AA230: 0.0336322449 | AB230: 0.03539854021 | AC230: 0.03311188066 | AD230: 0.03276931518 | AE230: 0.03144837913
A231: Iron and steel | B231: 0.03057823551 | C231: 0.02978382532 | D231: 0.03219377421 | E231: 0.03765806403 | F231: 0.02898093604 | G231: 0.03139475154 | H231: 0.03490778059 | I231: 0.03036475743 | J231: 0.02749005492 | K231: 0.02794742624 | U231: Professional and scientific instruments, n.e.s. | V231: 0.02601233507 | W231: 0.02658458152 | X231: 0.02867332605 | Y231: 0.02863665992 | Z231: 0.02976048071 | AA231: 0.02879964197 | AB231: 0.02897706754 | AC231: 0.02886369609 | AD231: 0.02925578356 | AE231: 0.02941439464
A232: Other transport equipment | B232: 0.05747394751 | C232: 0.06555253715 | D232: 0.0698556407 | E232: 0.06512869097 | F232: 0.02755538872 | G232: 0.02291387123 | H232: 0.02153094231 | I232: 0.02558661533 | J232: 0.02840192323 | K232: 0.0269669172 | U232: Other transport equipment | V232: 0.0199672931 | W232: 0.01969759331 | X232: 0.02252238661 | Y232: 0.02262741618 | Z232: 0.02403755023 | AA232: 0.02086621136 | AB232: 0.02083452471 | AC232: 0.02063334962 | AD232: 0.02213519338 | AE232: 0.02306939451
A233: Chemical materials and products, n.e.s. | B233: 0.01694164412 | C233: 0.01707806102 | D233: 0.01831197652 | E233: 0.02176588644 | F233: 0.02404268438 | G233: 0.02378373118 | H233: 0.02410471245 | I233: 0.0241300067 | J233: 0.02517927797 | K233: 0.02516956869 | U233: Furniture and parts thereof | V233: 0.02200994798 | W233: 0.02154956713 | X233: 0.02135047234 | Y233: 0.01923677828 | Z233: 0.01868190839 | AA233: 0.01831622104 | AB233: 0.0171280201 | AC233: 0.01793605525 | AD233: 0.01857811919 | AE233: 0.01930693381
A234: Paper and paper manufactures | B234: 0.02343700829 | C234: 0.0218359487 | D234: 0.02095126272 | E234: 0.02111094651 | F234: 0.02346811233 | G234: 0.02145182005 | H234: 0.02052829707 | I234: 0.01896811625 | J234: 0.01914034603 | K234: 0.01869695999 | U234: Textile yarn and related products | V234: 0.02234554403 | W234: 0.02072755763 | X234: 0.02067471047 | Y234: 0.01979146868 | Z234: 0.02032394842 | AA234: 0.02008149052 | AB234: 0.02007781593 | AC234: 0.01906024834 | AD234: 0.01910525855 | AE234: 0.01907883791
A235: Essential oils for perfume materials and cleaning preparations | B235: 0.01060751393 | C235: 0.01081691352 | D235: 0.01145854732 | E235: 0.01242405167 | F235: 0.01611600954 | G235: 0.01478898631 | H235: 0.01451488571 | I235: 0.01467280563 | J235: 0.015153827 | K235: 0.0150486122 | U235: Plastics in primary forms | V235: 0.0157271434 | W235: 0.01566143413 | X235: 0.01532736151 | Y235: 0.01598530586 | Z235: 0.01453601326 | AA235: 0.01591804951 | AB235: 0.01671698861 | AC235: 0.01600656551 | AD235: 0.0165558869 | AE235: 0.01716867822
A236: Articles of apparel & clothing accessories | B236: 0.02120325082 | C236: 0.01803494545 | D236: 0.01553936961 | E236: 0.01448131208 | F236: 0.01558691557 | G236: 0.01441931881 | H236: 0.01456957669 | I236: 0.0137034034 | J236: 0.01360999252 | K236: 0.01346937542 | U236: Chemical materials and products, n.e.s. | V236: 0.01158760718 | W236: 0.0112916072 | X236: 0.01216020531 | Y236: 0.01365585022 | Z236: 0.01422586397 | AA236: 0.01383868405 | AB236: 0.01431272935 | AC236: 0.01443432769 | AD236: 0.01553456034 | AE236: 0.01538426538
A237: Inorganic chemicals | B237: 0.01226209771 | C237: 0.01273896238 | D237: 0.01472453874 | E237: 0.01597825499 | F237: 0.01501320262 | G237: 0.01554800345 | H237: 0.01753639902 | I237: 0.01539031805 | J237: 0.01421323068 | K237: 0.01319223457 | U237: Rubber manufactures, n.e.s. | V237: 0.01220946865 | W237: 0.01222375086 | X237: 0.01264987141 | Y237: 0.01275096771 | Z237: 0.0132717527 | AA237: 0.01404486714 | AB237: 0.01532918247 | AC237: 0.01567363141 | AD237: 0.01551857551 | AE237: 0.01504507427
A238: Textile yarn and related products | B238: 0.01639172964 | C238: 0.0150593408 | D238: 0.0141982525 | E238: 0.01337547769 | F238: 0.01415057266 | G238: 0.01386235546 | H238: 0.01395899712 | I238: 0.01307352326 | J238: 0.01322065531 | K238: 0.01299793297 | U238: Paper and paper manufactures | V238: 0.017510687 | W238: 0.0170579461 | X238: 0.01643001584 | Y238: 0.01624108195 | Z238: 0.01679679128 | AA238: 0.01509526453 | AB238: 0.0141409229 | AC238: 0.01348302282 | AD238: 0.01351189332 | AE238: 0.01329256429
A239: Rubber manufactures, n.e.s. | B239: 0.009665578064 | C239: 0.009483256219 | D239: 0.009779534934 | E239: 0.009778542593 | F239: 0.0109356923 | G239: 0.01120372565 | H239: 0.01226297012 | I239: 0.01227495655 | J239: 0.01248443952 | K239: 0.0123608735 | U239: Non metallic mineral manufactures, n.e.s. | V239: 0.01474103084 | W239: 0.01467289038 | X239: 0.01389532332 | Y239: 0.01259751226 | Z239: 0.01218287567 | AA239: 0.01171455615 | AB239: 0.0116449246 | AC239: 0.01164624596 | AD239: 0.01209854936 | AE239: 0.01229172919
A240: Non metallic mineral manufactures, n.e.s. | B240: 0.01165096664 | C240: 0.01181936192 | D240: 0.01174903913 | E240: 0.01111155389 | F240: 0.01165087005 | G240: 0.01155675901 | H240: 0.01129165851 | I240: 0.01117562396 | J240: 0.01197644746 | K240: 0.01227424931 | M240: Source: UNCTADStat. 'Manufactures' = SITC 5-8 less 667 and 68. | U240: Footwear | V240: 0.01208355997 | W240: 0.01192094701 | X240: 0.01157458574 | Y240: 0.0113398098 | Z240: 0.01266220363 | AA240: 0.01207990279 | AB240: 0.01194415449 | AC240: 0.01195397608 | AD240: 0.01204911241 | AE240: 0.01210644193 | AG240: Source: UNCTADStat. 'Manufactures' = SITC 5-8 less 667 and 68.
A241: Furniture and parts thereof | B241: 0.01386257102 | C241: 0.01295395596 | D241: 0.01201610393 | E241: 0.01073259045 | F241: 0.01017650391 | G241: 0.0105579897 | H241: 0.01027301814 | I241: 0.01096113786 | J241: 0.011415234 | K241: 0.01211069049 | U241: Essential oils for perfume materials and cleaning preparations | V241: 0.00863944246 | W241: 0.008503844591 | X241: 0.008881067002 | Y241: 0.009382779548 | Z241: 0.01088602897 | AA241: 0.01012986896 | AB241: 0.0100121595 | AC241: 0.01013213978 | AD241: 0.010727527 | AE241: 0.01078494056
A242: Plastics in non-primary forms | B242: 0.01018316574 | C242: 0.00998616869 | D242: 0.0097615969 | E242: 0.01001155867 | F242: 0.01149830331 | G242: 0.01147170182 | H242: 0.01151222932 | I242: 0.01130646899 | J242: 0.01150450885 | K242: 0.01179444129 | U242: Plastics in non-primary forms | V242: 0.008024990368 | W242: 0.007940345873 | X242: 0.007708636983 | Y242: 0.007657557357 | Z242: 0.008007319865 | AA242: 0.008103744029 | AB242: 0.008238936603 | AC242: 0.008342766422 | AD242: 0.008610694849 | AE242: 0.008805679684
A243: Fertilizers other than group 272 | B243: 0.003306358237 | C243: 0.002992942669 | D243: 0.003478587656 | E243: 0.01128827585 | F243: 0.008421051332 | G243: 0.008837642611 | H243: 0.01041050034 | I243: 0.009269793218 | J243: 0.008344244387 | K243: 0.007208176473 | U243: Fertilizers other than group 272 | V243: 0.005307467897 | W243: 0.004814846495 | X243: 0.007069931132 | Y243: 0.01170533167 | Z243: 0.006779312207 | AA243: 0.007922846741 | AB243: 0.01066580807 | AC243: 0.0097183758 | AD243: 0.009090979702 | AE243: 0.008698709055
A244: Dyeing, tanning and colouring materials | B244: 0.005792543391 | C244: 0.005729501822 | D244: 0.00571229732 | E244: 0.005719720623 | F244: 0.006580582958 | G244: 0.007194370473 | H244: 0.007415639484 | I244: 0.006689398867 | J244: 0.00635440795 | K244: 0.006390856898 | U244: Inorganic chemicals | V244: 0.008589311149 | W244: 0.008677436524 | X244: 0.009638551967 | Y244: 0.01202575913 | Z244: 0.01013194826 | AA244: 0.01002194082 | AB244: 0.01110914425 | AC244: 0.010097361 | AD244: 0.009220315924 | AE244: 0.008213260923
A245: Photo apparatus, optical goods, watches and clocks | B245: 0.008169523266 | C245: 0.007738548203 | D245: 0.007254247804 | E245: 0.006515683743 | F245: 0.008082664124 | G245: 0.007361122515 | H245: 0.00663471248 | I245: 0.006238531055 | J245: 0.005987036842 | K245: 0.005822683564 | U245: Photo apparatus, optical goods, watches and clocks | V245: 0.00961413885 | W245: 0.009196824047 | X245: 0.00822613724 | Y245: 0.007771937704 | Z245: 0.007969418469 | AA245: 0.007598087661 | AB245: 0.007567755128 | AC245: 0.007146371301 | AD245: 0.007157097978 | AE245: 0.007158594033
A246: Cork and wood manufactures (excluding furniture) | B246: 0.009795201328 | C246: 0.008358601146 | D246: 0.006741634414 | E246: 0.005718208691 | F246: 0.005438173343 | G246: 0.00508278604 | H246: 0.004591644159 | I246: 0.004613324463 | J246: 0.005078448795 | K246: 0.005052492873 | U246: Metal working machinery | V246: 0.006845305695 | W246: 0.006965900872 | X246: 0.006595424391 | Y246: 0.006960170626 | Z246: 0.005424854083 | AA246: 0.005083277988 | AB246: 0.006471427641 | AC246: 0.007226551956 | AD246: 0.006878634976 | AE246: 0.006519825115
A247: Metal working machinery | B247: 0.006991974972 | C247: 0.007620184598 | D247: 0.005075009007 | E247: 0.005331148581 | F247: 0.005044620281 | G247: 0.005072411338 | H247: 0.005363741403 | I247: 0.00529410769 | J247: 0.00516680335 | K247: 0.004941900024 | U247: Prefabricated buildings, sanitary, heating and lighting fixtures, n.e.s. | V247: 0.00584065328 | W247: 0.005836976996 | X247: 0.005589866467 | Y247: 0.005364601136 | Z247: 0.005307202606 | AA247: 0.0051292402 | AB247: 0.005035969608 | AC247: 0.005617129714 | AD247: 0.00602878149 | AE247: 0.006172227412
A248: Prefabricated buildings, sanitary, heating and lighting fixtures, n.e.s. | B248: 0.004008203151 | C248: 0.00384030019 | D248: 0.003707090271 | E248: 0.003819827861 | F248: 0.004057573643 | G248: 0.003804406816 | H248: 0.003823433058 | I248: 0.004150164454 | J248: 0.004390108618 | K248: 0.004735945052 | U248: Travel goods, handbags, etc. | V248: 0.004315144155 | W248: 0.00437681914 | X248: 0.004585809524 | Y248: 0.004627193251 | Z248: 0.004725729009 | AA248: 0.004655647198 | AB248: 0.004756832577 | AC248: 0.004904632782 | AD248: 0.005107329438 | AE248: 0.005116618311
A249: Leather, leather manufactures and dressed furskins | B249: 0.003973593366 | C249: 0.004044883762 | D249: 0.004182822766 | E249: 0.003535094299 | F249: 0.002959495342 | G249: 0.003493598387 | H249: 0.003534897932 | I249: 0.003381888594 | J249: 0.003775873706 | K249: 0.00422484972 | U249: Cork and wood manufactures (excluding furniture) | V249: 0.008941611755 | W249: 0.0080725289 | X249: 0.006693414124 | Y249: 0.005647029568 | Z249: 0.005314659261 | AA249: 0.004775948382 | AB249: 0.004265862421 | AC249: 0.00448719652 | AD249: 0.004831875552 | AE249: 0.004879323835
A250: Footwear | B250: 0.003251615362 | C250: 0.003168527467 | D250: 0.003126719342 | E250: 0.00319646591 | F250: 0.003437925343 | G250: 0.003214928578 | H250: 0.003149706532 | I250: 0.002731003854 | J250: 0.002710400993 | K250: 0.002626695287 | U250: Dyeing, tanning and colouring materials | V250: 0.004423877408 | W250: 0.004288361067 | X250: 0.004254940872 | Y250: 0.004214478626 | Z250: 0.004428711005 | AA250: 0.004553504176 | AB250: 0.004622046276 | AC250: 0.004677099196 | AD250: 0.004582099804 | AE250: 0.004555527341
